﻿OrganisationalUnit,BeneficiaryName,PaymentDate,Amount,Purpose
 Schools,1 STOP JETTING LTD,17/07/2015,755.00,Premises
 Schools,123 Comms Ltd,03/07/2015,1273.30,Supplies and Services
 Schools,1ST CLASS FOOTBALL COACHING,09/07/2015,1500.00,Supplies and Services
 Schools,1ST CLASS FOOTBALL COACHING,15/07/2015,600.00,Supplies and Services
 Schools,1st Class Hygiene Ltd,17/07/2015,440.00,Premises
 Schools,1ST SITE HOMES & INTERIORS LTD,07/07/2015,935.00,Premises
 Schools,1st Technologies Ltd T/A ICT D,01/07/2015,3727.50,Premises
ICT,21st Century Learners,30/07/2015,1296.00,Supplies and Services
Other Education and Children's services,21ST CENTURY LEGACY,03/07/2015,1000.00,Supplies and Services
 Schools,247 Scaffold Towers,20/07/2015,2055.85,Premises
 Schools,2SIMPLE SOFTWARE,10/07/2015,1200.00,Supplies and Services
 Schools,2SIMPLE SOFTWARE,28/07/2015,500.00,Supplies and Services
 Schools,3P Learning Ltd,01/07/2015,450.00,Supplies and Services
 Schools,3P Learning Ltd,20/07/2015,612.00,Supplies and Services
 Schools,4Imprint Direct Ltd,14/07/2015,1474.96,Supplies and Services
 Schools,5 TEN TAXIS,03/07/2015,652.50,Transport
 Schools,5 TEN TAXIS,22/07/2015,1350.00,Transport
Other Education and Children's services,5 TEN TAXIS,23/07/2015,1427.00,Supplies and Services
Other Education and Children's services,57 TAXIS,09/07/2015,1504.00,Transport
Other Education and Children's services,57 TAXIS,14/07/2015,13932.15,Transport
 Schools,6061 CARS,29/07/2015,1245.00,Supplies and Services
Other Education and Children's services,6061 CARS,08/07/2015,825.00,Supplies and Services
Other Education and Children's services,6061 CARS,14/07/2015,15365.94,Transport
Other Education and Children's services,6061 CARS,15/07/2015,15365.94,Transport
ICT,8 Solutions Ltd,28/07/2015,1600.00,Supplies and Services
Other Education and Children's services,A & D Taxis,15/07/2015,2238.75,Transport
Other Education and Children's services,A & H Cars,15/07/2015,1998.26,Transport
Other Education and Children's services,A & K TRAVEL,31/07/2015,558.40,Transport
Other Education and Children's services,A & K TRAVEL,14/07/2015,14216.76,Transport
Trading Service Central Print & Design,A & M ELLIS,31/07/2015,425.00,Supplies and Services
Other Education and Children's services,A A AFSAR,17/07/2015,32412.10,Transport
Planning & Economic Development,A A AFSAR,17/07/2015,320.00,Transport
Other Education and Children's services,A D RUTTER,14/07/2015,2353.78,Transport
Other Education and Children's services,A D RUTTER,31/07/2015,1390.87,Transport
 Schools,A F CONSULTING NORTHERN LTD,24/07/2015,700.70,Supplies and Services
 Schools,A FOX,09/07/2015,1800.00,Supplies and Services
Other Education and Children's services,A FOX,30/07/2015,600.00,Supplies and Services
Law & Governence,A HAMILTON,09/07/2015,1800.00,Supplies and Services
Highways and transport,A Highman,14/07/2015,320.00,Supplies and Services
Planning & Economic Development,A Highman,14/07/2015,225.00,Supplies and Services
 Schools,A HILL,23/07/2015,850.00,Employees
 Schools,A I D FUEL OILS LTD,14/07/2015,514.50,Transport
Planning & Economic Development,A I D FUEL OILS LTD,23/07/2015,928.92,Transport
 Schools,A J B LANDSCAPING & CONSTRUCTI,14/07/2015,3600.00,Premises
 Schools,A J. PRODUCTS (uk) Ltd,07/07/2015,550.00,Supplies and Services
Other Education and Children's services,A Matthews Travel,14/07/2015,680.94,Transport
Planning & Economic Development,A Meredith Associates,21/07/2015,2250.00,Supplies and Services
 Schools,A P & J L WHITE,15/07/2015,485.86,Supplies and Services
 Schools,A P & J L WHITE,28/07/2015,511.61,Supplies and Services
 Schools,A S AYRES,16/07/2015,1740.00,Premises
 Schools,A Sporting Chance Ltd,28/07/2015,1952.00,Employees
 Schools,A Stops,15/07/2015,549.05,Supplies and Services
 Schools,A Walley,21/07/2015,540.00,Supplies and Services
Highways and transport,A WEAVER,14/07/2015,2695.00,Supplies and Services
Highways and transport,A WILLIAMS,20/07/2015,1075.00,Supplies and Services
 Schools,A+ SCHOOL WEBSITES,14/07/2015,480.00,Supplies and Services
Other Education and Children's services,A1 EMBASSY TAXIS LTD,15/07/2015,22638.74,Transport
Other Education and Children's services,A2B Cars,20/07/2015,11888.62,Transport
Other Education and Children's services,A2B Village Taxis,15/07/2015,9564.16,Transport
Other Education and Children's services,A2B Village Taxis,31/07/2015,4807.32,Transport
Other Education and Children's services,A2Z TAXIS,23/07/2015,20284.67,Transport
 Schools,Aardvark Janitorial Supplies,10/07/2015,574.34,Premises
Schools,ABACUS TRAINING,30/07/2015,640.00,Employees
 Schools,ABC COUNTDOWN CARS,17/07/2015,561.00,Transport
 Schools,ABC COUNTDOWN CARS,24/07/2015,840.00,Transport
Other Education and Children's services,ABC COUNTDOWN CARS,14/07/2015,17446.42,Transport
Other Education and Children's services,ABC Fostering Services Ltd,27/07/2015,13202.45,Supplies and Services
 Schools,ABC SUPREME LTD,22/07/2015,800.00,Supplies and Services
 Schools,ABC SUPREME LTD,22/07/2015,269.00,Transport
Other Education and Children's services,ABC SUPREME LTD,14/07/2015,6706.98,Transport
Planning & Economic Development,ABC SUPREME LTD,13/07/2015,3039.75,Transport
Planning & Economic Development,ABC SUPREME LTD,14/07/2015,6241.84,Transport
 Schools,ABC TEACHERS LIMITED,01/07/2015,1536.84,Employees
 Schools,ABC TEACHERS LIMITED,03/07/2015,3581.78,Employees
 Schools,ABC TEACHERS LIMITED,06/07/2015,2475.79,Employees
 Schools,ABC TEACHERS LIMITED,07/07/2015,27910.89,Employees
 Schools,ABC TEACHERS LIMITED,08/07/2015,3359.90,Employees
 Schools,ABC TEACHERS LIMITED,09/07/2015,2132.87,Employees
 Schools,ABC TEACHERS LIMITED,10/07/2015,9044.94,Employees
 Schools,ABC TEACHERS LIMITED,13/07/2015,464.97,Employees
 Schools,ABC TEACHERS LIMITED,14/07/2015,26365.34,Employees
 Schools,ABC TEACHERS LIMITED,17/07/2015,13098.46,Employees
 Schools,ABC TEACHERS LIMITED,21/07/2015,28846.77,Employees
 Schools,ABC TEACHERS LIMITED,22/07/2015,7925.56,Employees
 Schools,ABC TEACHERS LIMITED,23/07/2015,3088.90,Employees
 Schools,ABC TEACHERS LIMITED,28/07/2015,28734.16,Employees
 Schools,ABC TEACHERS LIMITED,31/07/2015,1423.37,Employees
 Schools,ABC TEACHERS LIMITED,08/07/2015,774.96,Supplies and Services
 Schools,ABK GROUP OF COMPANIES LTD,28/07/2015,1235.93,Employees
Health Trust,About Me Care and Support Ltd,27/07/2015,568.32,Supplies and Services
Health Trust,About Me Care and Support Ltd,24/07/2015,1349.76,Supplies and Services
 CXO,AC Health & Nutrition Ltd,16/07/2015,820.00,Supplies and Services
 Schools,Academia Ltd,13/07/2015,4750.00,Supplies and Services
 Schools,Academia Ltd,14/07/2015,4496.00,Supplies and Services
 Schools,Academia Ltd,16/07/2015,23955.43,Supplies and Services
 Schools,Academia Ltd,24/07/2015,2500.00,Supplies and Services
 Schools,Academia Ltd,30/07/2015,5110.92,Supplies and Services
 Schools,Academics,01/07/2015,5318.20,Employees
 Schools,Academics,08/07/2015,3520.32,Employees
 Schools,Academics,15/07/2015,3262.24,Employees
 Schools,Academics,22/07/2015,1200.00,Employees
 Schools,Academics,29/07/2015,1529.00,Employees
 Schools,ACADEMY PHOTOGRAPHY LTD,14/07/2015,1224.21,Supplies and Services
Planning & Economic Development,ACCESS INDEPENDENT LTD,10/07/2015,1366.50,Supplies and Services
Planning & Economic Development,ACCESS INDEPENDENT LTD,13/07/2015,869.00,Supplies and Services
Planning & Economic Development,ACCESS INDEPENDENT LTD,20/07/2015,869.00,Supplies and Services
Highways and transport,Accomplished Personnel Recruit,08/07/2015,740.00,Supplies and Services
Highways and transport,Accomplished Personnel Recruit,15/07/2015,740.00,Supplies and Services
Highways and transport,Accomplished Personnel Recruit,22/07/2015,740.00,Supplies and Services
Highways and transport,Accomplished Personnel Recruit,28/07/2015,786.25,Supplies and Services
 Schools,ACCORD (MIDLANDS) LTD,06/07/2015,640.00,Premises
 Schools,Accord Group - MKH Advertising,14/07/2015,875.00,Employees
Adult Social Care,ACCORD HOUSING ASSOCIATION,24/07/2015,-4471.20,Income
Adult Social Care,ACCORD HOUSING ASSOCIATION,15/07/2015,700550.00,Supplies and Services
Adult Social Care,ACCORD HOUSING ASSOCIATION,24/07/2015,13171.24,Third Party
Health Trust,ACCORD HOUSING ASSOCIATION,13/07/2015,32475.04,Supplies and Services
Health Trust,Ace Care Agency,08/07/2015,980.00,Supplies and Services
 Schools,Ace Star Sports Coaching Ltd,16/07/2015,931.00,Employees
Other Education and Children's services,ACORN FOSTERING SERVICES LTD,27/07/2015,5118.59,Supplies and Services
Other Education and Children's services,Acorn House Fostering Services,27/07/2015,12489.75,Supplies and Services
 Schools,Acti Sport Coaching Ltd,17/07/2015,1000.00,Supplies and Services
Other Education and Children's services,Action for Children,27/07/2015,2978.12,Supplies and Services
 Schools,Active Arts,24/07/2015,1200.00,Supplies and Services
Health Trust,Active Assistance,29/07/2015,2183.98,Supplies and Services
Health Trust,Active Assistance,06/07/2015,1091.99,Supplies and Services
Health Trust,Active Assistance,17/07/2015,1091.99,Supplies and Services
 Schools,ACTIVE LEARNING SPORTS,14/07/2015,600.00,Supplies and Services
 Schools,ACTIVE LEARNING SPORTS,20/07/2015,900.00,Supplies and Services
 Schools,ACTIVE SCIENCE,17/07/2015,801.25,Supplies and Services
Adult Social Care,ADASS,08/07/2015,1830.00,Supplies and Services
Adult Social Care,ADCS LTD,08/07/2015,3135.00,Supplies and Services
Adult Social Care,Addiction Dependency Solutions,24/07/2015,517029.32,Supplies and Services
 Schools,ADEPT SECURITY SYSTEMS LTD,14/07/2015,490.00,Premises
 Schools,ADMONTES LTD,16/07/2015,6818.00,Supplies and Services
Other Education and Children's services,ADOPTION UK,14/07/2015,847.00,Supplies and Services
Highways and transport,ADRIAN CATON SIPP,17/07/2015,5000.00,Capital
Other Education and Children's services,ADVANCE FOSTER CARE,01/07/2015,-13191.64,Supplies and Services
Adult Social Care,ADVANCE HEALTHCARE,20/07/2015,806.40,Supplies and Services
Health Trust,ADVANCE HEALTHCARE,06/07/2015,2508.05,Supplies and Services
Health Trust,ADVANCE HEALTHCARE,20/07/2015,1609.00,Supplies and Services
Highways and transport,AECOM Infrastructure & Env UK,03/07/2015,44372.87,Capital
Highways and transport,AECOM Infrastructure & Env UK,09/07/2015,17103.05,Capital
Highways and transport,AECOM Infrastructure & Env UK,27/07/2015,15030.43,Capital
Highways and transport,AECOM Infrastructure & Env UK,31/07/2015,2688.32,Capital
 Schools,Aerial Extreme Ltd,22/07/2015,525.00,Supplies and Services
Other Education and Children's services,AERO TAXIS Ltd,15/07/2015,10285.00,Transport
Adult Social Care,Affinity Trust,24/07/2015,15222.97,Third Party
Other Education and Children's services,Aftab Najib t/a Elite Private,15/07/2015,14655.18,Transport
Health Trust,AGE CONCERN STAFFORD & DIST,14/07/2015,41950.00,Supplies and Services
Health Trust,AGE CONCERN STAFFORD & DIST,22/07/2015,1512.20,Supplies and Services
Health Trust,Age UK North Staffordshire,02/07/2015,8164.35,Supplies and Services
Health Trust,Age UK South Staffordshire,16/07/2015,33763.73,Supplies and Services
Health Trust,Age UK South Staffordshire,16/07/2015,3638.33,Transport
Other Education and Children's services,AHB&JG Childcare Social Work L,13/07/2015,775.00,Supplies and Services
 Schools,AIB SOLUTIONS LTD,16/07/2015,1075.00,Premises
Other Education and Children's services,AIRPORT CARS LICHFIELD,14/07/2015,4784.26,Transport
Other Education and Children's services,AIRPORT CARS LICHFIELD,31/07/2015,2846.63,Transport
Health Trust,AKA Case Management Ltd,20/07/2015,1480.76,Supplies and Services
Adult Social Care,ALDERGATE MEDICAL PRACTICE,22/07/2015,1328.40,Supplies and Services
 Schools,Aldermore Invoice Finance,10/07/2015,636.26,Supplies and Services
 Schools,Aldermore Invoice Finance,15/07/2015,615.34,Supplies and Services
 Schools,Aldermore Invoice Finance,17/07/2015,569.07,Supplies and Services
 Schools,Aldermore Invoice Finance,24/07/2015,617.47,Supplies and Services
 Schools,ALEXANDER PAPER SUPPLIES,17/07/2015,659.47,Supplies and Services
Other Education and Children's services,ALFEGAR HOUSE WOLVERHAMPTON YM,22/07/2015,688.74,Supplies and Services
Adult Social Care,ALISON KNIGHT TRAINING CONSULT,13/07/2015,1648.16,Employees
 Schools,ALL FLUTES PLUS,21/07/2015,904.17,Supplies and Services
Law & Governence,ALL SAINTS CHURCH TRYSULL,24/07/2015,1320.00,Third Party
Adult Social Care,Allendale Specialist Day Care,03/07/2015,1200.00,Supplies and Services
 Schools,Alliance in Partnership Ltd,14/07/2015,427.22,Supplies and Services
 Schools,Alliance in Partnership Ltd,24/07/2015,954.46,Supplies and Services
 Schools,ALLSORTS OFFICE SUPPLIES LTD,06/07/2015,1006.80,Supplies and Services
 Schools,ALLSORTS OFFICE SUPPLIES LTD,17/07/2015,779.00,Supplies and Services
 Schools,ALLSORTS OFFICE SUPPLIES LTD,23/07/2015,456.40,Supplies and Services
Corporate & Democratic Core,ALLSORTS OFFICE SUPPLIES LTD,09/07/2015,421.00,Supplies and Services
Property,ALLSORTS OFFICE SUPPLIES LTD,29/07/2015,1650.00,Capital
Property,ALLSORTS OFFICE SUPPLIES LTD,17/07/2015,54953.00,Capital
Trading Service County Fleet Care,ALLSTAR BUSINESS SOLUTIONS LTD,08/07/2015,6697.62,Transport
Trading Service County Fleet Care,ALLSTAR BUSINESS SOLUTIONS LTD,22/07/2015,12658.72,Transport
Trading Service County Fleet Care,ALLSTAR BUSINESS SOLUTIONS LTD,29/07/2015,5779.44,Transport
 Schools,Alpha Hair Academy,15/07/2015,520.00,Supplies and Services
Adult Social Care,ALREWAS SURGERY,23/07/2015,1496.80,Supplies and Services
 Schools,Alsager Golf & Country Club,14/07/2015,1160.00,Premises
 Schools,ALTODIGITAL UK LTD,14/07/2015,2218.28,Supplies and Services
 Schools,ALTON CASTLE,06/07/2015,1960.00,Supplies and Services
 Schools,ALTON CASTLE,22/07/2015,720.00,Supplies and Services
 Schools,Amadeus Associates Ltd,27/07/2015,500.00,Supplies and Services
 Schools,AMBASSADOR THEATRE GROUP VENUE,24/07/2015,1559.80,Supplies and Services
 Schools,Americanino Ltd T/A Mr Memory,17/07/2015,1200.00,Supplies and Services
Highways and transport,Amey LG Ltd,29/07/2015,6157652.30,Third Party
Other Education and Children's services,AMG NURSING & CARE SERVICES,03/07/2015,855.60,Supplies and Services
Other Education and Children's services,AMG NURSING & CARE SERVICES,10/07/2015,3742.88,Supplies and Services
Other Education and Children's services,AMG NURSING & CARE SERVICES,17/07/2015,855.60,Supplies and Services
Other Education and Children's services,AMG NURSING & CARE SERVICES,20/07/2015,855.60,Supplies and Services
Other Education and Children's services,AMG NURSING & CARE SERVICES,22/07/2015,673.35,Supplies and Services
Other Education and Children's services,AMG NURSING & CARE SERVICES,24/07/2015,14472.96,Supplies and Services
Other Education and Children's services,AMG NURSING & CARE SERVICES,30/07/2015,855.60,Supplies and Services
Other Education and Children's services,AMG NURSING & CARE SERVICES,31/07/2015,4505.60,Supplies and Services
 Schools,AMS Asbestos Management Srvcs,21/07/2015,750.00,Capital
Other Education and Children's services,Anchor Fostercare,27/07/2015,5376.28,Supplies and Services
Trading Service Farms,ANDERSONS,02/07/2015,1031.50,Supplies and Services
Highways and transport,ANDREW DIXON & COMPANY,10/07/2015,2350.00,Supplies and Services
Other Education and Children's services,Andrew Nield  T/A AIN Consulti,17/07/2015,11700.00,Supplies and Services
Health Trust,ANGEL CARE TAMWORTH LTD,03/07/2015,1626.88,Supplies and Services
Health Trust,ANGEL CARE TAMWORTH LTD,10/07/2015,1830.24,Supplies and Services
Health Trust,ANGEL CARE TAMWORTH LTD,31/07/2015,5621.29,Supplies and Services
Health Trust,Angel Homecaring,31/07/2015,588.08,Supplies and Services
Health Trust,Angel Homecaring,13/07/2015,-14.86,Supplies and Services
Health Trust,Angel Homecaring,17/07/2015,615.72,Supplies and Services
Health Trust,Angel Homecaring,21/07/2015,581.39,Supplies and Services
Health Trust,Angel Homecaring,29/07/2015,588.08,Supplies and Services
 Schools,ANGEL SOLUTIONS LTD,01/07/2015,1350.00,Supplies and Services
 Schools,Animal Island Ltd,08/07/2015,650.00,Supplies and Services
ICT,ANS GROUP PLC,14/07/2015,2479.50,Supplies and Services
ICT,ANS GROUP PLC,21/07/2015,7213.48,Supplies and Services
Trading Service Central Print & Design,ANTALIS MCNAUGHTON LTD,16/07/2015,579.34,Supplies and Services
 Schools,ANTHONY CHARLES LANDSCAPES,31/07/2015,960.00,Premises
 Schools,Anthony Collins Sols LLP,15/07/2015,5058.23,Supplies and Services
Planning & Economic Development,Anthony Collins Sols LLP,02/07/2015,1450.00,Supplies and Services
 Schools,ANTHONYS AJ'S A1,14/07/2015,543.00,Transport
Health Trust,ANTHONYS AJ'S A1,16/07/2015,510.00,Transport
Other Education and Children's services,ANTHONYS AJ'S A1,31/07/2015,70.00,Supplies and Services
Other Education and Children's services,ANTHONYS AJ'S A1,14/07/2015,30439.82,Transport
Other Education and Children's services,ANTHONYS AJ'S A1,31/07/2015,17951.17,Transport
 Schools,Apex Ecology Ltd,17/07/2015,559.60,Capital
Adult Social Care,Approach Sprtng Your Life Your,01/07/2015,0.00,Supplies and Services
Planning & Economic Development,APSE,07/07/2015,552.00,Employees
 Schools,AQUAID (MIDS & SOUTH WALES),06/07/2015,610.20,Supplies and Services
 Schools,AQUAID (MIDS & SOUTH WALES),15/07/2015,1318.80,Supplies and Services
 Schools,AQUAID BIRMINGHAM CENTRAL,14/07/2015,647.79,Supplies and Services
Health Trust,AR1 Homecare,14/07/2015,988.81,Supplies and Services
Health Trust,AR1 Homecare,17/07/2015,2063.96,Supplies and Services
Adult Social Care,ARCH NORTH STAFFS LTD,17/07/2015,41020.78,Supplies and Services
Adult Social Care,ARCH NORTH STAFFS LTD,27/07/2015,0.00,Supplies and Services
Adult Social Care,ARCH NORTH STAFFS LTD,29/07/2015,2638.53,Supplies and Services
Adult Social Care,ARJO LTD,30/07/2015,453.83,Premises
 Schools,ARNOLDS PUBLISHING LTD,15/07/2015,1000.00,Supplies and Services
Other Education and Children's services,ARRIVA MIDLANDS LTD,08/07/2015,849.00,Transport
Planning & Economic Development,ARRIVA MIDLANDS LTD,07/07/2015,345663.00,Transport
Planning & Economic Development,ARRIVA MIDLANDS LTD,08/07/2015,96295.58,Transport
Planning & Economic Development,ARRIVA MIDLANDS LTD,13/07/2015,1037.00,Transport
Planning & Economic Development,ARRIVA MIDLANDS LTD,14/07/2015,9832.09,Transport
Planning & Economic Development,ARRIVA MIDLANDS LTD,30/07/2015,374708.25,Transport
Other Education and Children's services,ARTHUR FINDLAY LRNING & CNFRNC,14/07/2015,518.00,Supplies and Services
 Schools,Arval UK Ltd,15/07/2015,1244.67,Third Party
 Schools,Arval UK Ltd,22/07/2015,471.16,Third Party
 Schools,ASCL,16/07/2015,732.68,Supplies and Services
 Schools,Asgard Secure Steel Storage,24/07/2015,1168.34,Supplies and Services
Adult Social Care,ASHBOURNE COMMUNITY TRANSPORT,24/07/2015,1672.00,Transport
Other Education and Children's services,ASHBOURNE COMMUNITY TRANSPORT,21/07/2015,3198.58,Transport
Planning & Economic Development,ASHBOURNE COMMUNITY TRANSPORT,21/07/2015,7975.86,Transport
Planning & Economic Development,ASHLEA LANDSCAPING LTD,13/07/2015,1250.00,Premises
Planning & Economic Development,ASHWELL BIOMASS LTD,01/07/2015,1397.00,Premises
 Schools,ASHWOOD CARPENTRY & JOINERY LT,17/07/2015,1672.00,Supplies and Services
Cultural Services,ASKEWS LIBRARY SERVICES LTD,02/07/2015,4166.88,Supplies and Services
Cultural Services,ASKEWS LIBRARY SERVICES LTD,10/07/2015,1303.15,Supplies and Services
Cultural Services,ASKEWS LIBRARY SERVICES LTD,17/07/2015,1591.93,Supplies and Services
Cultural Services,ASKEWS LIBRARY SERVICES LTD,23/07/2015,549.44,Supplies and Services
 Schools,ASM SPORTS UK LTD,15/07/2015,6270.00,Employees
 Schools,ASM SPORTS UK LTD,17/07/2015,420.00,Employees
 Schools,ASM SPORTS UK LTD,21/07/2015,780.00,Employees
 Schools,ASM SPORTS UK LTD,15/07/2015,5130.00,Supplies and Services
 Schools,ASM SPORTS UK LTD,16/07/2015,462.00,Supplies and Services
 Schools,ASM SPORTS UK LTD,20/07/2015,1560.00,Supplies and Services
 Schools,ASM SPORTS UK LTD,21/07/2015,590.00,Supplies and Services
 Schools,ASPENS,01/07/2015,3102.03,Supplies and Services
 Schools,ASPENS,20/07/2015,7035.25,Supplies and Services
 Schools,ASPENS,22/07/2015,5772.73,Supplies and Services
Law & Governence,Aspire (Stafford) Limited,16/07/2015,1000.00,Third Party
Law & Governence,Aspire (Stafford) Limited,28/07/2015,1000.00,Third Party
 Schools,ASPIRE PEOPLE LTD,01/07/2015,722.00,Employees
 Schools,ASPIRE PEOPLE LTD,02/07/2015,674.00,Employees
 Schools,ASPIRE PEOPLE LTD,03/07/2015,10468.00,Employees
 Schools,ASPIRE PEOPLE LTD,06/07/2015,1170.00,Employees
 Schools,ASPIRE PEOPLE LTD,07/07/2015,1224.93,Employees
 Schools,ASPIRE PEOPLE LTD,10/07/2015,9961.90,Employees
 Schools,ASPIRE PEOPLE LTD,13/07/2015,3024.00,Employees
 Schools,ASPIRE PEOPLE LTD,14/07/2015,610.80,Employees
 Schools,ASPIRE PEOPLE LTD,15/07/2015,721.00,Employees
 Schools,ASPIRE PEOPLE LTD,16/07/2015,1560.00,Employees
 Schools,ASPIRE PEOPLE LTD,17/07/2015,12359.50,Employees
 Schools,ASPIRE PEOPLE LTD,20/07/2015,2801.00,Employees
 Schools,ASPIRE PEOPLE LTD,24/07/2015,7027.00,Employees
 Schools,ASPIRE PEOPLE LTD,29/07/2015,2895.00,Employees
 Schools,ASPIRE PEOPLE LTD,31/07/2015,2474.50,Employees
 Schools,ASPIRE PEOPLE LTD,02/07/2015,756.00,Supplies and Services
 Schools,ASPIRE PEOPLE LTD,10/07/2015,555.00,Supplies and Services
 Schools,ASPIRE PEOPLE LTD,24/07/2015,925.00,Supplies and Services
 Schools,ASPIRE SPORTS HEALTH & FITNESS,02/07/2015,480.00,Employees
 Schools,ASPIRE SPORTS HEALTH & FITNESS,02/07/2015,475.00,Supplies and Services
 Schools,ASPIRE SPORTS HEALTH & FITNESS,17/07/2015,581.00,Supplies and Services
 Schools,ASPIRE SPORTS HEALTH & FITNESS,21/07/2015,581.00,Supplies and Services
Other Education and Children's services,AspireOne Care Ltd,27/07/2015,13795.00,Third Party
Adult Social Care,Asset Based Consulting,08/07/2015,7000.00,Supplies and Services
 Schools,Assettrac Ltd,20/07/2015,1320.00,Supplies and Services
Health Trust,Assist Domiciliary Care Limite,17/07/2015,1450.00,Supplies and Services
Health Trust,Assist Domiciliary Care Limite,20/07/2015,2528.63,Supplies and Services
Health Trust,Assist Domiciliary Care Limite,21/07/2015,1675.24,Supplies and Services
Health Trust,Assist Domiciliary Care Limite,24/07/2015,899.00,Supplies and Services
Health Trust,Assist Domiciliary Care Limite,28/07/2015,2675.66,Supplies and Services
Adult Social Care,Assoc of Directors of Public H,16/07/2015,3200.00,Supplies and Services
 Schools,ASSOCIATED RADIO TAXIS,10/07/2015,729.10,Transport
Other Education and Children's services,ASSOCIATED RADIO TAXIS,23/07/2015,5201.96,Transport
Highways and transport,ATG ACCESS LTD,31/07/2015,2932.90,Third Party
 Schools,ATG LONDON LTD,02/07/2015,552.50,Income
 Schools,ATOZ SUPPLIES,14/07/2015,697.62,Supplies and Services
Trading Service County Fleet Care,ATS EUROMASTER LTD,20/07/2015,6553.00,Transport
 Schools,Attend EDC Ltd,22/07/2015,7500.00,Supplies and Services
Adult Social Care,Audley Health Centre,08/07/2015,632.80,Supplies and Services
Adult Social Care,Audley Health Centre,22/07/2015,595.00,Supplies and Services
Other Education and Children's services,Aurora Country Dev Ltd,07/07/2015,899.99,Supplies and Services
Trading Service Central Print & Design,AURORA GRAPHICS & DISPLAYS LTD,17/07/2015,2047.04,Supplies and Services
Trading Service Central Print & Design,AURORA GRAPHICS & DISPLAYS LTD,30/07/2015,715.15,Supplies and Services
 Schools,Ausden Clark Ltd,02/07/2015,760.00,Supplies and Services
 Schools,AUTHORS ABROAD,14/07/2015,465.00,Supplies and Services
 Schools,AUTHORS ABROAD,21/07/2015,950.00,Supplies and Services
 Schools,Authors Aloud UK,22/07/2015,504.40,Supplies and Services
 Schools,AV PARTS MASTER LTD,24/07/2015,448.99,Supplies and Services
Highways and transport,Avery Weigh-Tronix,23/07/2015,1180.49,Third Party
 Schools,Axcis Education Recruitment,02/07/2015,945.00,Employees
 Schools,Axcis Education Recruitment,15/07/2015,1965.00,Employees
 Schools,AYUDANTE,17/07/2015,1996.54,Supplies and Services
 Schools,AYUDANTE,21/07/2015,1222.00,Supplies and Services
Schools,B & J ENGINEERING (SOT) LTD,30/07/2015,1540.00,Premises
 Schools,B & P FLOORING LTD,22/07/2015,3054.00,Premises
 Schools,B & Q Financial Services,29/07/2015,502.00,Premises
 Schools,B A T FABRICATIONS LTD,22/07/2015,1270.00,Premises
Planning & Economic Development,B D FUELS LTD,06/07/2015,868.50,Transport
 Schools,B Foster,31/07/2015,925.00,Income
Other Education and Children's services,B Mason,29/07/2015,575.00,Supplies and Services
Other Education and Children's services,B P BROWN TRAVEL LTD,08/07/2015,957.60,Transport
Planning & Economic Development,B P BROWN TRAVEL LTD,15/07/2015,18672.94,Transport
Planning & Economic Development,B P BROWN TRAVEL LTD,22/07/2015,9577.00,Transport
Law & Governence,B S Hayer,10/07/2015,690.00,Supplies and Services
CXO,B4 LEGAL,07/07/2015,148195.19,Supplies & Services
Other Education and Children's services,BABCOCK 4S LTD,08/07/2015,480.00,Supplies and Services
 Schools,Babington Business College,08/07/2015,1556.65,Supplies and Services
 Schools,BADGER PUBLISHING LTD,01/07/2015,2730.00,Supplies and Services
 Schools,BAGNALLS COACHES,17/07/2015,545.00,Supplies and Services
 Schools,BAGNALLS COACHES,15/07/2015,545.00,Transport
Other Education and Children's services,BAGNALLS COACHES,14/07/2015,11278.30,Transport
Highways and transport,Bagshaws,31/07/2015,819.65,Supplies and Services
Other Education and Children's services,Baker Small Soliciter Legal Se,29/07/2015,1000.00,Supplies and Services
Finance,Baker Tilly Tax & Accounting L,28/07/2015,4716.00,Supplies and Services
Adult Social Care,BALANCE STREET PRACTICE,23/07/2015,1260.00,Supplies and Services
 Schools,BALFOR RECRUITMENT GROUP LTD,10/07/2015,452.00,Employees
Highways and transport,BALFOUR BEATTY CIVILS LTD,20/07/2015,157947.14,Capital
Highways and transport,BALFOUR BEATTY CIVILS LTD,22/07/2015,17676.60,Capital
 Schools,Ball Green Primary,02/07/2015,2486.88,Employees
 CXO,BANDGLADE DEVELOPMENTS LTD,03/07/2015,15013.19,Premises
 Schools,Bangdrum CIC,13/07/2015,824.50,Supplies and Services
 Schools,BANNER BUSINESS SERVICES LTD,10/07/2015,774.47,Supplies and Services
 Schools,BANNER BUSINESS SERVICES LTD,16/07/2015,675.03,Supplies and Services
Highways and transport,Banner Business Supplies,21/07/2015,444.40,Supplies and Services
Other Education and Children's services,BARNARDO SERVICES LTD,16/07/2015,61136.75,Supplies and Services
Other Education and Children's services,BARNARDO SERVICES LTD,17/07/2015,24750.00,Supplies and Services
Other Education and Children's services,Barnardos West,24/07/2015,4000.00,Supplies and Services
Other Education and Children's services,Barnardos Yorkshire,27/07/2015,4692.47,Supplies and Services
CXO,Barringtons Chartered Accounta,03/07/2015,1200.00,Supplies and Services
 Schools,Barsport Ltd,16/07/2015,0.00,Supplies and Services
Highways and transport,BARTON UNDER NEEDWOOD P C,27/07/2015,1097.36,Third Party
Other Education and Children's services,Barton Village Taxis,14/07/2015,8866.97,Transport
 Schools,Base 25,08/07/2015,720.00,Supplies and Services
Other Education and Children's services,Base 25,16/07/2015,600.00,Supplies and Services
Law & Governence,Baswich Community Group,14/07/2015,1960.00,Third Party
 Schools,Bates Office Services Ltd,13/07/2015,831.20,Supplies and Services
 Schools,Bates Office Services Ltd,22/07/2015,471.85,Supplies and Services
 Schools,BAYLISS CONTRACT SERVICES,29/07/2015,2986.00,Capital
 Schools,BAYLISS CONTRACT SERVICES,06/07/2015,630.00,Premises
 Schools,BAYLISS CONTRACT SERVICES,08/07/2015,1148.00,Premises
 Schools,BAYLISS CONTRACT SERVICES,07/07/2015,1940.00,Third Party
 Schools,BAYLISS CONTRACT SERVICES,15/07/2015,16912.00,Third Party
 Schools,BAYLISS CONTRACT SERVICES,16/07/2015,6000.00,Third Party
 Schools,BCFA Limited,09/07/2015,3000.00,Supplies and Services
 Schools,BCS Cleaning Services,13/07/2015,900.00,Premises
 Schools,BCS Cleaning Services,27/07/2015,900.00,Premises
Finance,Be Smart Design Ltd,14/07/2015,510.00,Supplies and Services
Other Education and Children's services,Beacon Community Centre,16/07/2015,750.00,Supplies and Services
 Schools,Beanstalk,10/07/2015,560.00,Supplies and Services
 Schools,Beat It Percussion CIC,15/07/2015,536.00,Supplies and Services
ICT,Beech Cliffe Farm Partners,28/07/2015,2040.00,Supplies and Services
Health Trust,Belong At Home Crewe,24/07/2015,-608.70,Supplies and Services
 Schools,BENDRIGG TRUST,16/07/2015,4222.50,Supplies and Services
Adult Social Care,BENNETT'S TAXIS,21/07/2015,2816.00,Transport
Other Education and Children's services,BENNETT'S TAXIS,14/07/2015,1766.04,Transport
Other Education and Children's services,BENNETT'S TAXIS,15/07/2015,22331.06,Transport
Other Education and Children's services,BENNETT'S TAXIS,21/07/2015,619.00,Transport
Other Education and Children's services,BENNETT'S TAXIS,23/07/2015,715.00,Transport
Other Education and Children's services,BENNETTS TRAVEL (CRANBERRY) LT,14/07/2015,22072.54,Transport
Planning & Economic Development,BENNETTS TRAVEL (CRANBERRY) LT,07/07/2015,3060.00,Transport
Planning & Economic Development,BENNETTS TRAVEL (CRANBERRY) LT,14/07/2015,50098.18,Transport
Planning & Economic Development,BENNETTS TRAVEL (CRANBERRY) LT,31/07/2015,3599.00,Transport
Other Education and Children's services,BENNETTS TRAVEL LTD,14/07/2015,18229.64,Transport
Other Education and Children's services,BENNETTS TRAVEL LTD,31/07/2015,10148.81,Transport
 Schools,BESPOKE SHELTERS LTD,06/07/2015,16144.20,Premises
 Schools,Bethell & Partner T/A South St,20/07/2015,595.00,Supplies and Services
 Schools,Bethell & Partner T/A South St,22/07/2015,500.00,Supplies and Services
Highways and transport,Bevan Brittan,02/07/2015,36599.21,Income
 Schools,BIBBY FACTORS LEICESTER LIMITE,06/07/2015,545.95,Supplies and Services
Cultural Services,Bibliographic Data Services Lt,08/07/2015,7230.00,Supplies and Services
 CXO,BID,09/07/2015,1220.00,Premises
 CXO,BID,31/07/2015,3200.00,Premises
 Schools,BID,30/07/2015,665.00,Premises
 Schools,BID,09/07/2015,2480.00,Premises
 Schools,BID,31/07/2015,2640.00,Premises
Adult Social Care,BID,31/07/2015,260.00,Premises
Corporate & Democratic Core,BID,30/07/2015,695.00,Premises
Corporate & Democratic Core,BID,09/07/2015,520.00,Premises
Corporate & Democratic Core,BID,31/07/2015,880.00,Premises
Highways and transport,BID,30/07/2015,7077.50,Capital
Planning & Economic Development,BID,09/07/2015,880.00,Premises
Planning & Economic Development,BID,31/07/2015,440.00,Premises
Law & Governence,Biddulph Bowling & Recreationa,16/07/2015,2000.00,Third Party
Adult Social Care,BIDDULPH DOCTORS,22/07/2015,525.60,Supplies and Services
Law & Governence,BIDDULPH EAST COMM ASSOC,08/07/2015,900.00,Third Party
 CXO,BIFFA WASTE SERVICES LTD,03/07/2015,700.16,Supplies and Services
 Schools,BIFFA WASTE SERVICES LTD,10/07/2015,516.44,Supplies and Services
 Schools,BIFFA WASTE SERVICES LTD,22/07/2015,5284.89,Supplies and Services
 Schools,BIFFA WASTE SERVICES LTD,29/07/2015,1844.70,Supplies and Services
Corporate & Democratic Core,BIFFA WASTE SERVICES LTD,02/07/2015,692.69,Supplies and Services
Environment,BIFFA WASTE SERVICES LTD,01/07/2015,19574.47,Supplies and Services
Environment,BIFFA WASTE SERVICES LTD,03/07/2015,9621.58,Supplies and Services
Environment,BIFFA WASTE SERVICES LTD,24/07/2015,13838.41,Supplies and Services
 Schools,BIG BRUM TIE COMPANY LTD,17/07/2015,500.00,Supplies and Services
Planning & Economic Development,Birmingham City Council,24/07/2015,37596.90,Supplies and Services
 Schools,BISHOP SPORTS & LEISURE LTD,01/07/2015,785.02,Supplies and Services
 Schools,BISHOP SPORTS & LEISURE LTD,08/07/2015,1041.76,Supplies and Services
 Schools,BISHOP SPORTS & LEISURE LTD,21/07/2015,725.65,Supplies and Services
Adult Social Care,BJC Consulting Services - Nott,28/07/2015,1346.80,Supplies and Services
Other Education and Children's services,BLACK & WHITE TRADING LTD,24/07/2015,599.00,Supplies and Services
 Schools,BLACKBOARD RECRUITMENT LTD,01/07/2015,3299.55,Employees
 Schools,BLACKBOARD RECRUITMENT LTD,06/07/2015,3189.00,Employees
 Schools,BLACKBOARD RECRUITMENT LTD,08/07/2015,1467.30,Employees
 Schools,BLACKBOARD RECRUITMENT LTD,14/07/2015,3774.45,Employees
 Schools,BLACKBOARD RECRUITMENT LTD,21/07/2015,4087.65,Employees
 Schools,BLACKBOARD RECRUITMENT LTD,28/07/2015,3469.10,Employees
 Schools,BLAKEMORE FOOD SERVICE LTD,01/07/2015,456.72,Supplies and Services
 Schools,BLAKEMORE FOOD SERVICE LTD,03/07/2015,1192.83,Supplies and Services
 Schools,BLAKEMORE FOOD SERVICE LTD,10/07/2015,562.78,Supplies and Services
 Schools,BLAKEMORE FOOD SERVICE LTD,14/07/2015,578.46,Supplies and Services
 Schools,BLAKEMORE FOOD SERVICE LTD,17/07/2015,719.78,Supplies and Services
 Schools,BLAKEMORE FOOD SERVICE LTD,21/07/2015,1195.70,Supplies and Services
 Schools,BLAKEMORE FOOD SERVICE LTD,24/07/2015,1703.44,Supplies and Services
 Schools,Blithfield Safety Training Ltd,29/07/2015,675.00,Supplies and Services
 Schools,Blithfield Safety Training Ltd,03/07/2015,675.00,Supplies and Services
 Schools,Blue Apple Design Ltd,16/07/2015,730.00,Supplies and Services
 CXO,Blue Starfish Consulting Ltd,13/07/2015,1060.89,Supplies and Services
 CXO,Blue Starfish Consulting Ltd,16/07/2015,4231.75,Supplies and Services
 CXO,Blue Starfish Consulting Ltd,22/07/2015,5437.60,Supplies and Services
Health Trust,Bluebird Care Stoke On Trent,28/07/2015,963.20,Supplies and Services
Health Trust,Bluebird Care Stoke On Trent,13/07/2015,3431.40,Supplies and Services
 Schools,Blueprint Designs,13/07/2015,590.00,Supplies and Services
 Schools,BLUEWAVE INTERNATIONAL LTD,17/07/2015,1775.00,Employees
 Schools,BLUEWAVE INTERNATIONAL LTD,10/07/2015,1115.00,Supplies and Services
 Schools,Blunderbus Theatre Company Ltd,13/07/2015,695.00,Supplies and Services
Highways and transport,Blunts Solicitors,03/07/2015,514.00,Income
Educational Endownments,BME TRAVEL,30/07/2015,550.00,Supplies and Services
ICT,BOARDWORKS LTD,24/07/2015,4100.00,Supplies and Services
Cultural Services,Bolinda UK Ltd,23/07/2015,2866.20,Supplies and Services
 Schools,Book Space For Schools,14/07/2015,894.98,Premises
 Schools,BOOK TRUST,03/07/2015,525.00,Supplies and Services
 Schools,BOOKPOINT LTD,01/07/2015,588.00,Supplies and Services
 Schools,BOOKPOINT LTD,02/07/2015,992.00,Supplies and Services
 Schools,BOOKPOINT LTD,03/07/2015,1995.20,Supplies and Services
 Schools,BOOKPOINT LTD,16/07/2015,1742.20,Supplies and Services
 Schools,BOOKPOINT LTD,17/07/2015,539.50,Supplies and Services
 Schools,BOOKPOINT LTD,20/07/2015,2331.00,Supplies and Services
 Schools,BOOKPOINT LTD,22/07/2015,523.40,Supplies and Services
 Schools,BOOKS FOR STUDENTS,15/07/2015,790.20,Supplies and Services
Adult Social Care,BOOTS THE CHEMIST LTD,16/07/2015,700.56,Supplies and Services
Adult Social Care,BOOTS THE CHEMIST LTD,23/07/2015,531.60,Supplies and Services
 Schools,Border Janitorial Supplies Ltd,29/07/2015,868.00,Premises
Adult Social Care,Born Communications Ltd,08/07/2015,1000.00,Supplies and Services
Adult Social Care,Born Communications Ltd,13/07/2015,2500.00,Supplies and Services
Highways and transport,BOUNDARY SCHOOL OF MOTORING,10/07/2015,735.00,Supplies and Services
Highways and transport,BOUNDARY SCHOOL OF MOTORING,17/07/2015,735.00,Supplies and Services
Highways and transport,BOUNDARY SCHOOL OF MOTORING,31/07/2015,735.00,Supplies and Services
 CXO,BOURNE ELECTRICAL CONTR LTD,02/07/2015,1196.20,Premises
 CXO,BOURNE ELECTRICAL CONTR LTD,27/07/2015,658.95,Premises
 Schools,BOURNE ELECTRICAL CONTR LTD,21/07/2015,817.41,Capital
 Schools,BOURNE ELECTRICAL CONTR LTD,08/07/2015,20811.83,Premises
 Schools,BOURNE ELECTRICAL CONTR LTD,21/07/2015,746.84,Supplies and Services
 Schools,BOURNE ELECTRICAL CONTR LTD,08/07/2015,697.39,Third Party
Property,BOURNE ELECTRICAL CONTR LTD,13/07/2015,8249.18,Capital
Property,BOURNE ELECTRICAL CONTR LTD,27/07/2015,546.04,Capital
Other Education and Children's services,BOURNVILLE SCH & SIXTH FORM CT,01/07/2015,1150.00,Supplies and Services
 Schools,Bradley House Club,13/07/2015,511.20,Supplies and Services
 Schools,BRAKE BROS FOODSERVICE LTD,14/07/2015,467.76,Supplies and Services
Entrust,BRAKES,31/07/2015,433933.42,Supplies and Services
 Schools,BRANSTON GOLF & COUNTRY CLUB,10/07/2015,630.01,Employees
 Schools,BRANSTON GOLF & COUNTRY CLUB,21/07/2015,1475.00,Supplies and Services
Other Education and Children's services,Branston Taxis Ltd,17/07/2015,3113.18,Transport
 Schools,BRECKLAND SCIENTIFIC SUPPLIES,27/07/2015,436.20,Supplies and Services
Law & Governence,BRERETON & RAVENHILL ASSOC,02/07/2015,2000.00,Third Party
Planning & Economic Development,BREWOOD & DIST VOL CAR SCHEME,24/07/2015,578.00,Supplies and Services
Educational Endownments,Brewood Middle School,30/07/2015,520.00,Supplies and Services
Adult Social Care,BRIARS BARN LTD,10/07/2015,1639.00,Supplies and Services
 Schools,Briars Residential Youth Centr,13/07/2015,1875.00,Supplies and Services
 Schools,BRIGHT FUTURES,15/07/2015,1200.00,Supplies and Services
 Schools,BRIGHT FUTURES,20/07/2015,1700.00,Supplies and Services
 Schools,Bright Physical Education Ltd,14/07/2015,523.08,Employees
 Schools,Bright Stars Day Care Ltd,17/07/2015,873.00,Supplies and Services
 Schools,BrightFutures Un-Ltd,01/07/2015,1115.00,Supplies and Services
Law & Governence,BrightFutures Un-Ltd,08/07/2015,1250.00,Third Party
 Schools,BRIMSTONE ADVANTAGE LTD,01/07/2015,800.65,Supplies and Services
 Schools,BRIMSTONE ADVANTAGE LTD,13/07/2015,620.00,Supplies and Services
 Schools,Bristol Business Interiors,15/07/2015,12943.00,Premises
Trading Service County Fleet Care,BRISTOL STREET MOTORS,07/07/2015,680.91,Supplies and Services
Trading Service County Fleet Care,BRISTOL STREET MOTORS,24/07/2015,1990.00,Transport
Vehicles,BRISTOL STREET MOTORS,24/07/2015,65983.71,Capital
 Schools,BRITANNIA OFFICE SUPPLIES LTD,17/07/2015,590.50,Supplies and Services
 Schools,British Gas,17/07/2015,2681.82,Premises
 Schools,BRITISH TELECOMMUNICATIONS PLC,02/07/2015,1440.94,Supplies and Services
 Schools,BRITISH TELECOMMUNICATIONS PLC,17/07/2015,1509.10,Supplies and Services
 Schools,BRITISH TELECOMMUNICATIONS PLC,27/07/2015,715.05,Supplies and Services
Health Trust,Brockton Care Ltd,06/07/2015,4586.68,Supplies and Services
Health Trust,Brockton Care Ltd,14/07/2015,4569.06,Supplies and Services
Health Trust,Brockton Care Ltd,28/07/2015,895.05,Supplies and Services
Corporate & Democratic Core,Brook House Properties,03/07/2015,5750.00,Premises
Adult Social Care,BROOK STREET UK LIMITED,13/07/2015,8210.91,Supplies and Services
Adult Social Care,BROOK STREET UK LIMITED,20/07/2015,10999.27,Supplies and Services
Adult Social Care,BROTHERS OF CHARITY LANCS,03/07/2015,3707.96,Third Party
Adult Social Care,BROTHERS OF CHARITY LANCS,10/07/2015,4461.08,Third Party
 Schools,BROXAP LTD,02/07/2015,1290.32,Supplies and Services
Other Education and Children's services,Bruce Hill,14/07/2015,1619.00,Transport
Other Education and Children's services,Bruce Hill,31/07/2015,1052.35,Transport
Other Education and Children's services,Brummies Taxi,14/07/2015,1443.12,Transport
 Schools,BRW Solutions Ltd,27/07/2015,8412.00,Third Party
 Schools,Bsquared,23/07/2015,2475.00,Supplies and Services
 Schools,BT BUSINESS DIRECT LTD,14/07/2015,489.26,Supplies and Services
Health Trust,BT CSDP DUTY,27/07/2015,436.48,Supplies and Services
 Schools,BT Plc,21/07/2015,499.12,Supplies and Services
ICT,BT Plc,29/07/2015,788.37,Supplies and Services
 Schools,Buckingham's Nursery Sch Ltd,21/07/2015,1995.00,Premises
 Schools,BUDGET PAPER SUPPLIES LTD,16/07/2015,507.40,Supplies and Services
 Schools,BUDGET PAPER SUPPLIES LTD,17/07/2015,457.10,Supplies and Services
 Schools,Buildbase,30/07/2015,478.62,Premises
 Schools,BURCONIX LTD,20/07/2015,3335.71,Supplies and Services
 Schools,BURCONIX LTD,29/07/2015,5527.09,Supplies and Services
 Schools,BURDEN BASKET,01/07/2015,0.00,Supplies and Services
 Schools,Burnett & Associates Ltd,06/07/2015,2093.43,Supplies and Services
 Schools,Burnett & Associates Ltd,16/07/2015,3424.88,Supplies and Services
 Schools,Burnett & Associates Ltd,17/07/2015,3382.57,Supplies and Services
 Schools,Burnett & Associates Ltd,27/07/2015,1235.18,Supplies and Services
Trading Service County Fleet Care,Burnt Tree Vehicle Solutions,24/07/2015,1928.40,Transport
 CXO,BURTON  & DISTRICT MIND,20/07/2015,560.00,Supplies and Services
Adult Social Care,BURTON ADDICTION CENTRE,08/07/2015,156717.66,Supplies and Services
 Schools,Burton Albion Community Trust,10/07/2015,3396.00,Employees
 Schools,Burton Albion Community Trust,21/07/2015,4024.00,Employees
 Schools,Burton Albion Community Trust,22/07/2015,1680.00,Employees
 Schools,Burton Albion Community Trust,21/07/2015,5322.00,Supplies and Services
Adult Social Care,Burton Albion Community Trust,08/07/2015,560.00,Supplies and Services
ICT,Burton Albion Community Trust,22/07/2015,3690.00,Supplies and Services
ICT,BURTON CANOE CLUB,16/07/2015,712.50,Supplies and Services
 Schools,BURTON ENVIRONMENTAL SERVS LTD,30/07/2015,2850.00,Capital
 Schools,BURTON ENVIRONMENTAL SERVS LTD,21/07/2015,1217.00,Capital
 Schools,BURTON ENVIRONMENTAL SERVS LTD,23/07/2015,1259.00,Capital
 Schools,BURTON ENVIRONMENTAL SERVS LTD,21/07/2015,1300.00,Premises
Planning & Economic Development,BURTON ENVIRONMENTAL SERVS LTD,09/07/2015,65000.00,Premises
 Schools,BURTON GLASS,14/07/2015,896.39,Premises
Adult Social Care,BURTON HOSPITALS N H S TRUST,02/07/2015,0.00,Supplies and Services
Adult Social Care,BURTON HOSPITALS NHS TRUST,15/07/2015,41039.97,Supplies and Services
Adult Social Care,BURTON HOSPITALS NHS TRUST,29/07/2015,7883.27,Supplies and Services
Law & Governence,Burton RFC,16/07/2015,4000.00,Third Party
Adult Social Care,Burton upon Trent & District Y,20/07/2015,2017.90,Supplies and Services
 Schools,BUSINESS PRODUCTS,23/07/2015,771.05,Supplies and Services
Planning & Economic Development,BUSINESS WATCH GUARDING LTD,14/07/2015,6324.46,Supplies and Services
Planning & Economic Development,BUXTONS LTD,23/07/2015,889.17,Premises
Other Education and Children's services,BY THE BRIDGE,27/07/2015,36456.89,Supplies and Services
Other Education and Children's services,BY THE BRIDGE,27/07/2015,4295.72,Third Party
 Schools,C A HOUGHTON,10/07/2015,1016.00,Employees
 Schools,C A HOUGHTON,31/07/2015,762.00,Employees
 Schools,C C S Media Ltd,15/07/2015,750.00,Third Party
Highways and transport,C Castree,27/07/2015,650.00,Supplies and Services
 Schools,C COOPER,17/07/2015,1200.00,Supplies and Services
 Schools,C COOPER,22/07/2015,630.00,Supplies and Services
 Schools,C DAVIS,03/07/2015,714.40,Supplies and Services
 Schools,C DAVIS,07/07/2015,1483.20,Supplies and Services
 Schools,C F Corporate Finance Ltd,01/07/2015,489.94,Supplies and Services
 CXO,C Hardy,14/07/2015,550.00,Supplies and Services
 CXO,C HEWETSON,28/07/2015,960.00,Supplies and Services
 Schools,C HOLLINGHURST,30/07/2015,775.50,Supplies and Services
Health Trust,C M COMMUNITY CARE SERVICES LT,06/07/2015,511.92,Supplies and Services
Health Trust,C M COMMUNITY CARE SERVICES LT,13/07/2015,511.92,Supplies and Services
Health Trust,C M COMMUNITY CARE SERVICES LT,21/07/2015,511.92,Supplies and Services
Health Trust,C M COMMUNITY CARE SERVICES LT,22/07/2015,1023.84,Supplies and Services
Health Trust,C M COMMUNITY CARE SERVICES LT,27/07/2015,511.92,Supplies and Services
 Schools,C Natural Music Service,14/07/2015,741.44,Employees
Law & Governence,C Strongman,10/07/2015,720.00,Supplies and Services
ICT,C2C Alliance Ltd,17/07/2015,25600.00,Supplies and Services
Highways and transport,CA TELECOM UK LTD,30/07/2015,0.00,Capital
Highways and transport,CA TELECOM UK LTD,31/07/2015,13207.01,Capital
Other Education and Children's services,CACI Ltd,10/07/2015,10450.00,Supplies and Services
 CXO,CALBARRIE COMPLIANCE SERVICES,03/07/2015,1401.00,Premises
 Schools,CALBARRIE COMPLIANCE SERVICES,27/07/2015,577.61,Premises
Corporate & Democratic Core,CALBARRIE COMPLIANCE SERVICES,17/07/2015,554.25,Premises
 Schools,Calloway Green Ltd,23/07/2015,850.00,Supplies and Services
Adult Social Care,Cambian Learning Disabilities,24/07/2015,11182.68,Supplies and Services
 Schools,CAMBRIDGE UNIVERSITY PRESS,20/07/2015,1650.69,Supplies and Services
Other Education and Children's services,CANNOCK CABS & CO,14/07/2015,3977.00,Transport
Planning & Economic Development,CANNOCK CABS & CO,14/07/2015,1835.60,Transport
Planning & Economic Development,CANNOCK CABS & CO,17/07/2015,1460.80,Transport
Law & Governence,Cannock Chase Arts Council,06/07/2015,2000.00,Third Party
 CXO,CANNOCK CHASE COUNCIL,09/07/2015,3585.73,Premises
 Schools,CANNOCK CHASE COUNCIL,06/07/2015,665.00,Capital
 Schools,CANNOCK CHASE COUNCIL,10/07/2015,893.34,Supplies and Services
Corporate & Democratic Core,CANNOCK CHASE COUNCIL,09/07/2015,7338.75,Premises
Environment,CANNOCK CHASE COUNCIL,29/07/2015,80299.29,Supplies and Services
Highways and transport,CANNOCK CHASE COUNCIL,09/07/2015,30000.00,Capital
Highways and transport,CANNOCK CHASE COUNCIL,02/07/2015,504.00,Supplies and Services
Property,CANNOCK CHASE COUNCIL,31/07/2015,900.00,Capital
Property,CANNOCK CHASE COUNCIL,27/07/2015,2500.00,Capital
 Schools,CANNOCK CHASE HIGH SCHOOL,07/07/2015,1350.00,Employees
 Schools,CANNOCK CHASE HIGH SCHOOL,13/07/2015,9750.00,Employees
ICT,CANON (UK) LTD,21/07/2015,850.00,Supplies and Services
 Schools,CANON UK LTD,17/07/2015,508.80,Supplies and Services
Trading Service Central Print & Design,CANON UK LTD,24/07/2015,8606.59,Supplies and Services
 Schools,CANPRINT (STOKE) LTD,24/07/2015,425.00,Supplies and Services
Law & Governence,CANWELL ESTATE AGRICULTURAL SO,21/07/2015,500.00,Third Party
 Schools,CAPITA BUSINESS SERVICES LTD,13/07/2015,675.00,Supplies and Services
 Schools,CAPITA BUSINESS SERVICES LTD,14/07/2015,675.00,Supplies and Services
 Schools,CAPITA BUSINESS SERVICES LTD,15/07/2015,1460.00,Supplies and Services
 Schools,CAPITA BUSINESS SERVICES LTD,16/07/2015,668.64,Supplies and Services
 Schools,CAPITA BUSINESS SERVICES LTD,21/07/2015,496.50,Supplies and Services
 Schools,CAPITA BUSINESS SERVICES LTD,23/07/2015,1170.00,Supplies and Services
 Schools,CAPITA BUSINESS SERVICES LTD,29/07/2015,590.00,Supplies and Services
Adult Social Care,CAPITA BUSINESS SERVICES LTD,23/07/2015,6137.29,Supplies and Services
Entrust,CAPITA BUSINESS SERVICES LTD,10/07/2015,399.00,Employees
ICT,CAPITA BUSINESS SERVICES LTD,22/07/2015,1000.00,Supplies and Services
Other Education and Children's services,CAPITA BUSINESS SERVICES LTD,10/07/2015,399.00,Employees
 Schools,CAPITA EDUCATION RESOURCING,01/07/2015,987.50,Employees
 Schools,CAPITA EDUCATION RESOURCING,08/07/2015,987.50,Employees
 Schools,CAPITA EDUCATION RESOURCING,14/07/2015,420.00,Employees
 Schools,CAPITA EDUCATION RESOURCING,22/07/2015,790.00,Employees
 Schools,Capita Education Service,20/07/2015,2273.34,Supplies and Services
 Schools,Capita IT Services Limited,08/07/2015,558.56,Supplies and Services
 Schools,Capita IT Services Limited,13/07/2015,2988.28,Supplies and Services
Entrust,Capita IT Services Limited,08/07/2015,-610.95,Supplies and Services
Property,Capita Property & Infrastructu,27/07/2015,2550.00,Capital
Finance,CAPITA RESOURCING LIMITED,15/07/2015,2081.40,Employees
 CXO,CAPITA RESOURCING LTD,07/07/2015,7085.00,Supplies and Services
 CXO,CAPITA RESOURCING LTD,22/07/2015,11172.50,Supplies and Services
Other Education and Children's services,CAPITA RESOURCING LTD,31/07/2015,4840.00,Supplies and Services
Other Education and Children's services,Capita Translation & Interpret,23/07/2015,4252.82,Supplies and Services
Other Education and Children's services,CAPSTONE VISION FOSTER CARE LT,27/07/2015,35632.25,Supplies and Services
 Schools,CARCOLL EDUCATIONAL CONSULTANT,24/07/2015,900.00,Employees
 Schools,Care by Claire,09/07/2015,2896.08,Supplies and Services
ICT,Care First Management Services,14/07/2015,480.00,Supplies and Services
Other Education and Children's services,Care in Mind,27/07/2015,4788.12,Third Party
Adult Social Care,Care Monitoring 2000 Ltd,30/07/2015,77800.00,Supplies and Services
Health Trust,CARE PLUS,02/07/2015,605.64,Supplies and Services
Health Trust,CARE PLUS,08/07/2015,3532.90,Supplies and Services
Health Trust,CARE PLUS,09/07/2015,1869.42,Supplies and Services
Health Trust,CARE PLUS,10/07/2015,18825.91,Supplies and Services
 Schools,CARE TODAY,15/07/2015,15631.88,Supplies and Services
 Schools,CARE TODAY,16/07/2015,7105.40,Supplies and Services
Other Education and Children's services,CARE TODAY,27/07/2015,20700.87,Third Party
Health Trust,CareHomes Stoke Ltd,21/07/2015,927.50,Supplies and Services
Other Education and Children's services,CareTech Community Services,27/07/2015,50042.84,Third Party
Adult Social Care,CAREWORKS LTD,23/07/2015,8500.00,Supplies and Services
Adult Social Care,CARLTON STREET SURGERY,23/07/2015,700.80,Supplies and Services
 Schools,Cartridge SAVE Ltd,15/07/2015,519.62,Supplies and Services
ICT,CARVER (WOLVERHAMPTON) LTD,10/07/2015,793.79,Supplies and Services
 Schools,CASTELE CONSULTANCY LTD,01/07/2015,100.00,Employees
 Schools,CASTELE CONSULTANCY LTD,16/07/2015,100.00,Employees
 Schools,CASTELE CONSULTANCY LTD,01/07/2015,1915.00,Supplies and Services
 Schools,CASTELE CONSULTANCY LTD,16/07/2015,1915.00,Supplies and Services
 Schools,Catering Management Cons Ltd,22/07/2015,2250.00,Supplies and Services
 Schools,CBC COMPUTER SYSTEMS LTD,03/07/2015,1050.00,Supplies and Services
 Schools,CBC COMPUTER SYSTEMS LTD,13/07/2015,754.00,Supplies and Services
 Schools,CBC COMPUTER SYSTEMS LTD,17/07/2015,1132.00,Supplies and Services
 Schools,CBC COMPUTER SYSTEMS LTD,22/07/2015,1488.95,Supplies and Services
Planning & Economic Development,CBG TRADE LTD,07/07/2015,5669.00,Supplies and Services
Adult Social Care,CC Support,20/07/2015,2415.00,Supplies and Services
Health Trust,CC Support,02/07/2015,850.00,Supplies and Services
Health Trust,CC Support,16/07/2015,790.00,Supplies and Services
 Schools,CCS Media Ltd,14/07/2015,460.60,Supplies and Services
 Schools,CELSIAN,03/07/2015,2045.96,Employees
 Schools,CELSIAN,13/07/2015,880.00,Employees
 Schools,CELSIAN,17/07/2015,3182.93,Employees
 Schools,CELSIAN,24/07/2015,556.50,Employees
 Schools,Celsian Group limited,10/07/2015,868.00,Employees
 Schools,Celsian Group limited,15/07/2015,868.00,Employees
 Schools,Celsian Group limited,17/07/2015,868.00,Employees
Planning & Economic Development,CEN GROUP LTD,15/07/2015,5044.00,Transport
Planning & Economic Development,CEN GROUP LTD,16/07/2015,13583.14,Transport
Planning & Economic Development,Central Connect Ltd,22/07/2015,8810.00,Transport
 Schools,CENTRAL THEATRE SUPPLIES,13/07/2015,994.00,Supplies and Services
 Schools,CGP,09/07/2015,1135.00,Supplies and Services
 Schools,CGP,14/07/2015,1453.20,Supplies and Services
 Schools,CGP,23/07/2015,1323.00,Supplies and Services
ICT,Chadsmead Primary Academy,22/07/2015,4500.00,Supplies and Services
 CXO,Challenging Boundaries Consult,21/07/2015,2450.00,Supplies and Services
 Schools,CHAMBERLAIN MUSIC,01/07/2015,528.95,Supplies and Services
 Schools,CHAMBERLAIN MUSIC,16/07/2015,1466.63,Supplies and Services
ICT,Chameleon School of Constructi,14/07/2015,440.00,Supplies and Services
 Schools,Chancery Consulting Ltd,20/07/2015,1980.00,Premises
Other Education and Children's services,Changes Heath & Wellbeing,15/07/2015,7072.00,Supplies and Services
 Schools,Changing Education Limited,27/07/2015,800.00,Supplies and Services
Law & Governence,Charity for prov of a rec grou,08/07/2015,500.00,Third Party
Other Education and Children's services,Charles Watson Taxis,23/07/2015,2142.00,Supplies and Services
Other Education and Children's services,Charles Watson Taxis,09/07/2015,1286.00,Transport
Other Education and Children's services,Charles Watson Taxis,14/07/2015,3995.16,Transport
ICT,Chase Aqua Rural Enterprise CI,15/07/2015,1440.00,Supplies and Services
Other Education and Children's services,Chase Aqua Rural Enterprise CI,01/07/2015,1000.00,Supplies and Services
Other Education and Children's services,Chase Aqua Rural Enterprise CI,23/07/2015,525.00,Supplies and Services
 Schools,Chase Medics & Training Servic,31/07/2015,675.00,Supplies and Services
Trading Service Central Print & Design,CHASE PROMOTIONS LTD,03/07/2015,426.00,Supplies and Services
Trading Service Central Print & Design,CHASE PROMOTIONS LTD,28/07/2015,1685.00,Supplies and Services
 Schools,CHASE TRAINING SOLUTIONS,31/07/2015,-70.00,Supplies and Services
Other Education and Children's services,CHASE TRAVEL LTD,14/07/2015,2666.30,Transport
Other Education and Children's services,CHASE TRAVEL LTD,29/07/2015,1333.15,Transport
Highways and transport,CHASETOWN CIVIL ENGINEERING LT,21/07/2015,11910.73,Capital
Other Education and Children's services,CHASETOWN FC YOUTH SECTION,24/07/2015,1000.00,Supplies and Services
 Schools,Cheadle Royal Hospital,03/07/2015,8837.50,Supplies and Services
Law & Governence,CHEBSEY PARISH HALL LTD,02/07/2015,2000.00,Third Party
Law & Governence,CHECKLEY COMMUNITY CTR COMMITT,24/07/2015,1656.00,Third Party
Adult Social Care,Chelsea & Westminster Hosp NHS,23/07/2015,847.55,Supplies and Services
Adult Social Care,CHERRY ORCHARD GARDEN SERVICES,21/07/2015,2275.00,Supplies and Services
Health Trust,Cheshire & Staffs Homecare Ltd,14/07/2015,6672.72,Supplies and Services
Health Trust,Cheshire & Staffs Homecare Ltd,29/07/2015,8102.01,Supplies and Services
 Schools,CHESHIRE EAST COUNCIL,21/07/2015,1352.16,Employees
ICT,CHESHIRE EAST COUNCIL,16/07/2015,800.00,Supplies and Services
 Schools,Chess Ltd,16/07/2015,492.72,Supplies and Services
 Schools,CHESTER ZOO (NTH ENG ZOO SOC),02/07/2015,750.00,Supplies and Services
 Schools,CHESTER ZOO (NTH ENG ZOO SOC),22/07/2015,1060.00,Supplies and Services
 Schools,CHESTER ZOO (NTH ENG ZOO SOC),23/07/2015,1537.50,Supplies and Services
 Schools,CHESTER ZOO (NTH ENG ZOO SOC),28/07/2015,579.00,Supplies and Services
 Schools,CHESTER ZOO (NTH ENG ZOO SOC),29/07/2015,642.00,Supplies and Services
 Schools,Chesterton Academy Trust,01/07/2015,6210.96,Supplies and Services
Other Education and Children's services,CHIEF CONSTABLE OF STAFFORDSHI,27/07/2015,45000.00,Supplies and Services
 Schools,Child Behaviour Direct,23/07/2015,540.00,Employees
Other Education and Children's services,CHILDCARE BUREAU LTD,27/07/2015,12653.69,Supplies and Services
Other Education and Children's services,Children's Family Trust,27/07/2015,3551.65,Supplies and Services
 Schools,Chocolate Trading Co,21/07/2015,424.95,Supplies and Services
Other Education and Children's services,Chris Dennison Consulting Ltd,20/07/2015,546.80,Supplies and Services
 Schools,CHRIS QUIGLEY EDUCATION LTD,10/07/2015,700.00,Employees
 Schools,CHRIS QUIGLEY EDUCATION LTD,15/07/2015,975.00,Employees
 Schools,CHRIS QUIGLEY EDUCATION LTD,06/07/2015,975.00,Supplies and Services
 Schools,CHRIS QUIGLEY EDUCATION LTD,07/07/2015,975.00,Supplies and Services
 Schools,CHRIS QUIGLEY EDUCATION LTD,21/07/2015,1015.90,Supplies and Services
Health Trust,Christies Care Ltd,08/07/2015,3676.00,Supplies and Services
 Schools,CHUBB FIRE & SECURITY LTD,01/07/2015,447.60,Premises
 Schools,CHUBB FIRE & SECURITY LTD,15/07/2015,951.95,Premises
Other Education and Children's services,Chuckle Productions LTD,24/07/2015,4215.00,Supplies and Services
ICT,CIE GROUP LTD,13/07/2015,1101.60,Supplies and Services
Highways and transport,CIPFA,06/07/2015,750.00,Supplies and Services
Adult Social Care,CITIZENS ADVICE - NORTH REGION,17/07/2015,1655.00,Supplies and Services
 Schools,City & General UK Ltd,02/07/2015,2273.47,Employees
Other Education and Children's services,CITY & GUILDS,17/07/2015,992.00,Supplies and Services
Other Education and Children's services,CITY BUSES & COACHES,14/07/2015,3666.30,Transport
Other Education and Children's services,CITY BUSES & COACHES,31/07/2015,1999.80,Transport
Other Education and Children's services,CITY CABS 2000 Ltd,14/07/2015,29613.76,Transport
 Schools,CITY CARS (MIDLANDS)LTD,15/07/2015,710.00,Transport
Other Education and Children's services,CITY CARS (MIDLANDS)LTD,14/07/2015,8050.30,Transport
Other Education and Children's services,CITY CENTRE CENTRAL,17/07/2015,83206.74,Transport
Other Education and Children's services,CITY CENTRE CENTRAL,27/07/2015,1622.10,Transport
ICT,City of Wolverhampton College,07/07/2015,8400.00,Supplies and Services
 Schools,CITY PAPERS LTD,22/07/2015,1292.47,Supplies and Services
Health Trust,CJB Care Ltd,20/07/2015,1764.00,Supplies and Services
Health Trust,CJB Care Ltd,21/07/2015,2478.00,Supplies and Services
 Schools,CLARANET LTD,17/07/2015,660.00,Supplies and Services
 Schools,CLARKEPRINT LTD,17/07/2015,2160.50,Supplies and Services
 Schools,Class One Dance Academy,13/07/2015,1620.00,Supplies and Services
 Schools,Cleanevent Group,13/07/2015,0.00,Supplies and Services
 CXO,CLEANING & HYGIENE DIST LTD,03/07/2015,423.50,Supplies and Services
 CXO,CLEANING & HYGIENE DIST LTD,20/07/2015,470.42,Supplies and Services
 Schools,CLEANING & HYGIENE DIST LTD,23/07/2015,120.46,Premises
 Schools,CLEANING & HYGIENE DIST LTD,30/07/2015,478.80,Premises
 Schools,CLEANING & HYGIENE DIST LTD,01/07/2015,782.50,Premises
 Schools,CLEANING & HYGIENE DIST LTD,03/07/2015,529.74,Premises
 Schools,CLEANING & HYGIENE DIST LTD,23/07/2015,317.25,Premises
 Schools,CLEANING & HYGIENE DIST LTD,27/07/2015,880.40,Premises
 Schools,CLEANING & HYGIENE DIST LTD,28/07/2015,44.34,Premises
 Schools,CLEANING & HYGIENE DIST LTD,29/07/2015,472.60,Premises
 Schools,CLEANING & HYGIENE DIST LTD,08/07/2015,703.79,Supplies and Services
 Schools,CLEANING & HYGIENE DIST LTD,16/07/2015,440.86,Supplies and Services
 Schools,CLEANING & HYGIENE DIST LTD,28/07/2015,436.59,Supplies and Services
 Schools,CLEANING FORCE OFFICE CLEANERS,24/07/2015,2127.20,Premises
 Schools,CLEAPSS,02/07/2015,14034.17,Supplies and Services
ICT,Clickers Archery Ltd,23/07/2015,497.83,Supplies and Services
Other Education and Children's services,Clifford House Fostering Ltd,27/07/2015,21639.35,Supplies and Services
Trading Service County Fleet Care,Clifford Thames(Holdings) Ltd,14/07/2015,4797.96,Supplies and Services
 Schools,CLIMATE HEATING & PLUMBING LTD,24/07/2015,3581.55,Premises
Planning & Economic Development,CLIVE KEBLE CONSULTING LTD,14/07/2015,720.00,Supplies and Services
 Schools,CLOTHING 4 LTD,24/07/2015,2116.00,Supplies and Services
Other Education and Children's services,CLOWES COACHES,16/07/2015,2892.34,Transport
ICT,Club Europe Holidays Ltd,07/07/2015,5056.00,Supplies and Services
 Schools,Clubs Complete Ltd,03/07/2015,875.00,Employees
Other Education and Children's services,CMP MINI BUSES,14/07/2015,2891.46,Transport
ICT,CMS (CABLE MANAGEMENT SPLS) LT,10/07/2015,919.30,Supplies and Services
 Schools,CMSC,21/07/2015,800.00,Employees
Other Education and Children's services,COASTAL LINER LTD,14/07/2015,2717.00,Transport
Planning & Economic Development,COASTAL LINER LTD,14/07/2015,949.56,Transport
 Schools,COIF CHARITIES INVESTMENT FUND,27/07/2015,2000.00,Capital
 Schools,Collins Education,15/07/2015,420.00,Supplies and Services
 Schools,COLLINSON & GRAINGER LTD,23/07/2015,5094.00,Premises
Property,COLLINSON & GRAINGER LTD,09/07/2015,1215.00,Capital
 Schools,Commando Joes Fun & Fitness Lt,06/07/2015,4000.00,Supplies and Services
Trading Service County Fleet Care,COMMONWHEELS COMMUNITY INTERES,16/07/2015,641.00,Transport
Other Education and Children's services,COMMUNITY LINK STAFFORD & DIST,15/07/2015,19930.10,Transport
Planning & Economic Development,COMMUNITY LINK STAFFORD & DIST,22/07/2015,5306.50,Supplies and Services
Planning & Economic Development,COMMUNITY LINK STAFFORD & DIST,15/07/2015,505.33,Transport
Other Education and Children's services,Community Transport Swadlincot,14/07/2015,22746.58,Transport
Adult Social Care,Companies House Finance,13/07/2015,554.00,Supplies and Services
Adult Social Care,Companies House Finance,14/07/2015,508.00,Supplies and Services
ICT,COMPANY OF HORSEMEN LTD,15/07/2015,5135.00,Supplies and Services
Other Education and Children's services,Compass Psychology Services,01/07/2015,1272.80,Supplies and Services
Other Education and Children's services,COMPASS Services For Children,27/07/2015,10935.94,Supplies and Services
 Schools,COMPLETE CONSTRUCTION (MIDS) L,14/07/2015,21632.00,Supplies and Services
 Schools,Complete Pool Controls Ltd,14/07/2015,714.15,Premises
 Schools,COMPOUND SECURITY SYSTEMS LTD,14/07/2015,500.00,Premises
 Schools,COMPUTER FACTORY,13/07/2015,813.00,Supplies and Services
 Schools,COMPUTER FACTORY,15/07/2015,1659.00,Supplies and Services
 Schools,COMPUTER XPLORERS,21/07/2015,780.00,Employees
 Schools,COMPUTER XPLORERS,21/07/2015,720.00,Supplies and Services
Entrust,Computerland UK Ltd,31/07/2015,419.59,Supplies and Services
 Schools,CONCERO UK LTD,03/07/2015,3795.00,Supplies and Services
 Schools,CONCERO UK LTD,07/07/2015,850.52,Supplies and Services
 Schools,CONCERO UK LTD,14/07/2015,518.00,Supplies and Services
 Schools,CONCERO UK LTD,21/07/2015,2321.28,Supplies and Services
 Schools,CONCERO UK LTD,23/07/2015,3346.20,Supplies and Services
 Schools,CONCERO UK LTD,24/07/2015,495.00,Supplies and Services
 Schools,CONCERO UK LTD,29/07/2015,495.00,Supplies and Services
 Schools,CONCITA MICRO SYSTEMS LTD,06/07/2015,1862.90,Supplies and Services
Law & Governence,CONCORDE ANIMAL RESCUE,08/07/2015,500.00,Third Party
 Schools,CONNAUGHT EDUCATION,17/07/2015,440.00,Employees
 Schools,CONNECT ELECTRICAL (STAFFS) LT,28/07/2015,1868.00,Premises
 Schools,Connect Technology Group,02/07/2015,1885.50,Supplies and Services
 Schools,CONNEVANS LTD,08/07/2015,591.74,Supplies and Services
 Schools,CONNEX HOLDINGS LTD,10/07/2015,450.00,Employees
 Schools,CONNEX HOLDINGS LTD,13/07/2015,450.00,Employees
 Schools,CONNEX HOLDINGS LTD,27/07/2015,875.00,Employees
 Schools,CONNEX HOLDINGS LTD,31/07/2015,450.00,Employees
 Schools,Connex-Education.Com,02/07/2015,475.00,Employees
 Schools,Connex-Education.Com,14/07/2015,5730.00,Employees
 Schools,Consult Sol Ltd,15/07/2015,960.00,Transport
 Schools,CONTACT GROUP,03/07/2015,975.00,Supplies and Services
 Schools,CONTRACT AND HOME BLINDS LTD,06/07/2015,1525.00,Supplies and Services
Other Education and Children's services,COPELAND'S TOURS (S-O-T) LTD,14/07/2015,6326.22,Transport
 Schools,COPPICE ACADEMY,15/07/2015,6500.00,Supplies and Services
Adult Social Care,CORE ASSETS CHILDREN'S SERVICE,16/07/2015,12124.98,Supplies and Services
Other Education and Children's services,Core Assets Fostering Ltd,27/07/2015,103156.04,Supplies and Services
Other Education and Children's services,Core Assets Fostering Ltd,27/07/2015,10083.30,Third Party
Other Education and Children's services,Corky Cars T/a Corkys Corporat,15/07/2015,705.30,Supplies and Services
Other Education and Children's services,Corky Cars T/a Corkys Corporat,15/07/2015,15302.76,Transport
 CXO,Corona Energy Retail 4 Ltd,30/07/2015,2337.54,Premises
 Schools,Corona Energy Retail 4 Ltd,29/07/2015,753.65,Capital
 Schools,Corona Energy Retail 4 Ltd,01/07/2015,2533.18,Premises
 Schools,Corona Energy Retail 4 Ltd,02/07/2015,553.42,Premises
 Schools,Corona Energy Retail 4 Ltd,07/07/2015,456.66,Premises
 Schools,Corona Energy Retail 4 Ltd,14/07/2015,625.04,Premises
 Schools,Corona Energy Retail 4 Ltd,16/07/2015,1577.22,Premises
 Schools,Corona Energy Retail 4 Ltd,21/07/2015,642.54,Premises
 Schools,Corona Energy Retail 4 Ltd,29/07/2015,55883.86,Premises
 Schools,Corona Energy Retail 4 Ltd,30/07/2015,588.34,Premises
Corporate & Democratic Core,Corona Energy Retail 4 Ltd,30/07/2015,462.46,Premises
Other Education and Children's services,Corona Energy Retail 4 Ltd,03/07/2015,441.40,Premises
Planning & Economic Development,Corona Energy Retail 4 Ltd,29/07/2015,1577.23,Premises
Highways and transport,COSTAR UK LTD,29/07/2015,2736.00,Supplies and Services
 Schools,COSTCUTTERSUK.COM,29/07/2015,715.78,Supplies and Services
 Schools,Country Grounds Service Ltd,20/07/2015,3331.50,Premises
 Schools,COUNTRY RUSTICS,09/07/2015,850.00,Premises
 Schools,COUNTRYSIDE T'ING & TREE MGMNT,20/07/2015,780.00,Premises
 Schools,Countrywide Grounds Maint Ltd,14/07/2015,1680.00,Premises
Adult Social Care,COUNTRYWIDE HEALTHCARE SUPPLIE,01/07/2015,1572.00,Capital
Adult Social Care,Coven Pharmacy,23/07/2015,560.90,Supplies and Services
Adult Social Care,COVENTRY CITY COUNCIL,13/07/2015,799.00,Supplies and Services
Planning & Economic Development,CPL DISTRIBUTION,01/07/2015,530.00,Supplies and Services
Highways and transport,CR BOWEN CONTRACTORS,21/07/2015,9785.00,Capital
Adult Social Care,Craegmoor Bentons Lane 297,08/07/2015,21136.00,Supplies and Services
Adult Social Care,Craegmoor Priory Group,01/07/2015,10661.26,Third Party
Adult Social Care,Craegmoor S Y I 371,10/07/2015,1831.80,Third Party
Adult Social Care,Craegmoor S Y I 371,24/07/2015,1831.80,Third Party
Adult Social Care,Craegmoor S Y I 371,29/07/2015,5049.55,Third Party
Cultural Services,CRAMER MUSIC LTD,14/07/2015,524.61,Supplies and Services
Cultural Services,CRAMER MUSIC LTD,30/07/2015,528.01,Supplies and Services
 Schools,Cranedale Centre,09/07/2015,500.00,Supplies and Services
Trading Service Central Print & Design,CREATIVE COPY N COLOUR LTD,01/07/2015,2410.00,Supplies and Services
 Schools,Creative Corner,16/07/2015,799.00,Supplies and Services
 Schools,CREATIVE PLAY UK LTD,16/07/2015,954.00,Premises
 Schools,CREATIVE PLAY UK LTD,24/07/2015,855.00,Premises
Adult Social Care,CREATIVE SUPPORT,29/07/2015,-518.72,Income
Adult Social Care,CREATIVE SUPPORT,01/07/2015,39009.02,Third Party
Adult Social Care,CREATIVE SUPPORT,03/07/2015,17038.00,Third Party
Adult Social Care,CREATIVE SUPPORT,20/07/2015,22100.15,Third Party
Adult Social Care,CREATIVE SUPPORT,29/07/2015,20587.92,Third Party
 Schools,CREATIVE WEAR & EMBROIDERY LTD,24/07/2015,961.06,Supplies and Services
 Schools,CRESTED SCHOOLWEAR,06/07/2015,1601.60,Supplies and Services
 Schools,CRICK SOFTWARE LTD,14/07/2015,2801.50,Supplies and Services
 Schools,CRICK SOFTWARE LTD,20/07/2015,706.50,Supplies and Services
Adult Social Care,Crime Reduction Initiatives,22/07/2015,112398.25,Supplies and Services
Adult Social Care,CRISIS PREVENTION INSTITUTE,13/07/2015,900.00,Employees
Adult Social Care,CRISIS PREVENTION INSTITUTE,14/07/2015,1800.00,Employees
 Schools,crocky trail ltd,27/07/2015,1100.00,Supplies and Services
Planning & Economic Development,Cromwell Tools,17/07/2015,560.00,Supplies and Services
 Schools,CROPPER GROUNDS MAINTENANCE LT,14/07/2015,551.66,Employees
 Schools,CROPPER GROUNDS MAINTENANCE LT,29/07/2015,450.00,Premises
 Schools,CROPPER GROUNDS MAINTENANCE LT,02/07/2015,2250.00,Premises
 Schools,CROPPER GROUNDS MAINTENANCE LT,08/07/2015,909.00,Premises
 Schools,CROPPER GROUNDS MAINTENANCE LT,10/07/2015,1743.73,Premises
 Schools,CROPPER GROUNDS MAINTENANCE LT,13/07/2015,1086.66,Premises
 Schools,CROPPER GROUNDS MAINTENANCE LT,14/07/2015,4408.16,Premises
 Schools,CROPPER GROUNDS MAINTENANCE LT,15/07/2015,708.91,Premises
 Schools,CROPPER GROUNDS MAINTENANCE LT,22/07/2015,900.00,Premises
 Schools,CROPPER GROUNDS MAINTENANCE LT,27/07/2015,826.25,Premises
 Schools,CROPPER GROUNDS MAINTENANCE LT,29/07/2015,5069.41,Premises
 Schools,CROPPER GROUNDS MAINTENANCE LT,17/07/2015,795.00,Third Party
 Schools,CROSS KEYS CLUB,09/07/2015,594.00,Supplies and Services
 Schools,CROSSBAR COACHING EDUC IN SPOR,17/07/2015,1767.50,Supplies and Services
 Schools,CROSSBAR COACHING EDUC IN SPOR,20/07/2015,660.00,Supplies and Services
 Schools,CROSSBOW EDUCATION LTD,27/07/2015,636.25,Supplies and Services
Adult Social Care,Crossroads (Staffs)Carng for C,08/07/2015,6527.24,Supplies and Services
Adult Social Care,Crossroads (Staffs)Carng for C,21/07/2015,6616.16,Supplies and Services
 Schools,Crown Oil UK,13/07/2015,4095.00,Premises
 Schools,Cruckton Hall Ltd,29/07/2015,29166.67,Supplies and Services
 Schools,CRUSADE TRAVEL,06/07/2015,650.00,Supplies and Services
Other Education and Children's services,CRUSADE TRAVEL,14/07/2015,14605.15,Transport
 Schools,CRYSTAL RADIO SYSTEMS LTD,30/07/2015,777.00,Supplies and Services
 Schools,CSE EDUCATION SYSTEMS LTD,24/07/2015,1125.00,Supplies and Services
Highways and transport,CSE SITES LTD,24/07/2015,551.28,Supplies and Services
Health Trust,CSPC Healthcare Ltd,30/07/2015,506.25,Supplies and Services
Health Trust,CSPC Healthcare Ltd,13/07/2015,506.25,Supplies and Services
Health Trust,CSPC Healthcare Ltd,21/07/2015,506.25,Supplies and Services
 Schools,CSS Pools and Leisure,22/07/2015,459.50,Premises
 CXO,CTC PHYSIOTHERAPY,14/07/2015,5676.50,Supplies and Services
Other Education and Children's services,CTT (WOLVERHAMPTON) LTD,15/07/2015,12581.22,Transport
Highways and transport,Cubic Transportatn Systms ITMS,14/07/2015,2555.55,Supplies and Services
Cultural Services,Cultural Sisters,03/07/2015,1750.00,Supplies and Services
 CXO,CUMBERLIDGE & SON,01/07/2015,1980.00,Premises
 CXO,CURIUM SOLUTIONS LTD,29/07/2015,40394.28,Supplies and Services
Other Education and Children's services,CURIUM SOLUTIONS LTD,15/07/2015,11499.36,Supplies and Services
Finance,CYCLESCHEME,01/07/2015,1269.15,Supplies and Services
Finance,CYCLESCHEME,07/07/2015,833.33,Supplies and Services
Finance,CYCLESCHEME,13/07/2015,1186.65,Supplies and Services
Finance,CYCLESCHEME,20/07/2015,5119.12,Supplies and Services
Finance,CYCLESCHEME,27/07/2015,2127.59,Supplies and Services
Finance,CYCLESCHEME,31/07/2015,1848.30,Supplies and Services
Highways and transport,CYCLIST TRAINING LTD,20/07/2015,70957.60,Supplies and Services
ICT,Cygnia Technologies Ltd,17/07/2015,723.00,Supplies and Services
Other Education and Children's services,D &  G BUS,08/07/2015,3763.60,Transport
Other Education and Children's services,D &  G BUS,14/07/2015,6629.92,Transport
Planning & Economic Development,D &  G BUS,08/07/2015,43824.18,Transport
Planning & Economic Development,D &  G BUS,14/07/2015,50408.00,Transport
Planning & Economic Development,D &  G BUS,20/07/2015,42025.23,Transport
Other Education and Children's services,D A ALLEN,02/07/2015,479.60,Supplies and Services
Other Education and Children's services,D A ALLEN,13/07/2015,959.20,Supplies and Services
Other Education and Children's services,D A ALLEN,15/07/2015,479.60,Supplies and Services
Other Education and Children's services,D A ALLEN,17/07/2015,479.60,Supplies and Services
Other Education and Children's services,D A ALLEN,21/07/2015,479.60,Supplies and Services
Other Education and Children's services,D A ALLEN,23/07/2015,1438.80,Supplies and Services
Other Education and Children's services,D A R K Cars Ltd,24/07/2015,6236.49,Transport
 Schools,D A WRIGHT,28/07/2015,4000.00,Premises
Other Education and Children's services,D Bate,31/07/2015,1000.00,Employees
 Schools,D E FORD (INSURANCE BROKERS) L,23/07/2015,734.97,Supplies and Services
ICT,D Edwards,16/07/2015,600.00,Supplies and Services
Other Education and Children's services,D G TENNANT,14/07/2015,2501.40,Transport
 Schools,D K S ROOFING LTD,30/07/2015,689.00,Premises
 Schools,D K S ROOFING LTD,17/07/2015,649.00,Premises
Other Education and Children's services,D P JONES TAXIS,14/07/2015,1666.28,Transport
Other Education and Children's services,D P JONES TAXIS,31/07/2015,984.62,Transport
Highways and transport,D R Anslow,14/07/2015,620.00,Supplies and Services
Planning & Economic Development,D R Anslow,14/07/2015,475.00,Supplies and Services
 Schools,D RILEY,24/07/2015,1419.60,Supplies and Services
Other Education and Children's services,D SMITH,21/07/2015,575.00,Supplies and Services
Highways and transport,D STOCKILL,17/07/2015,5000.00,Supplies and Services
Other Education and Children's services,D T Travel,15/07/2015,2824.80,Transport
Highways and transport,D V Lawrence,22/07/2015,2000.00,Capital
ICT,D William,15/07/2015,5823.75,Supplies and Services
Other Education and Children's services,D2 DIGITAL BY DESIGN LTD,15/07/2015,2000.00,Supplies and Services
 Schools,DACONI LTD,21/07/2015,5713.35,Supplies and Services
 Schools,DACTYL PUBLISHING,10/07/2015,875.25,Supplies and Services
 Schools,DACTYL PUBLISHING,27/07/2015,974.00,Supplies and Services
 Schools,DACTYL PUBLISHING,28/07/2015,668.00,Supplies and Services
Adult Social Care,DAISYBROOK LTD,21/07/2015,2814.00,Supplies and Services
Adult Social Care,DAISYBROOK LTD,24/07/2015,5785.72,Supplies and Services
Other Education and Children's services,DAISYBROOK LTD,03/07/2015,1407.00,Third Party
 Schools,DAKOTA6 LTD,10/07/2015,1365.00,Employees
 Schools,DAKOTA6 LTD,17/07/2015,900.00,Employees
 Schools,DAKOTA6 LTD,21/07/2015,780.00,Employees
 Schools,Datacraft Installation Service,03/07/2015,1086.00,Supplies and Services
 Schools,Datacraft Installation Service,10/07/2015,480.00,Third Party
 Schools,DAVIES SPORTS,01/07/2015,514.24,Supplies and Services
 Schools,DAWKES & CO LTD,01/07/2015,41400.00,Capital
 Schools,DAWKES & CO LTD,07/07/2015,591.25,Capital
 Schools,DAWKES & CO LTD,13/07/2015,17713.34,Capital
 Schools,DAWKES & CO LTD,09/07/2015,12596.82,Premises
 Schools,DAWKES & CO LTD,13/07/2015,23025.36,Premises
 Schools,DAWKES & CO LTD,27/07/2015,600.00,Premises
 Schools,DAWKES & CO LTD,01/07/2015,8553.79,Supplies and Services
 Schools,DAWKES & CO LTD,27/07/2015,7423.33,Supplies and Services
Planning & Economic Development,DAWKES & CO LTD,21/07/2015,450.00,Supplies and Services
Property,DAWKES & CO LTD,07/07/2015,591.25,Capital
Health Trust,Daycare Domicilliary Services,14/07/2015,2364.00,Supplies and Services
 Schools,DAYS CONTRACT HIRE,17/07/2015,744.60,Transport
 Schools,De Vere Venues Ltd,20/07/2015,424.00,Supplies and Services
Adult Social Care,Delam Care Ltd,24/07/2015,-703.04,Income
Adult Social Care,Delam Care Ltd,24/07/2015,50470.59,Supplies and Services
Adult Social Care,Delam Care Ltd,24/07/2015,19931.99,Third Party
Other Education and Children's services,Delam Care Ltd,27/07/2015,21323.56,Third Party
 Schools,Delta Laminates Ltd,24/07/2015,1445.28,Third Party
Tipping St,DEMMA CONTROLS LTD,24/07/2015,2000.00,Capital
 Schools,Derby College,16/07/2015,1650.00,Income
 Schools,DERBYSHIRE COUNTY COUNCIL,14/07/2015,690.00,Supplies and Services
Other Education and Children's services,DERBYSHIRE COUNTY COUNCIL,08/07/2015,1219.80,Supplies and Services
Other Education and Children's services,DERBYSHIRE COUNTY COUNCIL,28/07/2015,1800.00,Supplies and Services
Other Education and Children's services,Derventio Housing Trust,02/07/2015,935.36,Third Party
Health Trust,Desire Care,21/07/2015,1095.92,Supplies and Services
Health Trust,Desire Care,22/07/2015,1009.40,Supplies and Services
 Schools,dfe UK Ltd,24/07/2015,7115.50,Premises
 Schools,dfe UK Ltd,24/07/2015,669.00,Supplies and Services
Other Education and Children's services,Dhaliwal,17/07/2015,867.46,Transport
 Schools,Digital ID Ltd,02/07/2015,1454.15,Supplies and Services
 Schools,Digital Office technology Ltd,15/07/2015,421.67,Supplies and Services
Adult Social Care,Dimensions (UK) Ltd,07/07/2015,6941.20,Third Party
Adult Social Care,Dimensions (UK) Ltd,20/07/2015,6941.20,Third Party
 Schools,DIOCESAN EDUCATION SERVICE,06/07/2015,1445.00,Premises
 Schools,DIOCESAN EDUCATION SERVICE,15/07/2015,3436.59,Premises
 Schools,Diocesan Schools Commission,15/07/2015,1205.50,Supplies and Services
Finance,Disclosure and Barring Service,20/07/2015,37246.00,Employees
 Schools,Discovery Education Europe Lim,01/07/2015,1090.40,Supplies and Services
 Schools,Discovery Education Europe Lim,02/07/2015,0.00,Supplies and Services
 Schools,Discovery Education Europe Lim,06/07/2015,435.00,Supplies and Services
 Schools,Discovery Education Europe Lim,08/07/2015,6020.10,Supplies and Services
 Schools,Discovery Education Europe Lim,27/07/2015,887.40,Supplies and Services
 Schools,Distinct Disposables Ltd,31/07/2015,1432.00,Supplies and Services
 Schools,DJR PLUMBING & HEATING,22/07/2015,10000.00,Premises
Other Education and Children's services,DMR Children Services Ltd,27/07/2015,11452.28,Third Party
 Schools,Dolphin Enterprise Europe Ltd,02/07/2015,1344.99,Supplies and Services
Highways and transport,DONALD COPE & COMPANY,10/07/2015,2311.00,Supplies and Services
Health Trust,Doon Care Ltd,29/07/2015,3497.68,Supplies and Services
 Schools,DOORFIT LTD,31/07/2015,476.06,Premises
 Schools,Dove Valley Prim Schls Sports,28/07/2015,500.00,Supplies and Services
Other Education and Children's services,DOVELIN CARS,15/07/2015,10564.05,Transport
Adult Social Care,Dr A Hitchcock,23/07/2015,677.60,Supplies and Services
Adult Social Care,Dr DO Yates' Practice,22/07/2015,3200.40,Supplies and Services
Adult Social Care,Dr Law & Partners,23/07/2015,525.60,Supplies and Services
Adult Social Care,DR WADDY & PARTNERS,23/07/2015,525.60,Supplies and Services
 Schools,DRAGONFLY TRAINING,16/07/2015,900.00,Employees
Law & Governence,DRAYCOTT CHURCH HALL,08/07/2015,750.00,Third Party
Health Trust,DRAYTON HOME CARE SERVICES LTD,20/07/2015,5673.38,Supplies and Services
 Schools,DRAYTON MANOR PARK LTD,01/07/2015,1486.25,Supplies and Services
 Schools,DRAYTON MANOR PARK LTD,13/07/2015,2798.50,Supplies and Services
 Schools,DRAYTON MANOR PARK LTD,28/07/2015,3796.65,Supplies and Services
 Schools,DRAYTON MANOR PARK LTD,30/07/2015,536.50,Supplies and Services
 Schools,DRAYTON MANOR PARK LTD,01/07/2015,845.83,Transport
Highways and transport,Drinkmaster Ltd,22/07/2015,982.75,Supplies and Services
 Schools,Drive Distribution Ltd,09/07/2015,3356.77,Supplies and Services
 Schools,Drive Distribution Ltd,21/07/2015,2628.00,Supplies and Services
 Schools,Drive Distribution Ltd,23/07/2015,10507.85,Supplies and Services
Adult Social Care,DUDLEY GROUP OF HOSPITALS NHS,14/07/2015,5604.00,Supplies and Services
 Schools,DUDLEY ZOO SERVICES,16/07/2015,672.00,Supplies and Services
 Schools,Duke of Edinburgh Award Scheme,06/07/2015,1000.00,Supplies and Services
 Schools,Dunton Stables,03/07/2015,500.00,Supplies and Services
 Schools,Dunton Stables,17/07/2015,500.00,Supplies and Services
 Schools,DURA-SPORT (LEISURE CARE) LTD,17/07/2015,450.00,Premises
Law & Governence,DX NETWORK SERVICES LTD,16/07/2015,750.00,Supplies and Services
Law & Governence,E Burton,20/07/2015,2610.00,Employees
Law & Governence,E Burton,29/07/2015,1467.00,Employees
Highways and transport,E ON UK ENERGY SERVICES LTD,23/07/2015,10209.17,Capital
 Schools,E Price,20/07/2015,640.00,Employees
ICT,E Quality Training Ltd,20/07/2015,1400.00,Supplies and Services
Highways and transport,E ROYALL,14/07/2015,3675.00,Supplies and Services
Planning & Economic Development,E S P SYSTEX LTD,01/07/2015,1580.05,Supplies and Services
Planning & Economic Development,E S P SYSTEX LTD,14/07/2015,2365.81,Supplies and Services
Adult Social Care,E Stobart,15/07/2015,2000.00,Supplies and Services
 Schools,e4education,08/07/2015,1537.50,Supplies and Services
 Schools,e4education,24/07/2015,1000.00,Supplies and Services
ICT,Earls High School,20/07/2015,1950.00,Employees
 Schools,Early Excellence Ltd,03/07/2015,511.00,Employees
 Schools,Early Excellence Ltd,08/07/2015,695.20,Employees
 Schools,EARLY YEARS RESOURCES,20/07/2015,1239.05,Supplies and Services
 Schools,EARLY YEARS TTS,16/07/2015,1277.39,Supplies and Services
 Schools,Earwig Academic Reporting Ltd,21/07/2015,690.00,Supplies and Services
Adult Social Care,EAST CHESHIRE NHS TRUST,16/07/2015,1728.22,Supplies and Services
Planning & Economic Development,East Midlands Security Service,14/07/2015,820.60,Supplies and Services
 Schools,East Staffordshire Borough Cou,14/07/2015,1173.00,Supplies and Services
 Schools,EAST STAFFS BOROUGH COUNCIL,29/07/2015,795.00,Capital
 Schools,EAST STAFFS BOROUGH COUNCIL,14/07/2015,535.50,Supplies and Services
 Schools,EAST STAFFS BOROUGH COUNCIL,22/07/2015,782.00,Supplies and Services
Adult Social Care,EAST STAFFS BOROUGH COUNCIL,17/07/2015,469.65,Supplies and Services
Environment,EAST STAFFS BOROUGH COUNCIL,14/07/2015,1534.43,Premises
Environment,EAST STAFFS BOROUGH COUNCIL,06/07/2015,25148.09,Supplies and Services
Environment,EAST STAFFS BOROUGH COUNCIL,24/07/2015,94613.15,Supplies and Services
Highways and transport,EASYFIX EMBLEMS LTD,02/07/2015,3602.00,Capital
 Schools,EBuyer (UK) Ltd,23/07/2015,433.22,Supplies and Services
 Schools,Ed Wills Coaching Limited,27/07/2015,500.00,Supplies and Services
Adult Social Care,Eden Futures,01/07/2015,10754.80,Third Party
Planning & Economic Development,Eden Springs UK Ltd,16/07/2015,623.47,Supplies and Services
 Schools,EDENFIELD H&S TRNING & OSTPTHY,15/07/2015,650.00,Employees
Other Education and Children's services,EDEXCEL,21/07/2015,491.60,Supplies and Services
Highways and transport,EDF Energy,17/07/2015,19431.82,Third Party
 Schools,Edge Hill College,16/07/2015,1145.00,Supplies and Services
 Schools,EDISON LEARNING LTD,20/07/2015,4500.00,Supplies and Services
 Schools,EDIT INTERACTIVE LIMITED,07/07/2015,1532.00,Supplies and Services
 Schools,EDIT INTERACTIVE LIMITED,20/07/2015,855.49,Supplies and Services
 Schools,EDUCATE SCHOOL SERVICES LTD,14/07/2015,1600.00,Supplies and Services
 Schools,EDUCATE SCHOOL SERVICES LTD,16/07/2015,1850.00,Supplies and Services
 Schools,EDUCATION  GROUP LTD,20/07/2015,559.00,Supplies and Services
 Schools,Education Business Services Lt,28/07/2015,800.00,Supplies and Services
 Schools,EDUCATION CITY LTD,07/07/2015,1518.75,Supplies and Services
 Schools,EDUCATION CITY LTD,10/07/2015,3904.70,Supplies and Services
 Schools,EDUCATION CITY LTD,14/07/2015,1518.75,Supplies and Services
 Schools,EDUCATION CITY LTD,15/07/2015,570.00,Supplies and Services
 Schools,EDUCATION CITY LTD,16/07/2015,2928.00,Supplies and Services
 Schools,EDUCATION CITY LTD,23/07/2015,420.00,Supplies and Services
 Schools,Education Umbrella Limited,06/07/2015,604.80,Supplies and Services
 Schools,Education Umbrella Limited,15/07/2015,755.42,Supplies and Services
 Schools,Education Umbrella Limited,24/07/2015,610.74,Supplies and Services
 Schools,EDUCATION WAREHOUSE LTD,01/07/2015,583.23,Supplies and Services
 Schools,EDUCATION WAREHOUSE LTD,06/07/2015,610.14,Supplies and Services
 Schools,EDUCATION WAREHOUSE LTD,10/07/2015,668.63,Supplies and Services
 Schools,EDUCATION WAREHOUSE LTD,14/07/2015,478.85,Supplies and Services
 Schools,EDUCATION WAREHOUSE LTD,17/07/2015,1041.12,Supplies and Services
 Schools,EDUCATIONAL PLANNING BOOKS,03/07/2015,479.50,Supplies and Services
 Schools,EDUCATIONAL PLANNING BOOKS,09/07/2015,435.25,Supplies and Services
 Schools,EDUCATIONAL PLANNING BOOKS,14/07/2015,534.30,Supplies and Services
 Schools,EDUCATIONAL PLANNING BOOKS,15/07/2015,860.61,Supplies and Services
 Schools,EDUCATIONAL PLANNING BOOKS,17/07/2015,587.54,Supplies and Services
 Schools,EDUCATIONAL PLANNING BOOKS,31/07/2015,434.50,Supplies and Services
 Schools,EDUCATIONAL PRINTING SERVS LTD,03/07/2015,2094.82,Supplies and Services
 Schools,EDUCATIONAL PRINTING SERVS LTD,08/07/2015,593.49,Supplies and Services
 Schools,EDUCATIONAL PRINTING SERVS LTD,20/07/2015,441.74,Supplies and Services
 Schools,EDUCATIONAL PRINTING SERVS LTD,28/07/2015,504.73,Supplies and Services
 Schools,Edukey Education Ltd,02/07/2015,1025.00,Supplies and Services
Planning & Economic Development,EDWARD BILLINGTON & SON LTD,09/07/2015,580.50,Premises
Planning & Economic Development,EDWARD BILLINGTON & SON LTD,17/07/2015,777.60,Supplies and Services
Trading Service Farms,EFC FENCING,01/07/2015,3146.52,Supplies and Services
 Schools,Egan Reid,07/07/2015,662.50,Supplies and Services
 Schools,Egan Reid,10/07/2015,3264.74,Supplies and Services
 Schools,Egan Reid,14/07/2015,908.15,Supplies and Services
 Schools,Einstein Technologies Ltd,29/07/2015,1270.00,Premises
 Schools,Einstein Technologies Ltd,13/07/2015,550.00,Supplies and Services
 Schools,Einstein Technologies Ltd,29/07/2015,3649.00,Supplies and Services
Adult Social Care,Elite CIC,20/07/2015,9250.00,Supplies and Services
 Schools,Elite Cleaning & Environmental,01/07/2015,13743.52,Premises
 Schools,Elite Cleaning & Environmental,10/07/2015,7343.60,Premises
 Schools,Elite Cleaning & Environmental,31/07/2015,7343.60,Premises
Other Education and Children's services,ELIZABETH ANNE Training Ltd,14/07/2015,5412.00,Transport
Other Education and Children's services,ELIZABETH ANNE Training Ltd,31/07/2015,3375.00,Transport
 Schools,Elliott Baxter & Company Ltd,06/07/2015,611.25,Supplies and Services
ICT,Elliott Baxter & Company Ltd,06/07/2015,467.50,Supplies and Services
ICT,Elliott Baxter & Company Ltd,09/07/2015,1734.00,Supplies and Services
ICT,Elliott Baxter & Company Ltd,10/07/2015,714.00,Supplies and Services
ICT,Elliott Baxter & Company Ltd,28/07/2015,612.00,Supplies and Services
ICT,Elliott Baxter & Company Ltd,31/07/2015,612.00,Supplies and Services
Trading Service Central Print & Design,Elliott Baxter & Company Ltd,31/07/2015,1495.06,Supplies and Services
Trading Service Central Print & Design,Elliott Baxter & Company Ltd,13/07/2015,468.00,Supplies and Services
Trading Service Central Print & Design,Elliott Baxter & Company Ltd,15/07/2015,618.83,Supplies and Services
Trading Service Central Print & Design,Elliott Baxter & Company Ltd,17/07/2015,1697.55,Supplies and Services
Trading Service Central Print & Design,Elliott Baxter & Company Ltd,29/07/2015,-601.28,Supplies and Services
Trading Service Central Print & Design,Elliott Baxter & Company Ltd,30/07/2015,482.79,Supplies and Services
Trading Service Central Print & Design,Elliott Baxter & Company Ltd,31/07/2015,935.23,Supplies and Services
 CXO,Elliotts (UK) Ltd,13/07/2015,4300.00,Supplies and Services
 Schools,Elmwood Education Limited,15/07/2015,1632.20,Supplies and Services
 Schools,Elmwood Education Limited,20/07/2015,633.50,Supplies and Services
 Schools,EMB EXCELLENCE LTD,14/07/2015,2159.70,Employees
Health Trust,Embrace Quality Care,20/07/2015,2948.12,Supplies and Services
Health Trust,Embrace Quality Care,21/07/2015,580.60,Supplies and Services
Other Education and Children's services,EMINENCE TRAVEL,21/07/2015,21675.50,Transport
 CXO,Emo Oil Ltd,22/07/2015,1415.40,Premises
 Schools,Emo Oil Ltd,10/07/2015,-103.60,Premises
 Schools,Emo Oil Ltd,13/07/2015,5069.90,Premises
 Schools,Emo Oil Ltd,15/07/2015,2109.60,Premises
Trading Service County Fleet Care,Emo Oil Ltd,13/07/2015,18491.85,Transport
 Schools,EMS,10/07/2015,2100.00,Supplies and Services
 Schools,EMS,16/07/2015,480.00,Supplies and Services
 Schools,EMS,22/07/2015,1470.00,Supplies and Services
 Schools,EMS,24/07/2015,220.78,Supplies and Services
Law & Governence,ENDON WITH STANLEY PARISH CNL,08/07/2015,975.00,Third Party
 Schools,ENERGY ASSETS LTD,13/07/2015,909.82,Premises
Adult Social Care,ENGAGING COMMUNITIES STAFFORDS,16/07/2015,3898.28,Supplies and Services
Adult Social Care,ENGAGING COMMUNITIES STAFFORDS,31/07/2015,180487.75,Supplies and Services
Planning & Economic Development,ENGLISH LANDSCAPES MAINTENANCE,14/07/2015,3468.69,Premises
 Schools,Enhance Services Limited,09/07/2015,475.00,Employees
 Schools,Enhance The UK,27/07/2015,595.00,Supplies and Services
 Schools,Entrust Support Services Ltd,16/07/2015,-832.50,Supplies and Services
Adult Social Care,Entrust Support Services Ltd,29/07/2015,17545.33,Supplies and Services
Education services - Entrust,Entrust Support Services Ltd,16/07/2015,330899.08,Third Party
Education services - Entrust,Entrust Support Services Ltd,27/07/2015,1671691.00,Third Party
Highways and transport,ENVIRONMENT AGENCY,23/07/2015,5052.00,Capital
Highways and transport,ENVIRONMENTAL SCIENTIFICS GROU,08/07/2015,1547.00,Supplies and Services
Highways and transport,ENVIRONMENTAL SCIENTIFICS GROU,13/07/2015,888.00,Supplies and Services
Trading Service County Fleet Care,ENZA MOTORS LTD,09/07/2015,654.78,Supplies and Services
Trading Service County Fleet Care,ENZA MOTORS LTD,20/07/2015,445.31,Supplies and Services
 Schools,Epraise Limited,31/07/2015,450.00,Supplies and Services
ICT,E-Quality Training Ltd,14/07/2015,3232.00,Supplies and Services
 Schools,Equity Travel,21/07/2015,6888.00,Supplies and Services
 Schools,Eric Wright Water Ltd,03/07/2015,446.84,Premises
Planning & Economic Development,Eric Wright Water Ltd,15/07/2015,498.52,Supplies and Services
 Schools,ESCAPE 2 POLAND LTD,06/07/2015,2382.00,Supplies and Services
Other Education and Children's services,Esland North Ltd,27/07/2015,26571.44,Third Party
 Schools,ESP Professional Services Ltd,02/07/2015,745.00,Employees
Finance,ESPHERA SOLUTIONS LTD,23/07/2015,4163.40,Supplies and Services
 Schools,ESPO,01/07/2015,451.25,Premises
 Schools,ESPO,02/07/2015,209.23,Premises
 Schools,ESPO,14/07/2015,436.80,Premises
 Schools,ESPO,23/07/2015,560.41,Supplies and Services
 Schools,ESPO,24/07/2015,625.10,Supplies and Services
 Schools,ESPO,29/07/2015,437.52,Supplies and Services
 Schools,ESPO,01/07/2015,2830.92,Supplies and Services
 Schools,ESPO,02/07/2015,3764.67,Supplies and Services
 Schools,ESPO,03/07/2015,9625.69,Supplies and Services
 Schools,ESPO,06/07/2015,1048.00,Supplies and Services
 Schools,ESPO,08/07/2015,1481.89,Supplies and Services
 Schools,ESPO,09/07/2015,607.54,Supplies and Services
 Schools,ESPO,10/07/2015,1501.34,Supplies and Services
 Schools,ESPO,13/07/2015,1123.93,Supplies and Services
 Schools,ESPO,14/07/2015,4406.56,Supplies and Services
 Schools,ESPO,15/07/2015,1981.99,Supplies and Services
 Schools,ESPO,16/07/2015,965.80,Supplies and Services
 Schools,ESPO,17/07/2015,2566.20,Supplies and Services
 Schools,ESPO,20/07/2015,3948.17,Supplies and Services
 Schools,ESPO,22/07/2015,6005.84,Supplies and Services
 Schools,ESPO,23/07/2015,791.85,Supplies and Services
 Schools,ESPO,24/07/2015,1121.76,Supplies and Services
 Schools,ESPO,27/07/2015,933.36,Supplies and Services
 Schools,ESPO,29/07/2015,772.00,Supplies and Services
 Schools,ESPO,03/07/2015,3171.00,Third Party
 Schools,ESPO,15/07/2015,805.00,Third Party
Other Education and Children's services,ESPO,13/07/2015,845.00,Supplies and Services
ICT,ESRI (UK) LTD,06/07/2015,15183.87,Supplies and Services
 Schools,ESSEX COUNTY COUNCIL,20/07/2015,699.00,Supplies and Services
 Schools,ETEACH,15/07/2015,5000.00,Supplies and Services
Other Education and Children's services,Euromedia Associates Ltd,14/07/2015,450.00,Supplies and Services
Other Education and Children's services,EVOLVE YP,29/07/2015,84316.80,Supplies and Services
Other Education and Children's services,EVOLVE YP,21/07/2015,2098.84,Third Party
 Schools,Evolving Networks,15/07/2015,495.00,Supplies and Services
 Schools,EXCEL MUSIC SCHOOLS LTD,01/07/2015,2910.00,Supplies and Services
 Schools,EXCEL MUSIC SCHOOLS LTD,24/07/2015,1740.00,Supplies and Services
ICT,EXESIOS LTD,20/07/2015,1290.00,Supplies and Services
ICT,EXESIOS LTD,21/07/2015,596.40,Supplies and Services
Highways and transport,Experian Ltd,14/07/2015,1178.90,Supplies and Services
Other Education and Children's services,Express Cars,14/07/2015,11413.38,Transport
Adult Social Care,Extra Mile Associates Ltd,02/07/2015,1829.08,Supplies and Services
 Schools,Extreme Adventure Ltd,30/07/2015,500.00,Supplies and Services
Law & Governence,F A Sawford,14/07/2015,1361.60,Employees
Entrust,F R SHARROCK LTD,20/07/2015,720.73,Transport
Planning & Economic Development,F R SHARROCK LTD,17/07/2015,485.00,Supplies and Services
Planning & Economic Development,F3 Consultants Co-operative CI,30/07/2015,3980.00,Supplies and Services
Adult Social Care,Faculty of Public Health,09/07/2015,15000.00,Supplies and Services
Educational Endownments,FAIR OAK ACADEMY,22/07/2015,9731.84,Supplies and Services
Other Education and Children's services,Families at Family Care,27/07/2015,4354.26,Supplies and Services
Other Education and Children's services,Families First (South West) Lt,27/07/2015,6252.70,Supplies and Services
Other Education and Children's services,Family Options Ltd,27/07/2015,6478.19,Supplies and Services
Other Education and Children's services,Family Options Ltd,27/07/2015,38171.42,Third Party
Law & Governence,FARLEY PARISH COUNCIL,28/07/2015,750.00,Third Party
Other Education and Children's services,FATHER HUDSONS SOCIETY,27/07/2015,2864.14,Supplies and Services
 Schools,FAWNS RECREATIONAL SERVICES LT,15/07/2015,1771.70,Supplies and Services
Environment,FCC RECYCLING (UK) LTD,01/07/2015,346412.05,Supplies and Services
 Schools,FENETRE LTD,09/07/2015,420.45,Supplies and Services
 Schools,Field Studies Council,02/07/2015,2447.00,Supplies and Services
 Schools,Fieldwork Education,02/07/2015,951.00,Employees
 Schools,Fieldwork Education,03/07/2015,10900.00,Supplies and Services
 Schools,Fieldwork Education,17/07/2015,3200.00,Supplies and Services
 Schools,Fire Safety Services (UK) Ltd,03/07/2015,946.00,Supplies and Services
Health Trust,First Call Homecare,09/07/2015,6404.40,Supplies and Services
Health Trust,First Call Homecare,13/07/2015,1643.10,Supplies and Services
Highways and transport,FIRST CAR LTD,29/07/2015,3450.00,Supplies and Services
 Schools,First Grade Sports,28/07/2015,625.48,Supplies and Services
 CXO,FIRST IN SERVICE LTD,02/07/2015,459.18,Premises
 Schools,FIRST IN SERVICE LTD,15/07/2015,769.00,Supplies and Services
Planning & Economic Development,FIRST IN SERVICE LTD,28/07/2015,736.99,Supplies and Services
 Schools,FIRST PERSON SUPPLY,17/07/2015,1180.00,Supplies and Services
Highways,FIRST POTTERIES LTD,03/07/2015,1035.00,Supplies & Services
Planning & Economic Development,FIRST POTTERIES LTD,07/07/2015,241301.00,Transport
Planning & Economic Development,First Property Services UK Ltd,03/07/2015,650.00,Supplies and Services
 Schools,First Resourcing Ltd,03/07/2015,1300.00,Employees
 Schools,First Resourcing Ltd,09/07/2015,650.00,Employees
 Schools,First Resourcing Ltd,10/07/2015,825.00,Employees
 Schools,First Resourcing Ltd,13/07/2015,1650.00,Employees
 Schools,First Resourcing Ltd,20/07/2015,1345.00,Employees
 Schools,First Resourcing Ltd,27/07/2015,3300.00,Employees
 Schools,Fit 4 Schools UK Ltd,01/07/2015,901.00,Supplies and Services
Health Trust,Fitzroy,31/07/2015,2065.44,Supplies and Services
 Schools,Fizz Yearbooks,10/07/2015,540.00,Supplies and Services
 Schools,FLETCHER'S COACHES,29/07/2015,600.00,Supplies and Services
 Schools,FLETCHER'S COACHES,03/07/2015,2585.00,Supplies and Services
 Schools,FLETCHER'S COACHES,08/07/2015,900.00,Supplies and Services
 Schools,FLETCHER'S COACHES,29/07/2015,2335.00,Supplies and Services
Other Education and Children's services,FLETCHER'S COACHES,21/07/2015,10100.72,Transport
 Schools,FLOURISH EDUCATION LIMITED,01/07/2015,585.00,Employees
 Schools,FLOURISH EDUCATION LIMITED,07/07/2015,585.00,Employees
 Schools,FLOURISH EDUCATION LIMITED,15/07/2015,585.00,Employees
 Schools,FLOURISH EDUCATION LIMITED,21/07/2015,621.00,Employees
 Schools,FLOURISH EDUCATION LIMITED,28/07/2015,585.00,Employees
 Schools,FLP SOLUTIONS,14/07/2015,700.00,Supplies and Services
Other Education and Children's services,Flyaway & Amber Travel Uk,08/07/2015,0.00,Transport
Other Education and Children's services,Flyaway & Amber Travel Uk,15/07/2015,15806.00,Transport
Other Education and Children's services,FLYING COLOURS FOSTER CARE LTD,15/07/2015,4050.00,Supplies and Services
Other Education and Children's services,FLYING COLOURS FOSTER CARE LTD,27/07/2015,16321.50,Supplies and Services
 Schools,FLYTE SO FANCY,10/07/2015,1396.12,Supplies and Services
 Schools,FOCUS EDUCATION,01/07/2015,1827.00,Employees
 Schools,FOCUS EDUCATION,08/07/2015,3588.00,Employees
 Schools,FOCUS EDUCATION,10/07/2015,1750.00,Employees
 Schools,FOCUS EDUCATION,13/07/2015,500.00,Employees
 Schools,FOCUS EDUCATION,15/07/2015,3790.00,Employees
 Schools,FOCUS EDUCATION,17/07/2015,1382.00,Employees
 Schools,FOCUS EDUCATION,22/07/2015,4116.00,Employees
 Schools,FOCUS EDUCATION,29/07/2015,5834.00,Employees
 Schools,FOCUS EDUCATION (UK) LTD,17/07/2015,420.00,Employees
 CXO,FOCUS SECURITY SURVEILLANCE LT,07/07/2015,827.03,Supplies and Services
 Schools,FOOTY COACHING,02/07/2015,632.00,Employees
 Schools,FOOTY COACHING,22/07/2015,1050.00,Supplies and Services
Corporate & Democratic Core,FORCE ONE SECURITY UK LTD,14/07/2015,1440.00,Supplies and Services
Other Education and Children's services,FORCE ONE SECURITY UK LTD,16/07/2015,1102.50,Supplies and Services
Other Education and Children's services,FORCE ONE SECURITY UK LTD,23/07/2015,833.00,Supplies and Services
 CXO,FORD MAINWARING LTD,01/07/2015,433.71,Premises
 Schools,FORD MAINWARING LTD,07/07/2015,466.39,Capital
 Schools,FORD MAINWARING LTD,13/07/2015,5183.00,Capital
 Schools,FORD MAINWARING LTD,02/07/2015,798.00,Premises
 Schools,FORD MAINWARING LTD,03/07/2015,1732.00,Premises
 Schools,FORD MAINWARING LTD,06/07/2015,570.00,Premises
 Schools,FORD MAINWARING LTD,08/07/2015,1284.50,Premises
 Schools,FORD MAINWARING LTD,09/07/2015,946.00,Premises
 Schools,FORD MAINWARING LTD,14/07/2015,2100.55,Premises
 Schools,FORD MAINWARING LTD,16/07/2015,434.00,Premises
 Schools,FORD MAINWARING LTD,15/07/2015,752.50,Supplies and Services
 Schools,FORDS OF BLYTHE BRIDGE LTD,27/07/2015,155993.88,Capital
 Schools,FORDS OF BLYTHE BRIDGE LTD,02/07/2015,655.00,Capital
 Schools,FORDS OF BLYTHE BRIDGE LTD,03/07/2015,198560.22,Capital
 Schools,FORDS OF BLYTHE BRIDGE LTD,20/07/2015,33593.20,Capital
Adult Social Care,FORENSICS LTD,23/07/2015,430.00,Supplies and Services
Adult Social Care,FORENSICS LTD,30/07/2015,735.00,Supplies and Services
 Schools,FORTRESS RECYCLING LTD,10/07/2015,779.69,Supplies and Services
 Schools,FORTRESS RECYCLING LTD,15/07/2015,4058.76,Supplies and Services
 Schools,FORWARD PRODUCTS (2013) LTD,16/07/2015,464.00,Premises
 Schools,FORWARD PRODUCTS (2013) LTD,01/07/2015,1995.00,Supplies and Services
 Schools,FORWARD PRODUCTS (2013) LTD,07/07/2015,423.45,Supplies and Services
 Schools,FORWARD PRODUCTS (2013) LTD,08/07/2015,731.74,Supplies and Services
 Schools,FORWARD PRODUCTS (2013) LTD,17/07/2015,2349.47,Supplies and Services
 Schools,FORWARD PRODUCTS (2013) LTD,24/07/2015,449.95,Supplies and Services
Other Education and Children's services,Fostering People Ltd,27/07/2015,35808.70,Supplies and Services
Other Education and Children's services,FOSTERING SOLUTIONS LTD,27/07/2015,117699.80,Supplies and Services
Other Education and Children's services,FOSTERPLUS (FOSTERCARE) LTD,27/07/2015,12054.19,Supplies and Services
Other Education and Children's services,Foundation Fostering,27/07/2015,2860.85,Supplies and Services
 Schools,Foundation Stage Forum Ltd,14/07/2015,495.00,Supplies and Services
Adult Social Care,Four Seasons Health Care,24/07/2015,7903.35,Supplies and Services
ICT,FRANCESCO GROUP HOLDINGS LTD,10/07/2015,5650.00,Supplies and Services
Health Trust,Freedom Support Limited,01/07/2015,4965.00,Supplies and Services
Health Trust,Freedom Support Limited,17/07/2015,10360.22,Supplies and Services
Health Trust,Freedom Support Limited,24/07/2015,4945.20,Third Party
Other Education and Children's services,Freedom Support Limited,02/07/2015,807.60,Supplies and Services
Other Education and Children's services,Freedom Support Limited,08/07/2015,1117.18,Supplies and Services
 Schools,Freedom Technology Ltd,15/07/2015,678.60,Supplies and Services
 Schools,Fresh Air Gym,17/07/2015,597.50,Employees
 Schools,Fresh Air Gym,16/07/2015,1105.00,Supplies and Services
Entrust,Freshview Foods Ltd,01/07/2015,739.81,Supplies and Services
Planning & Economic Development,Friends of Cannock Chase,10/07/2015,500.00,Supplies and Services
 Schools,Frogtrade Ltd,06/07/2015,1495.00,Supplies and Services
 Schools,Frogtrade Ltd,07/07/2015,5569.73,Supplies and Services
 Schools,Frogtrade Ltd,08/07/2015,2186.00,Supplies and Services
Trading Service County Fleet Care,Fuchs Lubricants (UK) PLC,09/07/2015,3030.00,Supplies and Services
Trading Service County Fleet Care,Fuchs Lubricants (UK) PLC,29/07/2015,596.33,Supplies and Services
Highways and transport,FUEL SOLUTIONS (UK) LTD,20/07/2015,3000.00,Capital
Adult Social Care,FURNITURE EXCHANGE,14/07/2015,820.00,Supplies and Services
Law & Governence,Furniture Scheme,08/07/2015,1850.00,Third Party
 Schools,FURNITURE@WORK LTD,23/07/2015,604.80,Supplies and Services
Other Education and Children's services,FUTURE IN MIND LTD,22/07/2015,39857.16,Third Party
Other Education and Children's services,FUTURE TRAVEL,14/07/2015,1188.00,Transport
Trading Service Farms,G & G PLANT HIRE,30/07/2015,4011.50,Supplies and Services
Planning & Economic Development,G & S J JOHNSONS ENGINEERING L,07/07/2015,7300.00,Supplies and Services
Planning & Economic Development,G & S J JOHNSONS ENGINEERING L,27/07/2015,499.00,Supplies and Services
Planning & Economic Development,G & S J JOHNSONS ENGINEERING L,06/07/2015,16700.00,Transport
 Schools,G & S SMIRTHWAITE LTD,10/07/2015,474.00,Supplies and Services
 Schools,G & S SMITHWAITE LTD,28/07/2015,1232.00,Capital
 Schools,G B M Digital Technologies Ltd,02/07/2015,774.50,Supplies and Services
 Schools,G B M Digital Technologies Ltd,09/07/2015,1449.00,Supplies and Services
Highways and transport,G Ball,20/07/2015,3185.00,Supplies and Services
 Schools,G E COLLIS & SONS LTD,31/07/2015,740.84,Supplies and Services
 CXO,G EVANS (SERVICES) LTD,07/07/2015,1193.99,Premises
 CXO,G EVANS (SERVICES) LTD,14/07/2015,5076.80,Premises
 CXO,G EVANS (SERVICES) LTD,16/07/2015,521.93,Premises
 CXO,G EVANS (SERVICES) LTD,21/07/2015,761.30,Premises
 Schools,G EVANS (SERVICES) LTD,28/07/2015,23708.53,Capital
 Schools,G EVANS (SERVICES) LTD,14/07/2015,100000.00,Capital
 Schools,G EVANS (SERVICES) LTD,28/07/2015,7413.35,Premises
 Schools,G EVANS (SERVICES) LTD,14/07/2015,2314.92,Premises
 Schools,G EVANS (SERVICES) LTD,15/07/2015,5174.07,Premises
 Schools,G EVANS (SERVICES) LTD,22/07/2015,489.28,Premises
 Schools,G EVANS (SERVICES) LTD,28/07/2015,20000.00,Supplies and Services
 Schools,G EVANS (SERVICES) LTD,23/07/2015,12760.67,Third Party
Adult Social Care,G EVANS (SERVICES) LTD,14/07/2015,658.05,Capital
Adult Social Care,G EVANS (SERVICES) LTD,15/07/2015,9701.16,Premises
Highways and transport,G EVANS (SERVICES) LTD,02/07/2015,706.62,Premises
Highways and transport,G EVANS (SERVICES) LTD,14/07/2015,2096.78,Supplies and Services
Planning & Economic Development,G EVANS (SERVICES) LTD,30/07/2015,4997.72,Premises
Planning & Economic Development,G EVANS (SERVICES) LTD,14/07/2015,2128.08,Premises
Planning & Economic Development,G EVANS (SERVICES) LTD,16/07/2015,4091.98,Premises
Planning & Economic Development,G EVANS (SERVICES) LTD,27/07/2015,1493.58,Premises
Planning & Economic Development,G EVANS (SERVICES) LTD,28/07/2015,1298.30,Supplies and Services
Planning & Economic Development,G EVANS (SERVICES) LTD,16/07/2015,727.00,Supplies and Services
 Schools,G L Education Group,01/07/2015,754.72,Supplies and Services
 Schools,G L Education Group,17/07/2015,1268.75,Supplies and Services
 Schools,G L Education Group,24/07/2015,545.74,Supplies and Services
 Schools,G L Education Group,27/07/2015,1813.36,Supplies and Services
Trading Service County Fleet Care,G M Coachwork Ltd,23/07/2015,55.00,Transport
Vehicles,G M Coachwork Ltd,23/07/2015,27365.50,Capital
 Schools,G MARSHALL,17/07/2015,1150.00,Premises
Law & Governence,G Norris,09/07/2015,840.00,Supplies and Services
Trading Service Farms,G P Acreman T/A Acreman Farms,07/07/2015,5342.00,Supplies and Services
 Schools,G TAYLOR & SON LTD,20/07/2015,2412.00,Premises
 Schools,G TAYLOR & SON LTD,21/07/2015,985.99,Premises
 Schools,G TAYLOR & SON LTD,23/07/2015,24771.57,Premises
 Schools,G TAYLOR & SON LTD,01/07/2015,3196.54,Supplies and Services
Planning & Economic Development,G W Skip Hire Ltd,14/07/2015,820.00,Supplies and Services
 Schools,G4S Secure Solutions (UK) LTD,15/07/2015,715.58,Premises
 Schools,G4S Secure Solutions (UK) LTD,07/07/2015,423.14,Supplies and Services
Finance,Gallagher Bassett Internationa,24/07/2015,20000.00,Supplies and Services
Adult Social Care,GALLOWAY TRAINING CONSULTANCY,28/07/2015,2495.75,Supplies and Services
 Schools,GARRAN LOCKERS LTD,14/07/2015,503.56,Premises
Other Education and Children's services,Gary Wilson Raising Boys Achie,14/07/2015,850.00,Supplies and Services
Planning & Economic Development,Gateshead Council,22/07/2015,1500.00,Supplies and Services
Other Education and Children's services,GATEWAY PSYCHOLOGY LTD,10/07/2015,616.00,Supplies and Services
 Schools,GB RECRUITMENT (STAFFS) LTD,03/07/2015,2385.00,Employees
 Schools,GB RECRUITMENT (STAFFS) LTD,10/07/2015,1270.00,Employees
 Schools,GB RECRUITMENT (STAFFS) LTD,17/07/2015,1595.00,Employees
 Schools,GB RECRUITMENT (STAFFS) LTD,21/07/2015,632.00,Employees
 Schools,GB RECRUITMENT (STAFFS) LTD,22/07/2015,800.00,Employees
 Schools,GB RECRUITMENT (STAFFS) LTD,24/07/2015,2909.00,Employees
 Schools,GEAR4MUSIC,15/07/2015,1403.34,Supplies and Services
 Schools,GELDARDS,30/07/2015,990.00,Capital
Trading Service Scientific Services,Gem Scientific Ltd,22/07/2015,598.00,Supplies and Services
 Schools,GERRARD ELECTRICAL CONTRACTORS,10/07/2015,1897.09,Premises
Corporate & Democratic Core,GERRARD ELECTRICAL CONTRACTORS,21/07/2015,479.89,Premises
Other Education and Children's services,Gian Singh Sidhu,17/07/2015,1331.00,Transport
Other Education and Children's services,Gian Singh Sidhu,31/07/2015,786.50,Transport
 Schools,Giggles & Wiggles,09/07/2015,945.75,Supplies and Services
 Schools,GL ASSESMENT,10/07/2015,1336.50,Supplies and Services
 Schools,Glascote Heath Pre-School,02/07/2015,14737.57,Supplies and Services
 Schools,Global Travel,14/07/2015,2180.00,Supplies and Services
 Schools,Global Travel,14/07/2015,630.00,Transport
Other Education and Children's services,GLOVERS COACHES LTD,14/07/2015,2834.26,Transport
Planning & Economic Development,GLOVERS COACHES LTD,14/07/2015,2103.80,Transport
 Schools,GLS EDUCATIONAL SUPPLIES LTD,24/07/2015,1049.88,Supplies and Services
 Schools,GLS EDUCATIONAL SUPPLIES LTD,16/07/2015,1386.95,Supplies and Services
 Schools,GLS EDUCATIONAL SUPPLIES LTD,20/07/2015,878.97,Supplies and Services
 Schools,GLS EDUCATIONAL SUPPLIES LTD,21/07/2015,455.86,Supplies and Services
 Schools,GLS EDUCATIONAL SUPPLIES LTD,23/07/2015,1328.70,Supplies and Services
 Schools,Gnosall St Lawrence C of E Aca,15/07/2015,101176.35,Supplies and Services
 Schools,Go Ape,31/07/2015,1599.58,Employees
Other Education and Children's services,Going My Way Ltd T/A Stantons,14/07/2015,3964.40,Transport
Other Education and Children's services,GOLDEN GREEN GARAGE,14/07/2015,19040.10,Transport
 Schools,GOLIATH HOME WORLD LTD,20/07/2015,890.00,Third Party
 Schools,Gooddies Ltd,24/07/2015,3358.25,Supplies and Services
 Schools,Gooddies Ltd,24/07/2015,491.80,Supplies and Services
 Schools,GOPAK LTD,15/07/2015,2361.76,Supplies and Services
 Schools,GovNet Communications,15/07/2015,740.00,Employees
Other Education and Children's services,GovNet Communications,08/07/2015,445.00,Supplies and Services
Adult Social Care,GP MORGANS & PARTNERS,01/07/2015,920.80,Supplies and Services
Trading Service Central Print & Design,GRAFITYP UK LTD,24/07/2015,560.71,Supplies and Services
Trading Service Central Print & Design,GRAFITYP UK LTD,31/07/2015,993.27,Supplies and Services
 Schools,GRAYSHELLS TRAVEL,07/07/2015,990.00,Transport
 Schools,GRAYSHELLS TRAVEL,10/07/2015,780.00,Transport
 Schools,GRAYSHELLS TRAVEL,14/07/2015,2800.00,Transport
 Schools,GRAYSHELLS TRAVEL,29/07/2015,980.00,Transport
 Schools,Grayson Design,15/07/2015,618.80,Supplies and Services
Highways and transport,Greene King Developments Limit,13/07/2015,23143.23,Capital
 Schools,Greenman Bushcraft Ltd,09/07/2015,428.07,Supplies and Services
 Schools,GREENWOOD STUDIOS,23/07/2015,3640.00,Supplies and Services
 Schools,Grenke Leasing Ltd,15/07/2015,895.86,Supplies and Services
Law & Governence,Grevan 2012 Ltd,03/07/2015,8732.00,Employees
Law & Governence,Grevan 2012 Ltd,30/07/2015,3614.90,Employees
 Schools,GROSVENOR HOUSE PAPERS LTD,10/07/2015,684.45,Supplies and Services
 Schools,GROSVENOR HOUSE PAPERS LTD,13/07/2015,629.51,Supplies and Services
 Schools,GROSVENOR HOUSE PAPERS LTD,16/07/2015,605.71,Supplies and Services
 Schools,GROSVENOR HOUSE PAPERS LTD,17/07/2015,559.55,Supplies and Services
 Schools,Groupcall Ltd,23/07/2015,424.00,Supplies and Services
Other Education and Children's services,Guardian Homes (Midlands) Ltd,24/07/2015,1107.15,Supplies and Services
 Schools,Gullivers Kingdom,21/07/2015,577.50,Supplies and Services
Adult Social Care,Guys & St Thomas NHS Fndation,31/07/2015,513.00,Supplies and Services
 Schools,H & H SPALDING (BOOKS),10/07/2015,1844.50,Supplies and Services
 Schools,H & H SPALDING (BOOKS),22/07/2015,6088.89,Supplies and Services
 Schools,H & H SPALDING (BOOKS),27/07/2015,617.40,Supplies and Services
 Schools,H & H SPALDING (BOOKS),28/07/2015,1715.88,Supplies and Services
 Schools,H & H SPALDING (BOOKS),29/07/2015,627.95,Supplies and Services
 Schools,H & H SPALDING (BOOKS),30/07/2015,693.11,Supplies and Services
 Schools,H & H SPALDING (BOOKS),31/07/2015,718.07,Supplies and Services
Other Education and Children's services,H Arthur,03/07/2015,800.00,Supplies and Services
 Schools,H BEXSON,22/07/2015,600.00,Supplies and Services
 Schools,H Charlesworth & Co Ltd,02/07/2015,2226.66,Supplies and Services
 Schools,H Charlesworth & Co Ltd,29/07/2015,847.00,Supplies and Services
Other Education and Children's services,H GRIFFITHS,15/07/2015,47578.94,Transport
Health Trust,H I C A,07/07/2015,2840.00,Supplies and Services
Health Trust,H I C A,09/07/2015,1952.00,Supplies and Services
 Schools,H TEMPEST LTD,14/07/2015,450.00,Supplies and Services
Law & Governence,Hagley Bowls Club,28/07/2015,500.00,Third Party
Planning & Economic Development,HALCO PRODUCTS,17/07/2015,555.60,Supplies and Services
 Schools,HAMP FLOORING (1998) LTD,30/07/2015,5505.50,Premises
Other Education and Children's services,HAMPSHIRE COUNTY COUNCIL,31/07/2015,2880.00,Third Party
Law & Governence,Hamstall Ridware Parish Counci,13/07/2015,1500.00,Third Party
 Schools,HANBURYS FARM PRE SCHOOL,17/07/2015,1508.91,Supplies and Services
Adult Social Care,HANDICARE ACCESSIBILITY LTD,13/07/2015,2680.00,Supplies and Services
Health Trust,Hands on Care Wombourne Ltd,09/07/2015,3600.00,Supplies and Services
Health Trust,Hands on Care Wombourne Ltd,10/07/2015,504.00,Supplies and Services
Planning & Economic Development,HANSONS (WORDSLEY) LTD,20/07/2015,1688.00,Transport
 Schools,HAPPY DAYS COACHES,17/07/2015,4321.00,Supplies and Services
 Schools,HAPPY DAYS COACHES,31/07/2015,1730.00,Supplies and Services
 Schools,HAPPY DAYS COACHES,24/07/2015,990.00,Transport
Other Education and Children's services,HAPPY DAYS COACHES,14/07/2015,16552.62,Transport
Other Education and Children's services,HARDWICK COACHES,14/07/2015,3821.84,Transport
 Schools,HARDY SIGNS,14/07/2015,593.00,Premises
 Schools,HARDY SIGNS,17/07/2015,524.00,Supplies and Services
Trading Service County Fleet Care,HAROLD L SMITH (TRANSMISSNS) L,29/07/2015,725.00,Supplies and Services
 Schools,Harper Collins Publishers,08/07/2015,3079.00,Supplies and Services
 Schools,HARPER COLLINS PUBLISHERS LTD,06/07/2015,3308.10,Supplies and Services
 Schools,HARPER COLLINS PUBLISHERS LTD,08/07/2015,5437.95,Supplies and Services
 Schools,HARPER COLLINS PUBLISHERS LTD,09/07/2015,915.96,Supplies and Services
 Schools,HARPER COLLINS PUBLISHERS LTD,10/07/2015,634.35,Supplies and Services
 Schools,HARPER COLLINS PUBLISHERS LTD,17/07/2015,2450.65,Supplies and Services
ICT,Harpfield Primary Academy,22/07/2015,800.00,Supplies and Services
 Schools,Harrington Bates,17/07/2015,1000.00,Supplies and Services
Law & Governence,Harvey Girls,16/07/2015,3000.00,Third Party
Other Education and Children's services,Harvey Girls,31/07/2015,34258.25,Supplies and Services
 Schools,Haughton St Giles C of E Acade,24/07/2015,42181.88,Supplies and Services
Adult Social Care,HAWTHORN HOUSE,02/07/2015,960.95,Income
Adult Social Care,HAWTHORN HOUSE,10/07/2015,1109.35,Income
Adult Social Care,HAWTHORN HOUSE,16/07/2015,1067.65,Income
Adult Social Care,HAWTHORN HOUSE,23/07/2015,1082.25,Income
Adult Social Care,HAWTHORN HOUSE,30/07/2015,1082.25,Income
Planning & Economic Development,Haymarket Media Group,06/07/2015,4680.00,Supplies and Services
 Schools,HAYS ACCOUNTANCY PERSONNEL,17/07/2015,465.00,Employees
 Schools,HAYS ACCOUNTANCY PERSONNEL,20/07/2015,640.00,Employees
 Schools,HAYS EDUCATION PERSONNEL,27/07/2015,1045.00,Employees
 Schools,HAYS EDUCATION PERSONNEL,01/07/2015,4655.00,Employees
 Schools,HAYS EDUCATION PERSONNEL,02/07/2015,1150.00,Employees
 Schools,HAYS EDUCATION PERSONNEL,03/07/2015,6883.50,Employees
 Schools,HAYS EDUCATION PERSONNEL,06/07/2015,4928.30,Employees
 Schools,HAYS EDUCATION PERSONNEL,07/07/2015,2383.00,Employees
 Schools,HAYS EDUCATION PERSONNEL,08/07/2015,3513.50,Employees
 Schools,HAYS EDUCATION PERSONNEL,09/07/2015,1025.00,Employees
 Schools,HAYS EDUCATION PERSONNEL,10/07/2015,7174.50,Employees
 Schools,HAYS EDUCATION PERSONNEL,13/07/2015,9107.00,Employees
 Schools,HAYS EDUCATION PERSONNEL,15/07/2015,10562.06,Employees
 Schools,HAYS EDUCATION PERSONNEL,16/07/2015,1067.00,Employees
 Schools,HAYS EDUCATION PERSONNEL,17/07/2015,16835.35,Employees
 Schools,HAYS EDUCATION PERSONNEL,20/07/2015,4540.40,Employees
 Schools,HAYS EDUCATION PERSONNEL,21/07/2015,4955.00,Employees
 Schools,HAYS EDUCATION PERSONNEL,22/07/2015,6691.50,Employees
 Schools,HAYS EDUCATION PERSONNEL,24/07/2015,3389.55,Employees
 Schools,HAYS EDUCATION PERSONNEL,27/07/2015,1968.55,Employees
 Schools,HAYS EDUCATION PERSONNEL,29/07/2015,1150.00,Employees
 Schools,HAYS EDUCATION PERSONNEL,30/07/2015,3213.00,Employees
 Schools,HAYS EDUCATION PERSONNEL,31/07/2015,827.00,Employees
 Schools,HAYS EDUCATION PERSONNEL,13/07/2015,680.00,Supplies and Services
 CXO,HAYS HR PERSONNEL,15/07/2015,575.00,Supplies and Services
 Schools,HAYS HR PERSONNEL,06/07/2015,875.00,Employees
 Schools,HAYS HR PERSONNEL,21/07/2015,875.00,Employees
 Schools,HAYS HR PERSONNEL,22/07/2015,875.00,Employees
 Schools,HAYS HR PERSONNEL,30/07/2015,1750.00,Employees
Adult Social Care,Hays Social Care Ltd,07/07/2015,853.61,Employees
Adult Social Care,Hays Social Care Ltd,20/07/2015,853.61,Employees
Adult Social Care,Hays Social Care Ltd,23/07/2015,853.61,Employees
Adult Social Care,Hays Social Care Ltd,30/07/2015,853.61,Employees
 CXO,HEATELECT LIMITED,02/07/2015,554.52,Premises
 Schools,HEATELECT LIMITED,28/07/2015,20000.00,Capital
 Schools,HEATELECT LIMITED,02/07/2015,627.41,Premises
 Schools,HEATELECT LIMITED,07/07/2015,1092.20,Premises
 Schools,HEATELECT LIMITED,08/07/2015,2542.00,Premises
 Schools,HEATELECT LIMITED,09/07/2015,1040.05,Premises
 Schools,HEATELECT LIMITED,16/07/2015,6890.00,Premises
 Schools,HEATELECT LIMITED,22/07/2015,510.76,Premises
 Schools,HEATELECT LIMITED,23/07/2015,462.00,Premises
 Schools,HEATELECT LIMITED,22/07/2015,495.00,Supplies and Services
 Schools,HEATELECT LIMITED,28/07/2015,8690.00,Third Party
Corporate & Democratic Core,HEATELECT LIMITED,03/07/2015,427.34,Premises
Corporate & Democratic Core,HEATELECT LIMITED,23/07/2015,440.51,Premises
Highways and transport,HEATELECT LIMITED,08/07/2015,593.32,Capital
Tipping St,HEATELECT LIMITED,23/07/2015,1655.00,Capital
Adult Social Care,Heath Hayes Health Centre,23/07/2015,1080.00,Supplies and Services
Other Education and Children's services,Hednesford Buses,17/07/2015,7916.96,Transport
Adult Social Care,HEDNESFORD STREET SURGERY,23/07/2015,765.00,Supplies and Services
 Schools,HEDNESFORD TRAVEL,03/07/2015,510.00,Supplies and Services
 Schools,HEDNESFORD TRAVEL,17/07/2015,765.00,Supplies and Services
Other Education and Children's services,HEDNESFORD TRAVEL,15/07/2015,2918.30,Transport
Trading Service Central Print & Design,HEIDELBERG GRAPHIC EQUIP LTD,16/07/2015,1015.20,Supplies and Services
Trading Service Central Print & Design,HEIDELBERG GRAPHIC EQUIP LTD,28/07/2015,851.04,Supplies and Services
Other Education and Children's services,Helping Angels Ltd,22/07/2015,1165.35,Supplies and Services
Adult Social Care,Helping Hands,03/07/2015,3416.00,Third Party
Adult Social Care,Helping Hands,31/07/2015,3416.00,Third Party
 Schools,Hendy Associates Ltd,01/07/2015,850.00,Supplies and Services
 Schools,Hendy Associates Ltd,07/07/2015,1725.00,Supplies and Services
 Schools,Hendy Associates Ltd,10/07/2015,2025.00,Supplies and Services
 Schools,Hendy Associates Ltd,13/07/2015,1150.00,Supplies and Services
 Schools,Hendy Associates Ltd,17/07/2015,1800.00,Supplies and Services
 Schools,Hendy Associates Ltd,23/07/2015,2000.00,Supplies and Services
 Schools,HEPS LTD,17/07/2015,456.98,Premises
Adult Social Care,HERITAGE CARE,15/07/2015,-2811.84,Income
Adult Social Care,HERITAGE CARE,20/07/2015,-7982.20,Income
Adult Social Care,HERITAGE CARE,15/07/2015,30896.00,Third Party
Adult Social Care,HERITAGE CARE,20/07/2015,94493.20,Third Party
 CXO,Hertel (UK) Ltd,10/07/2015,429.24,Premises
Other Education and Children's services,Hexagon Care Services,27/07/2015,15411.43,Third Party
Other Education and Children's services,High Grange Specialist School,22/07/2015,22578.00,Third Party
Other Education and Children's services,Higher Mapping Solutions,24/07/2015,750.00,Supplies and Services
Adult Social Care,Higherland Surgery,22/07/2015,613.20,Supplies and Services
 Schools,HIGHLY SPRUNG PERFORMANCE CO,10/07/2015,667.00,Supplies and Services
Highways and transport,Highways England Company Ltd,13/07/2015,5000.00,Capital
Other Education and Children's services,HILLS COACHES,14/07/2015,10388.80,Transport
 Schools,Histon House Ltd,09/07/2015,405.00,Employees
 Schools,Histon House Ltd,09/07/2015,5485.00,Supplies and Services
Law & Governence,HMCTS,07/07/2015,10275.00,Supplies and Services
Law & Governence,HMCTS,22/07/2015,18495.00,Supplies and Services
 Schools,HMM MECHANICAL SERVICES LTD,02/07/2015,1549.50,Premises
Corporate & Democratic Core,HMRC 586pf162869,20/07/2015,22991.01,Supplies & Services
 Schools,HOCA LEX AUTOLEASE LTD,08/07/2015,4656.53,Transport
 Schools,Hodder Education (Hodder Murra,17/07/2015,1550.94,Supplies and Services
Trading Service County Fleet Care,HOLDCROFT HANLEY,03/07/2015,525.19,Supplies and Services
Trading Service County Fleet Care,HOLDCROFT HONDA,16/07/2015,515.66,Supplies and Services
 Schools,HOLGATE HILL HOTEL,03/07/2015,3507.56,Supplies and Services
 Schools,HOLGATE HILL HOTEL,14/07/2015,3391.23,Supplies and Services
 Schools,HOLGATE HILL HOTEL,15/07/2015,3363.33,Supplies and Services
ICT,HOLIDAY INN,06/07/2015,935.00,Supplies and Services
Adult Social Care,Hollies Practice,22/07/2015,525.60,Supplies and Services
 Schools,Hollinsclough CE(VA) Pri Sch,14/07/2015,549.93,Premises
 Schools,HOLLINSHEAD'S COACHES LTD,15/07/2015,2110.00,Supplies and Services
Other Education and Children's services,HOLLINSHEAD'S COACHES LTD,14/07/2015,6337.70,Transport
 Schools,HOLY TRINITY PLAYGROUP,02/07/2015,6437.21,Supplies and Services
Health Trust,HOME INSTEAD SENIOR CARE,29/07/2015,1417.50,Supplies and Services
Health Trust,HOME INSTEAD SENIOR CARE,15/07/2015,1389.94,Supplies and Services
Health Trust,Home Instead Senior Care E Shr,15/07/2015,2240.00,Supplies and Services
Other Education and Children's services,HOME JAMES & EASY CAB,14/07/2015,4066.26,Transport
Other Education and Children's services,HOME JAMES & EASY CAB,31/07/2015,2402.79,Transport
Adult Social Care,HOME START EAST STAFFORDSHIRE,23/07/2015,2854.50,Supplies and Services
Other Education and Children's services,Homestart Staffordshire Moorla,16/07/2015,16250.00,Supplies and Services
Health Trust,Homestay Care Ltd,30/07/2015,1344.00,Supplies and Services
Health Trust,Homestay Care Ltd,31/07/2015,657.00,Supplies and Services
Health Trust,Homestay Care Ltd,02/07/2015,1728.00,Supplies and Services
Health Trust,Homestay Care Ltd,07/07/2015,8630.25,Supplies and Services
Health Trust,Homestay Care Ltd,09/07/2015,19528.00,Supplies and Services
Health Trust,Homestay Care Ltd,17/07/2015,2664.00,Supplies and Services
Health Trust,Homestay Care Ltd,20/07/2015,1032.00,Supplies and Services
 Schools,HOPE EDUCATION LTD,02/07/2015,457.29,Supplies and Services
 Schools,HOPE EDUCATION LTD,06/07/2015,459.99,Supplies and Services
 Schools,HOPE EDUCATION LTD,16/07/2015,2252.05,Supplies and Services
 Schools,HOPE EDUCATION LTD,17/07/2015,439.96,Supplies and Services
 Schools,HOPE EDUCATION LTD,20/07/2015,471.97,Supplies and Services
 Schools,HOPE EDUCATION LTD,21/07/2015,890.10,Supplies and Services
 Schools,HOPE EDUCATION LTD,23/07/2015,424.34,Supplies and Services
 Schools,HOPE EDUCATION LTD,24/07/2015,716.95,Supplies and Services
 Schools,HOPE EDUCATION LTD,27/07/2015,461.30,Supplies and Services
 Schools,HOPE EDUCATION LTD,29/07/2015,427.30,Supplies and Services
 Schools,HOPE EDUCATION LTD,31/07/2015,699.93,Supplies and Services
Other Education and Children's services,Hopedale Children & Families S,27/07/2015,40617.25,Third Party
 Schools,Hopwells,10/07/2015,486.93,Supplies and Services
 Schools,Hopwells,16/07/2015,556.97,Supplies and Services
Other Education and Children's services,Horizon Care & Education Group,27/07/2015,194411.03,Third Party
Planning & Economic Development,HORSLEYS OF STAFFORD,14/07/2015,468.00,Supplies and Services
Adult Social Care,Housing & Care 21,03/07/2015,19824.00,Supplies and Services
Adult Social Care,Housing & Care 21,23/07/2015,30825.32,Supplies and Services
Health Trust,Housing & Care 21,28/07/2015,37722.66,Supplies and Services
Health Trust,Housing & Care 21,17/07/2015,22853.68,Supplies and Services
Health Trust,Housing & Care 21,20/07/2015,22853.68,Supplies and Services
Health Trust,Housing & Care 21,31/07/2015,12904.00,Supplies and Services
 Schools,Howdens Joinery Co.,30/07/2015,631.69,Third Party
Other Education and Children's services,HUGGIES DAY NURSERY LTD,07/07/2015,1228.00,Supplies and Services
Trading Service Occupational Health,Hugh Symons Info Management Lt,28/07/2015,1859.60,Supplies and Services
Other Education and Children's services,HULMES TAXIS,14/07/2015,792.44,Transport
 Schools,Human Resource Solutions Limit,23/07/2015,550.00,Supplies and Services
 Schools,HYPERSPHERIC SOLUTIONS LTD,07/07/2015,2480.00,Supplies and Services
 Schools,I Evans,29/07/2015,500.00,Supplies and Services
 Schools,I.M.P.A.C.T First Ltd,01/07/2015,1803.95,Supplies and Services
 Schools,I.M.P.A.C.T First Ltd,06/07/2015,2303.95,Supplies and Services
 Schools,I.M.P.A.C.T First Ltd,13/07/2015,4707.90,Supplies and Services
 Schools,I.M.P.A.C.T First Ltd,27/07/2015,503.95,Supplies and Services
Trading Service Farms,IAN MOODY,13/07/2015,10613.98,Supplies and Services
Trading Service Farms,IAN MOODY,14/07/2015,2692.29,Supplies and Services
 Schools,IAN SMITH (STATIONERS) LTD,10/07/2015,446.40,Supplies and Services
 Schools,IAN SMITH (STATIONERS) LTD,14/07/2015,908.63,Supplies and Services
 Schools,Ian Smith Office Products Grou,08/07/2015,508.75,Supplies and Services
 Schools,Ian Smith Office Products Grou,14/07/2015,3227.15,Supplies and Services
 Schools,Ian Smith Office Products Grou,24/07/2015,1368.90,Supplies and Services
 Schools,IBI Group,10/07/2015,1500.00,Supplies and Services
Adult Social Care,ICE/AVI Ltd,01/07/2015,23055.00,Supplies and Services
Adult Social Care,ICE/AVI Ltd,24/07/2015,2528.00,Supplies and Services
 Schools,ICT EDUCATION SOLUTIONS,17/07/2015,665.00,Supplies and Services
 Schools,ICT NETWORKS LTD,01/07/2015,559.12,Supplies and Services
 Schools,ICT NETWORKS LTD,17/07/2015,575.75,Supplies and Services
Other Education and Children's services,IDEAL FOSTERING,27/07/2015,23190.11,Supplies and Services
Other Education and Children's services,IDEAL FOSTERING,27/07/2015,7921.38,Third Party
 Schools,IDFENCING MIDLANDS LTD,01/07/2015,3500.00,Supplies and Services
Law & Governence,Iken Business Ltd,29/07/2015,26000.00,Supplies and Services
 Schools,iLiveSounds,03/07/2015,570.00,Supplies and Services
 Schools,iLiveSounds,10/07/2015,570.00,Supplies and Services
 Schools,iLiveSounds,17/07/2015,570.00,Supplies and Services
 Schools,iLiveSounds,24/07/2015,570.00,Supplies and Services
 Schools,iLiveSounds,31/07/2015,570.00,Supplies and Services
 Schools,ILLUMINATE PUBLISHING,14/07/2015,924.60,Supplies and Services
Law & Governence,ILT LEGAL SERVICES LIMITED,13/07/2015,1406.00,Employees
Law & Governence,ILT LEGAL SERVICES LIMITED,20/07/2015,1267.25,Employees
Law & Governence,ILT LEGAL SERVICES LIMITED,29/07/2015,1202.50,Employees
Adult Social Care,Imagaprint,01/07/2015,1743.66,Supplies and Services
 Schools,IMAP CENTRE LTD,27/07/2015,4163.00,Supplies and Services
Adult Social Care,IMAP CENTRE LTD,27/07/2015,12112.14,Supplies and Services
 Schools,imovesdanceUK Ltd,24/07/2015,1047.00,Employees
Trading Service Central Print & Design,Impact Mail & Print Ltd,10/07/2015,1667.90,Supplies and Services
Other Education and Children's services,IMRAN TRAVEL,17/07/2015,4220.80,Transport
Highways and transport,IMTECH TRAFFIC & INFRA UK LTD,30/07/2015,12003.63,Third Party
Highways and transport,IMTECH TRAFFIC & INFRA UK LTD,21/07/2015,4229.61,Third Party
 Schools,INCLUSIVE TECHNOLOGY LTD,13/07/2015,431.50,Supplies and Services
 Schools,Inco Software Solutions,02/07/2015,1750.00,Supplies and Services
 Schools,INCUBE LTD,28/07/2015,2482.00,Supplies and Services
Other Education and Children's services,Independent Chldcr Grp of Schl,27/07/2015,66789.30,Supplies and Services
Other Education and Children's services,Independent Chldcr Grp of Schl,27/07/2015,37035.72,Third Party
Law & Governence,INDEPENDENT COMMUNITY ARTS PRT,08/07/2015,500.00,Third Party
 Schools,INDEPENDENT LEARNING CENTRE,16/07/2015,1425.00,Supplies and Services
Adult Social Care,INDEPENDENT LIVING SERV (EM) L,15/07/2015,13620.24,Third Party
 Schools,INDEX COMPUTER SUPPLIES LTD,14/07/2015,515.10,Supplies and Services
Other Education and Children's services,Indigo Training,14/07/2015,1250.00,Supplies and Services
 Schools,INFO & DATA NETWORK SUPPLIES L,30/07/2015,594.00,Supplies and Services
 Schools,Info & Data Networks Supp Ltd,02/07/2015,545.33,Supplies and Services
 Schools,Info & Data Networks Supp Ltd,08/07/2015,620.00,Supplies and Services
 Schools,Info & Data Networks Supp Ltd,13/07/2015,479.00,Supplies and Services
 Schools,Info & Data Networks Supp Ltd,17/07/2015,850.00,Supplies and Services
 Schools,Info & Data Networks Supp Ltd,20/07/2015,434.97,Supplies and Services
 Schools,Info & Data Networks Supp Ltd,29/07/2015,1762.22,Supplies and Services
Law & Governence,Information Security Advice Li,17/07/2015,2244.00,Employees
 Schools,Infotheek,28/07/2015,720.00,Supplies and Services
 Schools,Infotone Imaging Supplies Ltd,20/07/2015,526.13,Supplies and Services
 Schools,Initial Washroom Solutions,13/07/2015,870.64,Premises
Corporate & Democratic Core,Initial Washroom Solutions,13/07/2015,821.74,Supplies and Services
 Schools,Inkjets and Toners T/a Bentham,01/07/2015,1386.19,Supplies and Services
Cultural Services,Innovative People ID Solutions,30/07/2015,517.00,Supplies and Services
 Schools,INSIGHT (UK),21/07/2015,764.62,Supplies and Services
 Schools,INSIGHT DIRECT (UK) LTD,08/07/2015,5962.86,Supplies and Services
 Schools,Insight HR Limited,30/07/2015,1250.00,Employees
 Schools,Insight HR Limited,10/07/2015,1850.00,Supplies and Services
 Schools,Insight HR Limited,15/07/2015,1400.00,Supplies and Services
 Schools,Insight HR Limited,17/07/2015,482.50,Supplies and Services
 Schools,Insight HR Limited,21/07/2015,1317.50,Supplies and Services
 Schools,Insight HR Limited,28/07/2015,2730.00,Supplies and Services
 Schools,Insight Uk,20/07/2015,6775.86,Supplies and Services
Other Education and Children's services,INTER CITY CABS,15/07/2015,13257.36,Transport
 Schools,INVESTEC ASSET FINANCE PLC,06/07/2015,0.00,Supplies and Services
 Schools,iPad Academy Ltd,03/07/2015,1032.35,Supplies and Services
Other Education and Children's services,IRG Advisors LLP,15/07/2015,6036.07,Supplies and Services
Cultural Services,IRONMAN LTD,02/07/2015,62371.20,Supplies and Services
Corporate & Democratic Core,ISE Estates Ltd,03/07/2015,5583.46,Premises
 Schools,Isis Concepts Ltd,09/07/2015,3512.00,Supplies and Services
ICT,Isis Concepts Ltd,30/07/2015,709.15,Supplies and Services
ICT,Isis Concepts Ltd,07/07/2015,709.15,Supplies and Services
Corporate & Democratic Core,Isoton Ltd,01/07/2015,14454.72,Premises
 Schools,IT Direct Business Ltd,30/07/2015,954.83,Supplies and Services
 CXO,Itelligent-i,13/07/2015,1500.00,Supplies and Services
 Schools,ITN MARK EDUCATION,01/07/2015,2595.06,Employees
 Schools,ITN MARK EDUCATION,03/07/2015,420.00,Employees
 Schools,ITN MARK EDUCATION,08/07/2015,1694.85,Employees
 Schools,ITN MARK EDUCATION,09/07/2015,975.00,Employees
 Schools,ITN MARK EDUCATION,15/07/2015,3269.85,Employees
 Schools,ITN MARK EDUCATION,22/07/2015,1380.00,Employees
 Schools,ITN MARK EDUCATION,29/07/2015,975.00,Employees
 Schools,ITN MARK EDUCATION,15/07/2015,975.00,Supplies and Services
Other Education and Children's services,J & J TRAVEL,15/07/2015,4083.03,Transport
Other Education and Children's services,J & J TRAVEL,31/07/2015,2527.59,Transport
Other Education and Children's services,J & S Taxis,14/07/2015,3339.92,Transport
Other Education and Children's services,J & S Taxis,31/07/2015,2055.95,Transport
 Schools,J A K Water Systems Ltd,06/07/2015,923.50,Premises
 Schools,J A K Water Systems Ltd,17/07/2015,464.95,Premises
Highways and transport,J Airey,14/07/2015,1470.00,Supplies and Services
Cultural Services,J Bond,14/07/2015,510.70,Third Party
Law & Governence,J Bond,10/07/2015,600.00,Supplies and Services
Law & Governence,J CHEETHAM,31/07/2015,3180.00,Supplies and Services
Highways and transport,J E THOMPSON PLANT HIRE,21/07/2015,2300.00,Capital
Cultural Services,J Gill,31/07/2015,599.00,Supplies and Services
Other Education and Children's services,J GIORGINO TRANSPORT,15/07/2015,2172.50,Transport
 Schools,J HEARSON,20/07/2015,850.00,Supplies and Services
 Schools,J HOLDCROFT,13/07/2015,2887.50,Supplies and Services
 Schools,J J Fox,03/07/2015,1025.00,Employees
 Schools,J J Fox,06/07/2015,750.00,Employees
 Schools,J J Fox,14/07/2015,750.00,Employees
 Schools,J J Fox,16/07/2015,1640.00,Employees
 Schools,J J Fox,20/07/2015,2800.00,Employees
 Schools,J J Fox,22/07/2015,1638.00,Employees
 Schools,J J Fox,24/07/2015,546.00,Employees
 Schools,J J Fox,27/07/2015,750.00,Employees
 Schools,J J Fox,28/07/2015,1025.00,Employees
Other Education and Children's services,J Kaminski,29/07/2015,1768.00,Supplies and Services
Other Education and Children's services,J Kaminski,30/07/2015,3695.82,Supplies and Services
 CXO,J L FINDLOW & SONS LTD,07/07/2015,2040.11,Premises
 Schools,J L FINDLOW & SONS LTD,20/07/2015,1325.00,Supplies and Services
 Schools,J Maddison,14/07/2015,843.75,Supplies and Services
 Schools,J Morrey,13/07/2015,583.20,Supplies and Services
 Schools,J Morris,22/07/2015,736.00,Supplies and Services
Highways and transport,J MURPHY & SONS LTD,09/07/2015,17270.15,Capital
Law & Governence,J O'Shea,03/07/2015,1020.00,Supplies and Services
Highways and transport,J P C S Signs Ltd,10/07/2015,2488.50,Supplies and Services
Highways and transport,J P C S Signs Ltd,14/07/2015,4943.65,Supplies and Services
 Schools,J Painter,31/07/2015,600.00,Employees
ICT,J Roberts,15/07/2015,2755.00,Supplies and Services
ICT,J Roberts,29/07/2015,1862.50,Supplies and Services
Other Education and Children's services,J Shenton,31/07/2015,575.00,Supplies and Services
Other Education and Children's services,J Shenton,07/07/2015,575.00,Supplies and Services
Law & Governence,J Sparrow,10/07/2015,840.00,Supplies and Services
Highways and transport,J Stokes,10/07/2015,100.00,Supplies and Services
Planning & Economic Development,J Stokes,10/07/2015,500.00,Supplies and Services
 Schools,J Villis,15/07/2015,1492.50,Supplies and Services
ICT,J Yates,21/07/2015,2000.00,Supplies and Services
ICT,Ja.Net,15/07/2015,35610.89,Supplies and Services
Highways and transport,JACKIE RILEY SCHOOL OF MOTORIN,17/07/2015,2450.00,Supplies and Services
Planning & Economic Development,Jacksons Marquee Hire Ltd,14/07/2015,1100.00,Supplies and Services
 Schools,JAMES J BARKER,13/07/2015,3750.00,Supplies and Services
 Schools,JANTEX FURNISHING CO LTD,01/07/2015,1400.00,Premises
 Schools,JANTEX FURNISHING CO LTD,22/07/2015,1111.00,Premises
 Schools,JANTEX FURNISHING CO LTD,14/07/2015,1070.00,Supplies and Services
 Schools,Jasmines Magic Parties,20/07/2015,650.00,Supplies and Services
Other Education and Children's services,JAY FOSTERING LTD,27/07/2015,8825.43,Supplies and Services
Other Education and Children's services,Jay's Taxis,14/07/2015,1468.06,Transport
 Schools,JC Academy Ltd,23/07/2015,1950.00,Employees
 Schools,JCA Graphics,17/07/2015,509.78,Supplies and Services
 Schools,JCM SEATING SOLUTIONS LTD,02/07/2015,2567.37,Supplies and Services
 Schools,JELLY JAMES PUBLISHING LTD,16/07/2015,1107.79,Supplies and Services
 Schools,JEM,02/07/2015,937.00,Supplies and Services
 Schools,Jigsaw ICT Solutions- More IT,14/07/2015,1110.00,Supplies and Services
 Schools,JKT International Ltd T/A Karv,28/07/2015,650.00,Supplies and Services
Other Education and Children's services,JKT International Ltd T/A Karv,15/07/2015,10436.14,Transport
Other Education and Children's services,JKT International Ltd T/A Karv,16/07/2015,6128.32,Transport
Planning & Economic Development,JKT International Ltd T/A Karv,15/07/2015,2420.00,Transport
Adult Social Care,JLA LTD,21/07/2015,452.34,Supplies and Services
 Schools,JM MacDonald,14/07/2015,600.00,Employees
 Schools,JOHN KNIGHT INTERIORS,15/07/2015,5037.57,Supplies and Services
 Schools,John Lewis For Business,01/07/2015,7900.00,Supplies and Services
Planning & Economic Development,John Lowe Catering Services,14/07/2015,1666.50,Supplies and Services
Adult Social Care,JOHN M WALLEY TAXI,21/07/2015,1250.00,Transport
Other Education and Children's services,JOHN M WALLEY TAXI,15/07/2015,606.00,Transport
 Schools,JOHN MAIN LTD,07/07/2015,5592.00,Premises
Cultural Services,JOHN PURCELL PAPER,17/07/2015,560.50,Supplies and Services
 Schools,John Taylor High School,14/07/2015,600.00,Employees
 Schools,John Taylor High School,20/07/2015,750.00,Employees
 Schools,John Taylor High School,17/07/2015,600.00,Supplies and Services
 Schools,John Taylor High School,24/07/2015,1600.00,Supplies and Services
 Schools,John Wheeldon Primary Academy,07/07/2015,610.95,Supplies and Services
Other Education and Children's services,John's Taxis,14/07/2015,1254.00,Transport
Other Education and Children's services,John's Taxis,31/07/2015,741.00,Transport
Trading Service County Fleet Care,JOHNSONS APPARELMASTER LTD,10/07/2015,674.52,Supplies and Services
 Schools,Johnsons of Nantwich Ltd,09/07/2015,697.00,Supplies and Services
 Schools,JONES WASTE SERVICES LTD,10/07/2015,510.00,Supplies and Services
 Schools,JST INTERNATIONAL LTD,17/07/2015,1275.00,Supplies and Services
 Schools,JST INTERNATIONAL LTD,29/07/2015,820.00,Supplies and Services
Other Education and Children's services,JST INTERNATIONAL LTD,14/07/2015,2939.58,Transport
Planning & Economic Development,JST INTERNATIONAL LTD,14/07/2015,1342.13,Transport
 Schools,JTS JOINERY,17/07/2015,1570.00,Premises
Law & Governence,Julie Moseley,10/07/2015,1800.00,Supplies and Services
Adult Social Care,Jump 2 Independence Ltd,01/07/2015,7615.96,Third Party
Adult Social Care,Jump 2 Independence Ltd,15/07/2015,2674.05,Third Party
Adult Social Care,Jump 2 Independence Ltd,21/07/2015,859.12,Third Party
Adult Social Care,Jump 2 Independence Ltd,23/07/2015,15253.20,Third Party
Adult Social Care,Jump 2 Independence Ltd,30/07/2015,1013.68,Third Party
Health Trust,Jump 2 Independence Ltd,24/07/2015,2164.12,Supplies and Services
Health Trust,Jump 2 Independence Ltd,28/07/2015,1332.84,Supplies and Services
Health Trust,Jump 2 Independence Ltd,31/07/2015,6866.86,Supplies and Services
Health Trust,Jump 2 Independence Ltd,02/07/2015,6714.86,Supplies and Services
Health Trust,Jump 2 Independence Ltd,13/07/2015,5193.60,Supplies and Services
Health Trust,Jump 2 Independence Ltd,14/07/2015,3470.95,Supplies and Services
Health Trust,Jump 2 Independence Ltd,17/07/2015,2422.56,Supplies and Services
Health Trust,Jump 2 Independence Ltd,24/07/2015,-612.87,Supplies and Services
Health Trust,Jump 2 Independence Ltd,24/07/2015,1128.72,Third Party
Health Trust,Jump 2 Independence Ltd,28/07/2015,2257.44,Third Party
 Schools,JWB Consultancy Ltd,01/07/2015,1370.00,Supplies and Services
 Schools,K & M WHOLESALE SUPPLIERS LTD,03/07/2015,564.61,Supplies and Services
Trading Service Farms,K & S INSTALLATIONS,10/07/2015,1355.00,Supplies and Services
Trading Service Farms,K & S INSTALLATIONS,28/07/2015,420.00,Supplies and Services
Other Education and Children's services,K & Z Hussain,14/07/2015,910.00,Transport
Other Education and Children's services,K & Z Hussain,31/07/2015,1690.00,Transport
 Schools,K Berrisford,16/07/2015,2500.00,Employees
 Schools,K Berrisford,30/07/2015,2250.00,Employees
Other Education and Children's services,K Cabs,20/07/2015,11341.60,Transport
Other Education and Children's services,K Hulse,01/07/2015,504.09,Supplies and Services
Other Education and Children's services,K Hulse,27/07/2015,730.70,Supplies and Services
Other Education and Children's services,K Lynch,16/07/2015,515.40,Employees
Law & Governence,K MOORE,10/07/2015,2160.00,Supplies and Services
 Schools,K R C S Group Plc,03/07/2015,9394.95,Supplies and Services
 Schools,K R C S Group Plc,06/07/2015,21965.00,Supplies and Services
 Schools,K R C S Group Plc,09/07/2015,5700.54,Supplies and Services
 Schools,K R C S Group Plc,10/07/2015,2210.00,Supplies and Services
 CXO,K Rowe,13/07/2015,600.00,Supplies and Services
Other Education and Children's services,K S VERLANDER,24/07/2015,744.00,Transport
 Schools,K Williamson,06/07/2015,536.70,Supplies and Services
Other Education and Children's services,Kaleidoscope Plus Group,14/07/2015,6750.00,Supplies and Services
 Schools,KAMINSKI CORPORATE LTD,15/07/2015,695.30,Transport
Other Education and Children's services,KAMINSKI CORPORATE LTD,14/07/2015,2467.16,Transport
Other Education and Children's services,KAMINSKI CORPORATE LTD,31/07/2015,1219.56,Transport
Law & Governence,Kanyini Education CIC,16/07/2015,2827.00,Third Party
Health Trust,Kare Plus Stafford,31/07/2015,1019.84,Supplies and Services
Health Trust,Kare Plus Stafford,06/07/2015,2324.76,Supplies and Services
Adult Social Care,KCom Group PLC,17/07/2015,4279.98,Supplies and Services
ICT,KCom Group PLC,03/07/2015,577.48,Supplies and Services
ICT,KCom Group PLC,07/07/2015,587.05,Supplies and Services
ICT,KCom Group PLC,15/07/2015,43240.93,Supplies and Services
ICT,KCom Group PLC,23/07/2015,666.67,Supplies and Services
ICT,KCom Group PLC,24/07/2015,72069.65,Supplies and Services
ICT,KCom Group PLC,29/07/2015,27346.86,Supplies and Services
 Schools,KEELE UNIVERSITY,29/07/2015,1684.24,Supplies and Services
ICT,KEELE UNIVERSITY,30/07/2015,5822.53,Employees
ICT,KEELE UNIVERSITY,30/07/2015,1044.86,Supplies and Services
ICT,KEELE UNIVERSITY,30/07/2015,101.00,Transport
Planning & Economic Development,KEELE UNIVERSITY,13/07/2015,6100.00,Supplies and Services
 Schools,Keison International Ltd T/a V,23/07/2015,2792.80,Supplies and Services
 Schools,Keltic,17/07/2015,1882.50,Supplies and Services
 Schools,Kent County Council,07/07/2015,2013.43,Supplies and Services
Health Trust,Kerrier Home Care,27/07/2015,3120.00,Supplies and Services
 Schools,Key Property Invstmnts (No Two,08/07/2015,430.35,Premises
 Schools,Key Property Invstmnts (No Two,16/07/2015,600.53,Premises
 Schools,Key Support Services Limited,03/07/2015,982.00,Supplies and Services
 Schools,Key Support Services Limited,08/07/2015,660.00,Supplies and Services
 Schools,Key Support Services Limited,09/07/2015,484.00,Supplies and Services
 Schools,Key Support Services Limited,10/07/2015,982.00,Supplies and Services
 Schools,Key Support Services Limited,14/07/2015,660.00,Supplies and Services
 Schools,Key Support Services Limited,17/07/2015,660.00,Supplies and Services
 Schools,Key Support Services Limited,24/07/2015,660.00,Supplies and Services
 Schools,Key Support Services Limited,27/07/2015,982.00,Supplies and Services
Planning & Economic Development,KEYCRAFT,16/07/2015,808.74,Supplies and Services
Highways and transport,Keynetix Ltd,21/07/2015,667.95,Supplies and Services
 Schools,KIDS ADVENTUROUS ACTIVITIES,01/07/2015,990.00,Supplies and Services
Other Education and Children's services,Kids Project Management Servic,24/07/2015,4587.14,Supplies and Services
ICT,KINETIC Academy Limited,14/07/2015,720.00,Supplies and Services
Entrust,Kings Armoured Security Servic,14/07/2015,3081.11,Supplies and Services
Finance,Kings Armoured Security Servic,09/07/2015,687.61,Supplies and Services
Law & Governence,Kings Bromley Historians,02/07/2015,1500.00,Third Party
 Schools,KINGSWINFORD COACHWAYS LTD,16/07/2015,850.00,Supplies and Services
Other Education and Children's services,KINGSWINFORD COACHWAYS LTD,14/07/2015,3520.00,Transport
 Schools,KINGSWOOD COLOMENDY LTD,02/07/2015,1160.00,Supplies and Services
 Schools,KINGSWOOD COLOMENDY LTD,07/07/2015,3165.40,Supplies and Services
 Schools,KINGSWOOD COLOMENDY LTD,17/07/2015,1595.00,Supplies and Services
 Schools,KINGSWOOD LEARN & LEIS GRP LTD,01/07/2015,1200.00,Supplies and Services
 Schools,KINGSWOOD LEARN & LEIS GRP LTD,03/07/2015,600.00,Supplies and Services
 Schools,KINGSWOOD LEARN & LEIS GRP LTD,07/07/2015,6183.50,Supplies and Services
 Schools,KINGSWOOD LEARN & LEIS GRP LTD,14/07/2015,6448.00,Supplies and Services
 Schools,KINGSWOOD LEARN & LEIS GRP LTD,17/07/2015,1650.00,Supplies and Services
 Schools,KINGSWOOD LEARN & LEIS GRP LTD,31/07/2015,625.00,Supplies and Services
Other Education and Children's services,KIRWIN MACLEAN ASSOCIATES LTD,20/07/2015,683.20,Supplies and Services
 Schools,Kitronik Ltd,03/07/2015,446.46,Supplies and Services
 Schools,Knighton Janitorial,20/07/2015,728.09,Premises
 Schools,Knighton Janitorial,09/07/2015,767.50,Supplies and Services
Highways and transport,KNIGHTS PROFESSIONAL SERVICES,09/07/2015,1875.00,Capital
Trading Service County Fleet Care,Knights South Staffordshire,02/07/2015,619.24,Supplies and Services
Trading Service County Fleet Care,Knights South Staffordshire,16/07/2015,439.46,Supplies and Services
Trading Service County Fleet Care,Knights South Staffordshire,28/07/2015,756.31,Supplies and Services
Corporate & Democratic Core,KONE PLC,09/07/2015,1933.92,Premises
 Schools,KONICA BUSINESS MACHINES (UK)L,31/07/2015,1258.22,Supplies and Services
 Schools,KONICA MINOLTA BUS SOLS (UK) L,08/07/2015,2640.65,Supplies and Services
 Schools,KONICA MINOLTA BUS SOLS (UK) L,16/07/2015,1080.21,Supplies and Services
 Schools,KONICA MINOLTA BUS SOLS (UK) L,21/07/2015,524.65,Supplies and Services
 Schools,KONICA MINOLTA BUS SOLS (UK) L,22/07/2015,524.65,Supplies and Services
 Schools,KONICA MINOLTA BUS SOLS (UK) L,23/07/2015,625.63,Supplies and Services
 Schools,Konica Minolta Busnss Sols Eas,08/07/2015,4239.29,Income
 Schools,Konica Minolta Busnss Sols Eas,16/07/2015,2723.70,Supplies and Services
Planning & Economic Development,KPL Landscapes,10/07/2015,839.62,Premises
 Schools,KYBOTECH LTD,02/07/2015,745.00,Supplies and Services
Other Education and Children's services,L A TRAVEL,14/07/2015,18688.78,Transport
Other Education and Children's services,L A TRAVEL,31/07/2015,11043.37,Transport
 Schools,L BIRTWISTLE,03/07/2015,600.00,Employees
 Schools,L BIRTWISTLE,27/07/2015,550.00,Employees
Other Education and Children's services,L Burrows,06/07/2015,900.00,Employees
Other Education and Children's services,L Burrows,13/07/2015,900.00,Employees
Other Education and Children's services,L Burrows,24/07/2015,900.00,Employees
Other Education and Children's services,L Burrows,27/07/2015,900.00,Employees
 Schools,L C Batty,24/07/2015,2520.00,Employees
 Schools,L DEBNAM BEM,20/07/2015,1721.25,Supplies and Services
 Schools,L GLYNN-HUISMAN,24/07/2015,825.00,Employees
Highways and transport,L Guildford,10/07/2015,725.00,Supplies and Services
 Schools,L Hirst,03/07/2015,900.00,Supplies and Services
Other Education and Children's services,L Instone,03/07/2015,575.00,Supplies and Services
 Schools,L R WEST-MULLEN,17/07/2015,775.00,Employees
 Schools,L Smith,07/07/2015,1010.00,Supplies and Services
 Schools,L Smith,31/07/2015,730.00,Supplies and Services
 Schools,La Salle Education Ltd,28/07/2015,1750.00,Supplies and Services
 Schools,Laburnam House Educational Ltd,16/07/2015,546.41,Supplies and Services
Cultural Services,LANDAU LTD,13/07/2015,797.20,Third Party
 Schools,LAPTOP HOUSE,01/07/2015,3753.20,Supplies and Services
 Schools,LAPTOP HOUSE,07/07/2015,461.30,Supplies and Services
 Schools,LAPTOP HOUSE,10/07/2015,1032.14,Supplies and Services
 Schools,LAPTOP HOUSE,27/07/2015,7526.00,Supplies and Services
 Schools,LAPTOP HOUSE,29/07/2015,1463.62,Supplies and Services
Cultural Services,Latitude Mapping Ltd,17/07/2015,939.62,Supplies and Services
Adult Social Care,LAUREL HOUSE SURGERY,24/07/2015,613.20,Supplies and Services
Other Education and Children's services,LEA HALL COLL MINERS WELFARE C,03/07/2015,650.00,Supplies and Services
Law & Governence,Leadout,06/07/2015,500.00,Third Party
 Schools,LEAFIELD ENVIRONMENTAL LTD,06/07/2015,617.00,Premises
 Schools,Leah Kirkman Ltd,24/07/2015,1888.80,Supplies and Services
 Schools,Learn & Move Ltd,17/07/2015,3086.98,Supplies and Services
 Schools,LEARNING PLUS UK,23/07/2015,550.00,Supplies and Services
 Schools,LEARNINGBOOK LIMITED,03/07/2015,426.50,Supplies and Services
 Schools,LEARNINGBOOK LIMITED,07/07/2015,428.00,Supplies and Services
Corporate & Democratic Core,LECTRI-CALL LTD,23/07/2015,535.04,Premises
Other Education and Children's services,Leek Link Taxis,10/07/2015,748.00,Supplies and Services
 Schools,LEEK SIGNS & GRAPHICS LTD,08/07/2015,1185.00,Supplies and Services
Highways and transport,LEEK TOWN COUNCIL,30/07/2015,1319.75,Third Party
Other Education and Children's services,Legal Service Translation & In,20/07/2015,2616.00,Supplies and Services
Planning & Economic Development,LEICESTERSHIRE COUNTY COUNCIL,14/07/2015,4530.80,Supplies and Services
Trading Service Central Print & Design,LEICESTERSHIRE COUNTY COUNCIL,03/07/2015,523.41,Supplies and Services
 Schools,LendMeYourLearning Ltd,27/07/2015,700.00,Supplies and Services
Adult Social Care,LEONARD CHESHIRE FOUNDATION,10/07/2015,7135.32,Supplies and Services
 CXO,LEON'S COACH TRAVEL STAFFORD L,27/07/2015,6080.36,Premises
 Schools,LEON'S COACH TRAVEL STAFFORD L,14/07/2015,500.00,Supplies and Services
 Schools,LEON'S COACH TRAVEL STAFFORD L,17/07/2015,0.00,Supplies and Services
 Schools,LEON'S COACH TRAVEL STAFFORD L,27/07/2015,695.00,Supplies and Services
 Schools,LEON'S COACH TRAVEL STAFFORD L,29/07/2015,850.00,Supplies and Services
 Schools,LEON'S COACH TRAVEL STAFFORD L,08/07/2015,600.00,Transport
 Schools,LEON'S COACH TRAVEL STAFFORD L,16/07/2015,2335.00,Transport
 Schools,LEON'S COACH TRAVEL STAFFORD L,21/07/2015,750.00,Transport
 Schools,LEON'S COACH TRAVEL STAFFORD L,27/07/2015,590.00,Transport
Other Education and Children's services,LEON'S COACH TRAVEL STAFFORD L,14/07/2015,26221.19,Transport
 Schools,Lesniak Swann Ltd,15/07/2015,2882.04,Supplies and Services
Planning & Economic Development,Lesniak Swann Ltd,07/07/2015,3000.00,Supplies and Services
Planning & Economic Development,Lesniak Swann Ltd,14/07/2015,2059.80,Supplies and Services
Other Education and Children's services,Lewis Mini Travel,14/07/2015,2090.00,Transport
Law & Governence,Lexglade Ltd,17/07/2015,1994.30,Employees
 Schools,LEXIA UK,14/07/2015,1146.00,Supplies and Services
Law & Governence,LGG LTD,16/07/2015,500.00,Supplies and Services
Other Education and Children's services,Liberty Staffordshire CIC,17/07/2015,8300.00,Supplies and Services
Law & Governence,LICHFIELD ARTS,28/07/2015,1000.00,Third Party
 Schools,LICHFIELD DIOCESAN BOARD ED,01/07/2015,900.00,Employees
 Schools,LICHFIELD DIOCESAN BOARD ED,06/07/2015,530.00,Employees
 Schools,LICHFIELD DIOCESAN BOARD ED,21/07/2015,1371.20,Premises
 Schools,LICHFIELD DIOCESAN BOARD ED,17/07/2015,530.00,Supplies and Services
 Schools,LICHFIELD DIOCESAN BOARD ED,20/07/2015,1375.82,Supplies and Services
 Schools,LICHFIELD DIOCESAN BOARD ED,23/07/2015,2750.00,Supplies and Services
 Schools,LICHFIELD DIOCESAN BOARD ED,27/07/2015,635.00,Supplies and Services
 Schools,Lichfield Diocesan Board of Ed,06/07/2015,538.49,Supplies and Services
 Schools,LICHFIELD DIOCESAN BOARD OF FI,24/07/2015,581.47,Premises
 Schools,LICHFIELD DIOCESE,08/07/2015,0.00,Supplies and Services
 CXO,LICHFIELD DISTRICT COUNCIL,15/07/2015,9366.67,Premises
 CXO,LICHFIELD DISTRICT COUNCIL,02/07/2015,75000.00,Supplies and Services
Adult Social Care,LICHFIELD DISTRICT COUNCIL,08/07/2015,71340.00,Supplies and Services
Adult Social Care,LICHFIELD DISTRICT COUNCIL,09/07/2015,6657.00,Supplies and Services
Environment,LICHFIELD DISTRICT COUNCIL,08/07/2015,12250.00,Premises
Environment,LICHFIELD DISTRICT COUNCIL,24/07/2015,93735.29,Supplies and Services
Law & Governence,Lichfield Festival,08/07/2015,750.00,Third Party
 Schools,Lichfield Garrick Theatre,06/07/2015,450.00,Income
 Schools,LICHFIELDS FITTED FURNITURE SO,21/07/2015,571.40,Supplies and Services
Adult Social Care,Lifeline Project,21/07/2015,235386.25,Supplies and Services
Adult Social Care,Lifeways Community Care Ltd,20/07/2015,-5676.64,Income
Adult Social Care,Lifeways Community Care Ltd,20/07/2015,83991.20,Third Party
 Schools,LIFT & ENGINEERING SERVS LTD,07/07/2015,2200.00,Capital
 Schools,LIFT & ENGINEERING SERVS LTD,03/07/2015,450.00,Premises
 Schools,Lift Creative Ltd,22/07/2015,2000.00,Supplies and Services
Highways and transport,LIGHTING FOR STAFFORDSHIRE LTD,24/07/2015,891605.66,Supplies and Services
 Schools,Limelight Marketing Comms Ltd,20/07/2015,1175.00,Supplies and Services
 Schools,Limoges Work Experience Associ,14/07/2015,1080.00,Supplies and Services
Adult Social Care,LINFIELD CARE LIMITED,14/07/2015,28488.33,Supplies and Services
Adult Social Care,LINFIELD CARE LIMITED,23/07/2015,929.40,Supplies and Services
Adult Social Care,LINFIELD CARE LIMITED,14/07/2015,25523.51,Third Party
Health Trust,LINFIELD CARE LIMITED,14/07/2015,10521.35,Supplies and Services
 Schools,Lion F P G,14/07/2015,874.00,Supplies and Services
Trading Service Central Print & Design,Lion F P G,08/07/2015,6290.00,Supplies and Services
Trading Service Central Print & Design,Lion F P G Ltd,08/07/2015,1412.00,Supplies and Services
Adult Social Care,Liquid Personnel Ltd,20/07/2015,14190.52,Supplies and Services
 Schools,LITTLE CLEANING COMPANY,01/07/2015,528.20,Premises
Childrens Services,LITTLE POTTERS DAY NURSERY,29/07/2015,4165.21,Capital
 Schools,Little Treasures Childcare Lim,09/07/2015,7168.05,Supplies and Services
Property,Live Work Network Limited,06/07/2015,3950.00,Capital
Health Trust,LJM Homecare Ltd,09/07/2015,2394.00,Supplies and Services
Health Trust,LJM Homecare Ltd,22/07/2015,4630.68,Supplies and Services
Health Trust,LJM Homecare Ltd,27/07/2015,820.80,Supplies and Services
 Schools,LMA ACADEMY,01/07/2015,995.50,Supplies and Services
 Schools,LNL LTD,02/07/2015,499.99,Supplies and Services
 Schools,Local World Ltd,07/07/2015,2100.00,Employees
 Schools,Local World Ltd,10/07/2015,1238.00,Employees
 Schools,Local World Ltd,14/07/2015,3036.00,Employees
 Schools,Local World Ltd,24/07/2015,1069.00,Employees
 Schools,Local World Ltd,27/07/2015,490.00,Employees
Adult Social Care,Local World Ltd,13/07/2015,500.02,Employees
Other Education and Children's services,Local World Ltd,01/07/2015,650.03,Supplies and Services
Planning & Economic Development,Local World Ltd,10/07/2015,750.04,Supplies and Services
Planning & Economic Development,Local World Ltd,31/07/2015,2820.14,Supplies and Services
 Schools,LOCKERS DIRECT 2 U,24/07/2015,1119.32,Supplies and Services
Other Education and Children's services,LODDON SCHOOL,31/07/2015,8240.00,Supplies and Services
 Schools,LODGE FARM RDA,20/07/2015,500.00,Transport
Other Education and Children's services,LONDON MIDLAND,10/07/2015,6770.90,Transport
 Schools,Longdon Hall School,16/07/2015,20168.30,Supplies and Services
 Schools,Longdon Hall School,20/07/2015,12456.67,Supplies and Services
Finance,LOOKERS LEASING LTD,02/07/2015,5658.00,Transport
Finance,LOOKERS LEASING LTD,03/07/2015,3287.86,Transport
Finance,LOOKERS LEASING LTD,08/07/2015,3456.30,Transport
Finance,LOOKERS LEASING LTD,09/07/2015,4759.99,Transport
Finance,LOOKERS LEASING LTD,14/07/2015,90451.80,Transport
Finance,LOOKERS LEASING LTD,20/07/2015,4611.32,Transport
Finance,LOOKERS LEASING LTD,21/07/2015,1717.26,Transport
Finance,LOOKERS LEASING LTD,29/07/2015,5876.95,Transport
Finance,LOOKERS LEASING LTD,30/07/2015,4696.93,Transport
Other Education and Children's services,LOOKERS LEASING LTD,14/07/2015,17032.27,Transport
Trading Service County Fleet Care,LOOKERS LEASING LTD,09/07/2015,5400.00,Transport
Adult Social Care,Loomer Road Surgery,22/07/2015,700.80,Supplies and Services
 Schools,Lord O'Neill's 1966 Settlement,24/07/2015,1950.00,Premises
 CXO,Lovell Partnerships Ltd,06/07/2015,3116.87,Premises
Health Trust,LSC Nursing Care & Services Lt,09/07/2015,963.87,Supplies and Services
Health Trust,LSC Nursing Care & Services Lt,14/07/2015,886.76,Supplies and Services
Health Trust,LSC Nursing Care & Services Lt,24/07/2015,882.49,Supplies and Services
Health Trust,LSC Nursing Care & Services Lt,27/07/2015,902.99,Supplies and Services
Health Trust,LSC Nursing Care & Services Lt,28/07/2015,883.69,Supplies and Services
 Schools,Lttle learners at Fulford Pre,02/07/2015,10914.89,Supplies and Services
Other Education and Children's services,LUCKY SEVEN PRIVATE HIRE,15/07/2015,37665.10,Transport
 Schools,LUDUS LEISURE LTD,14/07/2015,707.00,Supplies and Services
 Schools,Lyceum Theatre Crewe Limited,15/07/2015,440.00,Supplies and Services
Highways and transport,Lynbrook Repographic Limited,08/07/2015,419.00,Supplies and Services
 Schools,Lyncraft Marketing & Exhibitio,10/07/2015,448.00,Supplies and Services
 Schools,Lyncraft Marketing & Exhibitio,31/07/2015,466.40,Supplies and Services
 Schools,LYRECO UK LTD,14/07/2015,478.00,Supplies and Services
 Schools,LYRECO UK LTD,15/07/2015,525.23,Supplies and Services
Other Education and Children's services,M & D TRAVEL,14/07/2015,3947.68,Transport
 Schools,M & K INTERVIEWS,13/07/2015,720.00,Employees
 Schools,M & M PRODUCTIONS,13/07/2015,1945.00,Supplies and Services
Planning & Economic Development,M & R WILLIAMS FARM SERVICES L,10/07/2015,570.00,Supplies and Services
Planning & Economic Development,M BISSELL DISPLAY LTD,09/07/2015,1910.00,Supplies and Services
Adult Social Care,M E L RESEARCH LTD,16/07/2015,3739.00,Supplies and Services
Other Education and Children's services,M G CHALLINOR T/A CHALLINOR TR,14/07/2015,2816.00,Transport
 Schools,M GREAVES,20/07/2015,700.00,Supplies and Services
Other Education and Children's services,M Gruic,08/07/2015,876.18,Employees
Trading Service Farms,M HINDE,23/07/2015,852.48,Supplies and Services
 Schools,M Holland,07/07/2015,660.00,Supplies and Services
 Schools,M J GOODHEAD,22/07/2015,858.00,Employees
 Schools,M J Readman,17/07/2015,630.00,Supplies and Services
 Schools,M Johnson,24/07/2015,750.00,Premises
 Schools,M MARSAY,29/07/2015,500.00,Supplies and Services
Other Education and Children's services,M N MAHMOOD,15/07/2015,1600.50,Transport
Highways and transport,M O'NEILL,28/07/2015,735.00,Supplies and Services
 Schools,M Oram,15/07/2015,1057.60,Employees
 Schools,M P B Garden Buildings Ltd,27/07/2015,441.67,Premises
 Schools,M P JOINERY & BUILDING SERVS L,10/07/2015,1653.23,Premises
 Schools,M P JOINERY & BUILDING SERVS L,10/07/2015,3778.80,Third Party
Finance,M R H AUTOS,28/07/2015,965.15,Supplies and Services
 Schools,M Sellar,30/07/2015,680.00,Supplies and Services
Adult Social Care,M SHAPLEY & PARTNERS,22/07/2015,3346.00,Supplies and Services
Other Education and Children's services,M T TRAVEL,10/07/2015,1226.33,Transport
Other Education and Children's services,M T TRAVEL,14/07/2015,13620.07,Transport
 Schools,M Taylor,17/07/2015,822.00,Premises
 CXO,M W CRIPWELL LTD,01/07/2015,1332.29,Premises
 CXO,M W CRIPWELL LTD,02/07/2015,2449.05,Premises
 CXO,M W CRIPWELL LTD,09/07/2015,2308.86,Premises
 CXO,M W CRIPWELL LTD,27/07/2015,466.13,Premises
 Schools,M W CRIPWELL LTD,29/07/2015,12299.01,Capital
 Schools,M W CRIPWELL LTD,07/07/2015,2175.55,Capital
 Schools,M W CRIPWELL LTD,09/07/2015,198.00,Capital
 Schools,M W CRIPWELL LTD,10/07/2015,10112.00,Capital
 Schools,M W CRIPWELL LTD,14/07/2015,17595.00,Capital
 Schools,M W CRIPWELL LTD,09/07/2015,692.67,Premises
 Schools,M W CRIPWELL LTD,10/07/2015,574.00,Premises
 Schools,M W CRIPWELL LTD,13/07/2015,1625.73,Premises
 Schools,M W CRIPWELL LTD,14/07/2015,532.49,Premises
 Schools,M W CRIPWELL LTD,17/07/2015,1821.85,Premises
 Schools,M W CRIPWELL LTD,02/07/2015,878.86,Supplies and Services
 Schools,M W CRIPWELL LTD,14/07/2015,740.00,Third Party
Adult Social Care,M W CRIPWELL LTD,16/07/2015,603.67,Capital
Corporate & Democratic Core,M W CRIPWELL LTD,21/07/2015,1965.00,Premises
Planning & Economic Development,M W CRIPWELL LTD,09/07/2015,198.00,Premises
Planning & Economic Development,M W CRIPWELL LTD,14/07/2015,1861.00,Premises
Property,M W CRIPWELL LTD,14/07/2015,656.27,Capital
 Schools,M Wardle,13/07/2015,3750.00,Supplies and Services
Other Education and Children's services,M Wyatt,15/07/2015,8420.72,Transport
 Schools,Macquarie Equipment Finance UK,03/07/2015,615.12,Supplies and Services
 Schools,Macquarie Equipment Finance UK,24/07/2015,1729.12,Supplies and Services
 Schools,Mad Science of the West Midlan,27/07/2015,675.00,Supplies and Services
 Schools,MADELEINE LINDLEY LTD,21/07/2015,2200.00,Supplies and Services
 Schools,MAGGIE SANGER EDUC SERVICES LT,23/07/2015,500.00,Supplies and Services
 Schools,Magical Mayhem,06/07/2015,975.00,Supplies and Services
 Schools,Maitek Solutions Ltd,03/07/2015,779.75,Supplies and Services
Other Education and Children's services,MAJESTIC TRAVEL,15/07/2015,11134.64,Transport
Cultural Services,MAKE SOME NOISE WEST MIDLANDS,08/07/2015,4100.62,Income
Corporate & Democratic Core,Management Company,06/07/2015,2201.07,Premises
Corporate & Democratic Core,Management Company,30/07/2015,971.88,Premises
 CXO,ManagEstate Ltd,03/07/2015,2000.00,Premises
 Schools,MANAKIN SERVICES LTD,17/07/2015,995.00,Premises
Other Education and Children's services,Mangrove Care Ltd,27/07/2015,23914.30,Third Party
 Schools,MANOR HOUSE PROPERTY SERVICES,10/07/2015,2235.00,Premises
 Schools,MANOR HOUSE PROPERTY SERVICES,24/07/2015,1258.00,Supplies and Services
 Schools,Manor PC's Ltd,29/07/2015,18640.00,Supplies and Services
 Schools,MAPAC GROUP LTD,21/07/2015,582.00,Supplies and Services
 Schools,MAPLE HAYES SCHOOL,29/07/2015,4735.20,Supplies and Services
 Schools,MAPLE HAYES SCHOOL,31/07/2015,4735.20,Supplies and Services
Other Education and Children's services,MAPLE SOLUTIONS,08/07/2015,633.50,Supplies and Services
Other Education and Children's services,MARGARET WORT & CO,30/07/2015,1224.00,Supplies and Services
Adult Social Care,Marion Dakin Associates Ltd,15/07/2015,1240.00,Supplies and Services
 CXO,Market and Opinion Research In,30/07/2015,2000.00,Supplies and Services
 Schools,Market Drayton Judo Club,30/07/2015,550.00,Employees
 Schools,Marmax Products Ltd,21/07/2015,1653.30,Supplies and Services
ICT,MARTEC TRAINING,14/07/2015,4920.00,Supplies and Services
 Schools,Mary Gale Consultancy Ltd,06/07/2015,500.00,Employees
 Schools,Mass Sports,27/07/2015,2125.00,Supplies and Services
Other Education and Children's services,Match Foster Care,27/07/2015,15014.41,Supplies and Services
Highways and transport,MATERIALS TESTING EQUIPMENT LT,13/07/2015,2285.00,Supplies and Services
 Schools,MATHS NO PROBLEM,23/07/2015,8569.02,Supplies and Services
Schools,MATHS NO PROBLEM,30/07/2015,3285.09,Supplies and Services
 Schools,MATHSWATCH LTD,10/07/2015,450.00,Supplies and Services
ICT,MATT JOHNSON ILLUSTRATION,16/07/2015,1680.00,Supplies and Services
ICT,MATT JOHNSON ILLUSTRATION,27/07/2015,940.00,Supplies and Services
 Schools,MAUDESPORT LTD,01/07/2015,739.20,Supplies and Services
 Schools,MAUDESPORT LTD,02/07/2015,826.90,Supplies and Services
 Schools,MAUDESPORT LTD,13/07/2015,456.01,Supplies and Services
 Schools,MAUDESPORT LTD,14/07/2015,437.55,Supplies and Services
 Schools,MAUDESPORT LTD,17/07/2015,522.19,Supplies and Services
 Schools,MAUDESPORT LTD,29/07/2015,896.12,Supplies and Services
 Schools,Maverick Promotions,10/07/2015,676.60,Supplies and Services
Corporate & Democratic Core,Maximeyes Security Ltd,02/07/2015,1057.50,Supplies and Services
Corporate & Democratic Core,Maximeyes Security Ltd,03/07/2015,1921.50,Supplies and Services
Corporate & Democratic Core,Maximeyes Security Ltd,06/07/2015,1057.50,Supplies and Services
Corporate & Democratic Core,Maximeyes Security Ltd,30/07/2015,3172.50,Supplies and Services
Corporate & Democratic Core,MAYFLOWER CONTROL LTD,16/07/2015,633.42,Supplies and Services
 Schools,MEACHEN & BEVAN (UTTOXETER) LT,17/07/2015,1496.32,Premises
Adult Social Care,Medequip Assistive Tech Ltd,27/07/2015,548123.87,Supplies and Services
 Schools,MEI,14/07/2015,3100.00,Supplies and Services
 Schools,MEI,20/07/2015,928.00,Supplies and Services
 Schools,Mellors Catering Services Ltd,03/07/2015,61.20,Income
 Schools,Mellors Catering Services Ltd,21/07/2015,296.10,Income
 Schools,Mellors Catering Services Ltd,31/07/2015,6.80,Income
 Schools,Mellors Catering Services Ltd,01/07/2015,8339.01,Supplies and Services
 Schools,Mellors Catering Services Ltd,03/07/2015,26060.70,Supplies and Services
 Schools,Mellors Catering Services Ltd,08/07/2015,3092.60,Supplies and Services
 Schools,Mellors Catering Services Ltd,09/07/2015,5015.99,Supplies and Services
 Schools,Mellors Catering Services Ltd,10/07/2015,18278.41,Supplies and Services
 Schools,Mellors Catering Services Ltd,13/07/2015,300.30,Supplies and Services
 Schools,Mellors Catering Services Ltd,14/07/2015,8394.60,Supplies and Services
 Schools,Mellors Catering Services Ltd,15/07/2015,5520.63,Supplies and Services
 Schools,Mellors Catering Services Ltd,20/07/2015,4286.27,Supplies and Services
 Schools,Mellors Catering Services Ltd,21/07/2015,24360.59,Supplies and Services
 Schools,Mellors Catering Services Ltd,22/07/2015,3029.90,Supplies and Services
 Schools,Mellors Catering Services Ltd,23/07/2015,32891.42,Supplies and Services
 Schools,Mellors Catering Services Ltd,29/07/2015,1572.90,Supplies and Services
 Schools,Mellors Catering Services Ltd,31/07/2015,29121.63,Supplies and Services
Adult Social Care,Mencap,20/07/2015,44331.24,Supplies and Services
Adult Social Care,Mencap  Employment,20/07/2015,49099.96,Supplies and Services
 CXO,Mercer Limited,16/07/2015,1750.00,Supplies and Services
 Schools,Meritec Ltd,22/07/2015,645.00,Supplies and Services
 Schools,METHODIST INTERNATIONAL CENTRE,31/07/2015,8093.33,Supplies and Services
Adult Social Care,MHA & MCA Law Ltd,14/07/2015,1500.00,Employees
 Schools,MICRO LIBRARIAN SYSTEMS LTD,03/07/2015,590.00,Supplies and Services
 Schools,MICRO LIBRARIAN SYSTEMS LTD,07/07/2015,1421.25,Supplies and Services
 Schools,MICRO LIBRARIAN SYSTEMS LTD,10/07/2015,1040.00,Supplies and Services
 Schools,MICRO LIBRARIAN SYSTEMS LTD,17/07/2015,615.00,Supplies and Services
Adult Social Care,Mid Cheshire Hospitals,16/07/2015,1885.00,Supplies and Services
 Schools,Middle England Schools Supply,10/07/2015,1425.00,Employees
Planning & Economic Development,Midland Classic Ltd,15/07/2015,19521.90,Transport
Planning & Economic Development,Midland Classic Ltd,16/07/2015,44564.66,Transport
Planning & Economic Development,MIDLAND LANDSCAPING LTD,14/07/2015,1391.66,Premises
 Schools,Midland Networking,29/07/2015,1000.00,Supplies and Services
 Schools,MIDLAND NEWS ASSOCIATION LTD,10/07/2015,965.00,Supplies and Services
 Schools,MIDLAND ROOFING SERVICES DERBY,28/07/2015,100355.71,Capital
 Schools,MIDLAND ROOFING SERVICES DERBY,16/07/2015,50224.60,Capital
 Schools,MIDLAND ROOFING SERVICES DERBY,16/07/2015,565.00,Premises
 Schools,MIDLANDS PORTABLE BUILDINGS LT,08/07/2015,9275.00,Premises
 CXO,MIDLANDS PSYCHOLOGY,03/07/2015,894.00,Supplies and Services
Other Education and Children's services,MIDLANDS PSYCHOLOGY,22/07/2015,11250.00,Supplies and Services
 Schools,MIDSHIRE BUSINESS SYSTEMS LTD,09/07/2015,877.54,Supplies and Services
 Schools,MIDSHIRE BUSINESS SYSTEMS LTD,15/07/2015,2743.75,Supplies and Services
 Schools,MIDSHIRE BUSINESS SYSTEMS LTD,16/07/2015,4495.73,Supplies and Services
 Schools,MIDSHIRE BUSINESS SYSTEMS LTD,17/07/2015,893.80,Supplies and Services
 Schools,MIDSHIRE BUSINESS SYSTEMS LTD,23/07/2015,1801.28,Supplies and Services
 Schools,MIDSHIRE BUSINESS SYSTEMS LTD,27/07/2015,538.16,Supplies and Services
 Schools,Midwest Electrical Services Lt,17/07/2015,3396.25,Premises
 Schools,MIKE BROOKS,22/07/2015,592.70,Supplies and Services
Other Education and Children's services,Milestone Minibuses,14/07/2015,3675.00,Transport
Property,MILFORD HALL CRICKET CLUB,15/07/2015,10000.00,Capital
Adult Social Care,MILL BANK SURGERY,22/07/2015,1604.00,Supplies and Services
 Schools,Millar West,17/07/2015,485.00,Supplies and Services
 Schools,MILLENNIUM BUSINESS SYSTEMS,03/07/2015,2635.00,Supplies and Services
 Schools,MILLENNIUM BUSINESS SYSTEMS,10/07/2015,1746.00,Supplies and Services
 Schools,MILLENNIUM BUSINESS SYSTEMS,22/07/2015,4953.00,Supplies and Services
 Schools,MILLENNIUM BUSINESS SYSTEMS,10/07/2015,2399.00,Third Party
 Schools,Millgate Computer Systems Ltd,21/07/2015,3372.50,Supplies and Services
 Schools,Ministry 4 Sport CIC,07/07/2015,525.00,Employees
 Schools,Ministry of Furniture,28/07/2015,2000.30,Supplies and Services
 Schools,Minted Box Education Limited,24/07/2015,1250.00,Supplies and Services
 Schools,MISCO,07/07/2015,1807.96,Premises
 Schools,MISCO,30/07/2015,6138.52,Supplies and Services
 Schools,MISCO,07/07/2015,611.42,Supplies and Services
 Schools,MISCO,09/07/2015,456.00,Supplies and Services
 Schools,MISCO,10/07/2015,1868.75,Supplies and Services
 Schools,MISCO,17/07/2015,12207.48,Supplies and Services
 Schools,MISCO,21/07/2015,5675.52,Supplies and Services
 Schools,MISCO,24/07/2015,3253.58,Supplies and Services
 Schools,MISCO,28/07/2015,5232.38,Supplies and Services
Entrust,MISCO,28/07/2015,8614.07,Supplies and Services
 Schools,Mission Cycles & Components,17/07/2015,545.79,Supplies and Services
Trading Service County Fleet Care,MITCHELL DIESEL LTD,02/07/2015,761.66,Supplies and Services
 CXO,MITIE TECH FACILITIES MGMNT LT,06/07/2015,2987.39,Premises
 CXO,MITIE TECH FACILITIES MGMNT LT,24/07/2015,1350.18,Premises
 CXO,MITIE TECH FACILITIES MGMNT LT,27/07/2015,3337.94,Premises
 Schools,MITIE TECH FACILITIES MGMNT LT,06/07/2015,14612.41,Premises
 Schools,MITIE TECH FACILITIES MGMNT LT,24/07/2015,4722.71,Premises
 Schools,MITIE TECH FACILITIES MGMNT LT,27/07/2015,5003.99,Premises
Corporate & Democratic Core,MITIE TECH FACILITIES MGMNT LT,06/07/2015,2475.30,Premises
Corporate & Democratic Core,MITIE TECH FACILITIES MGMNT LT,24/07/2015,207.72,Premises
Corporate & Democratic Core,MITIE TECH FACILITIES MGMNT LT,27/07/2015,778.95,Premises
Planning & Economic Development,MITIE TECH FACILITIES MGMNT LT,06/07/2015,793.37,Premises
 Schools,MJF Education Consultancy Ltd,14/07/2015,600.00,Supplies and Services
 Schools,MOBILE SIGNS,27/07/2015,1445.00,Premises
Adult Social Care,MOBILITY LINK LTD,15/07/2015,7922.90,Transport
Adult Social Care,MOBILITY LINK LTD,16/07/2015,4451.00,Transport
Other Education and Children's services,MOBILITY LINK LTD,14/07/2015,3400.98,Transport
Planning & Economic Development,MOBILITY LINK LTD,22/07/2015,5462.75,Supplies and Services
Planning & Economic Development,MOBILITY LINK LTD,23/07/2015,5198.64,Transport
 Schools,MODULAR CEILINGS LTD,06/07/2015,5300.00,Premises
 Schools,MODULAR CEILINGS LTD,27/07/2015,2650.00,Premises
 Schools,MONARCH EDUCATION LIMITED,07/07/2015,1109.00,Employees
 Schools,MONARCH EDUCATION LIMITED,09/07/2015,1631.00,Employees
 Schools,MONARCH EDUCATION LIMITED,13/07/2015,555.00,Employees
 Schools,MONARCH EDUCATION LIMITED,14/07/2015,2650.00,Employees
 Schools,MONARCH EDUCATION LIMITED,21/07/2015,920.00,Employees
 Schools,MONARCH EDUCATION LIMITED,28/07/2015,1176.00,Employees
 Schools,MOORESERVE LTD,08/07/2015,975.00,Premises
 Schools,MOORHILL PRE SCHOOL & FUN CLUB,31/07/2015,2985.50,Supplies and Services
 Schools,MOORLAND ADVENTURE LTD.,06/07/2015,1880.00,Supplies and Services
 Schools,Moorland Contract Cleaning Ltd,14/07/2015,2805.55,Premises
Health Trust,Morecare at Home,31/07/2015,6820.60,Supplies and Services
Health Trust,Morecare at Home,01/07/2015,959.80,Supplies and Services
Health Trust,Morecare at Home,08/07/2015,2602.70,Supplies and Services
Health Trust,Morecare at Home,09/07/2015,6463.50,Supplies and Services
Health Trust,Morecare at Home,14/07/2015,985.10,Supplies and Services
Health Trust,Morecare at Home,15/07/2015,3607.60,Supplies and Services
Health Trust,Morecare at Home,16/07/2015,959.80,Supplies and Services
Health Trust,Morecare at Home,29/07/2015,1460.80,Supplies and Services
Health Trust,Morecare at Home,31/07/2015,1267.30,Supplies and Services
Highways and transport,MOTT MACDONALD LTD,17/07/2015,9900.00,Supplies and Services
Health Trust,MSC Home Care Ltd,29/07/2015,510.00,Supplies and Services
Health Trust,MSC Home Care Ltd,30/07/2015,10837.00,Supplies and Services
Health Trust,MSC Home Care Ltd,01/07/2015,3000.00,Supplies and Services
Health Trust,MSC Home Care Ltd,07/07/2015,12726.74,Supplies and Services
Health Trust,MSC Home Care Ltd,20/07/2015,600.00,Supplies and Services
Health Trust,MSC Home Care Ltd,30/07/2015,3367.50,Supplies and Services
Other Education and Children's services,Mulberry Bush Nursery,14/07/2015,2848.20,Supplies and Services
Other Education and Children's services,Mulberry House Care Homes Ltd,22/07/2015,23028.56,Third Party
 Schools,MULTI-FLOOR (WALSALL) LTD,01/07/2015,3596.00,Premises
 Schools,MULTI-FLOOR (WALSALL) LTD,13/07/2015,3458.00,Premises
Law & Governence,Multiple Sclerosis Society Sup,28/07/2015,980.00,Third Party
 Schools,MUSIC ACADEMY FOR SCHOOLS,24/07/2015,950.00,Supplies and Services
ICT,Music Therapy Works,16/07/2015,660.00,Supplies and Services
 Schools,My Maths Ltd,03/07/2015,565.00,Supplies and Services
 Schools,N C S Group Ltd,03/07/2015,1451.41,Supplies and Services
 Schools,N COOPER,21/07/2015,1725.00,Employees
 Schools,N POPOVIC T/A SCORE,06/07/2015,778.00,Supplies and Services
Planning & Economic Development,N S C C I,03/07/2015,8750.00,Supplies and Services
Planning & Economic Development,N S C C I,28/07/2015,2500.00,Supplies and Services
Planning & Economic Development,N S C C I,31/07/2015,3148.45,Supplies and Services
Other Education and Children's services,N West,17/07/2015,1714.70,Supplies and Services
 Schools,Nacro,28/07/2015,2360.00,Supplies and Services
ICT,Nacro,16/07/2015,2520.00,Supplies and Services
 Schools,Napier Press Ltd,21/07/2015,585.00,Supplies and Services
 Schools,NAS EarlyBird Centre,17/07/2015,995.00,Supplies and Services
Other Education and Children's services,National Forest Adventure Farm,22/07/2015,519.75,Supplies and Services
Other Education and Children's services,NATIONAL FOSTERING AGENCY,27/07/2015,107803.83,Supplies and Services
Other Education and Children's services,NATIONAL FOSTERING AGENCY,27/07/2015,20214.76,Third Party
Property,National Grid Gas Plc,03/07/2015,1110.00,Capital
 Schools,NATIONAL PAINTBALL GAMES,15/07/2015,2580.00,Supplies and Services
 Schools,NATIONAL TEACHING ADVISORY SER,15/07/2015,1862.00,Supplies and Services
 Schools,NATIONAL TEACHING ADVISORY SER,16/07/2015,1110.00,Supplies and Services
 Schools,NATIONAL TEACHING ADVISORY SER,20/07/2015,1260.00,Supplies and Services
 Schools,NATIONAL TEACHING ADVISORY SER,29/07/2015,4750.00,Supplies and Services
 Schools,NATIONAL TEACHING ADVISORY SER,31/07/2015,12950.00,Supplies and Services
ICT,NATIONAL TEACHING ADVISORY SER,01/07/2015,1395.00,Supplies and Services
Other Education and Children's services,NATIONWIDE MINIBUS TRAVEL,14/07/2015,7754.56,Transport
Other Education and Children's services,NATIONWIDE MINIBUS TRAVEL,31/07/2015,4582.24,Transport
 Schools,NBB Recycled Furniture,30/07/2015,775.45,Supplies and Services
 Schools,NCA EMBROIDERY & PRINTING,17/07/2015,470.25,Supplies and Services
Adult Social Care,NCC SERVICES LTD,28/07/2015,600.00,Supplies and Services
Staffordshire Connects Partnership,NCC SERVICES LTD,28/07/2015,750.00,Supplies and Services
Highways and transport,NDORS LTD,20/07/2015,115880.00,Supplies and Services
Other Education and Children's services,Neath Port Talbot  Borough Cou,14/07/2015,719.00,Third Party
Trading Service Scientific Services,NEOGEN EUROPE LTD,08/07/2015,436.00,Supplies and Services
 Schools,Neopost,28/07/2015,500.00,Supplies and Services
Adult Social Care,NEOPOST FINANCE LTD,13/07/2015,1995.83,Supplies and Services
Adult Social Care,NEOPOST FINANCE LTD,24/07/2015,2486.00,Supplies and Services
Health Trust,NEOPOST FINANCE LTD,13/07/2015,900.00,Supplies and Services
Health Trust,NEOPOST FINANCE LTD,24/07/2015,659.00,Supplies and Services
Other Education and Children's services,NEOPOST FINANCE LTD,13/07/2015,1400.00,Supplies and Services
Other Education and Children's services,NEOPOST FINANCE LTD,24/07/2015,2095.00,Supplies and Services
Planning & Economic Development,NEOPOST FINANCE LTD,06/07/2015,5033.00,Supplies and Services
Planning & Economic Development,NEOPOST FINANCE LTD,09/07/2015,2429.30,Supplies and Services
Planning & Economic Development,NEOPOST FINANCE LTD,13/07/2015,15213.00,Supplies and Services
Planning & Economic Development,NEOPOST FINANCE LTD,24/07/2015,96.92,Supplies and Services
Highways and transport,NEOPOST LTD,31/07/2015,1132.66,Supplies and Services
Trading Service Central Print & Design,NEOPOST LTD,15/07/2015,2289.30,Supplies and Services
 Schools,NEOPOST LTD - CREDIFON A/CS,01/07/2015,500.00,Supplies and Services
 Schools,NEOPOST LTD - CREDIFON A/CS,03/07/2015,500.00,Supplies and Services
Other Education and Children's services,NEOPOST LTD - CREDIFON A/CS,15/07/2015,600.00,Supplies and Services
Other Education and Children's services,New Options (3) Ltd,27/07/2015,31371.42,Third Party
Other Education and Children's services,New Reflexions,27/07/2015,35972.86,Third Party
 Schools,New Street Taxis,31/07/2015,800.00,Income
Other Education and Children's services,New Street Taxis,10/07/2015,9193.20,Transport
Other Education and Children's services,New Street Taxis,15/07/2015,17956.02,Transport
Other Education and Children's services,NEW TRANSPORT,14/07/2015,2166.56,Transport
 Schools,Newave Ltd,15/07/2015,2000.00,Supplies and Services
Environment,NEWCASTLE BOROUGH COUNCIL,24/07/2015,85109.42,Supplies and Services
Planning & Economic Development,Newcastle Comm&Volun Support,22/07/2015,2650.25,Supplies and Services
Planning & Economic Development,NEWCASTLE COMMUNITY TRANSPORT,22/07/2015,1337.50,Supplies and Services
 Schools,NEWCASTLE PLUMB & HEATING SUPP,21/07/2015,426.35,Premises
 CXO,NEWCASTLE U LYME BOROUGH COUNC,15/07/2015,2875.00,Premises
 CXO,NEWCASTLE U LYME BOROUGH COUNC,16/07/2015,40300.00,Premises
 CXO,NEWCASTLE U LYME BOROUGH COUNC,30/07/2015,570.60,Supplies and Services
 Schools,NEWCASTLE U LYME BOROUGH COUNC,08/07/2015,535.20,Supplies and Services
 Schools,NEWCASTLE U LYME BOROUGH COUNC,13/07/2015,1152.90,Supplies and Services
 Schools,NEWCASTLE U LYME BOROUGH COUNC,16/07/2015,1020.65,Supplies and Services
 Schools,NEWCASTLE U LYME BOROUGH COUNC,21/07/2015,907.20,Supplies and Services
 Schools,NEWCASTLE U LYME BOROUGH COUNC,22/07/2015,900.00,Supplies and Services
Adult Social Care,NEWCASTLE U LYME BOROUGH COUNC,07/07/2015,11792.00,Supplies and Services
Corporate & Democratic Core,NEWCASTLE U LYME BOROUGH COUNC,03/07/2015,11366.25,Premises
Corporate & Democratic Core,NEWCASTLE U LYME BOROUGH COUNC,16/07/2015,1475.00,Premises
Corporate & Democratic Core,NEWCASTLE U LYME BOROUGH COUNC,30/07/2015,7500.00,Premises
ICT,NEWCASTLE UNDER LYME COLLEGE,28/07/2015,7476.00,Supplies and Services
 Schools,Newcastle under Lyme Golf Club,31/07/2015,943.20,Supplies and Services
 Schools,NEWCASTLE UNDER LYME SCHOOL,17/07/2015,1483.75,Supplies and Services
 Schools,Newmarket Holidays,16/07/2015,960.00,Supplies and Services
Other Education and Children's services,Newstead Primary Academy,03/07/2015,1150.00,Supplies and Services
Other Education and Children's services,Newton Regis C E Primary Schoo,31/07/2015,1150.00,Supplies and Services
 Schools,NEXT GENERATION COACHING LTD,17/07/2015,565.00,Employees
 Schools,Next Steps,01/07/2015,3510.00,Supplies and Services
ICT,Next Steps,01/07/2015,5360.00,Supplies and Services
ICT,Next Steps,16/07/2015,3400.00,Supplies and Services
 Schools,Next Steps Education Ltd,14/07/2015,760.80,Supplies and Services
Other Education and Children's services,Nexus Fostering Ltd,27/07/2015,12752.05,Supplies and Services
 Schools,NEXUS THE EDUCATORS CONN LTD,14/07/2015,860.48,Supplies and Services
 Schools,NFER,29/07/2015,728.40,Supplies and Services
Other Education and Children's services,NH Care,27/07/2015,34421.42,Third Party
Highways and transport,NIGEL DAVIS SOLICITORS,31/07/2015,2584.76,Supplies and Services
Planning & Economic Development,NIGEL MAY-BROWN,31/07/2015,869.00,Supplies and Services
Health Trust,Nightingales Shropshire Limite,02/07/2015,780.00,Supplies and Services
 CXO,NLA MEDIA ACCESS LTD,13/07/2015,2350.76,Supplies and Services
Highways and transport,NO5 CHAMBERS,24/07/2015,600.00,Capital
 Schools,NORMANS MUSICAL INSTRUMENTS,14/07/2015,1229.00,Supplies and Services
Planning & Economic Development,North Staffs ATV,27/07/2015,14016.00,Transport
Adult Social Care,NORTH STAFFS CARERS ASSOCIATIO,08/07/2015,24958.41,Supplies and Services
Adult Social Care,NORTH STAFFS COMBINED HEALTHCA,16/07/2015,26010.00,Supplies and Services
Adult Social Care,NORTH STAFFS FURNITURE MINE,14/07/2015,2057.50,Supplies and Services
 Schools,NORTH STAFFS HEATING & PIPEWOR,08/07/2015,455.50,Premises
 Schools,NORTH STAFFS HEATING & PIPEWOR,17/07/2015,5565.00,Premises
 Schools,NORTH STAFFS MIND,24/07/2015,7515.00,Supplies and Services
Other Education and Children's services,NORTH STAFFS MIND,28/07/2015,39505.00,Supplies and Services
Adult Social Care,NORTH STAFFS USERS GROUP,21/07/2015,7497.00,Supplies and Services
Highways,Northern Rail Ltd,27/07/2015,4676.00,Supplies & Services
Adult Social Care,Northgate Public Services (UK),15/07/2015,9016.96,Supplies and Services
Finance,Northgate Public Services (UK),21/07/2015,15218.50,Supplies and Services
Adult Social Care,NORTHWOOD DISPENSING CHEMISTS,23/07/2015,622.35,Supplies and Services
Adult Social Care,Nottingham University Hosp NHS,16/07/2015,652.18,Supplies and Services
Cultural Services,Nova Training,09/07/2015,33268.00,Supplies and Services
ICT,Nova Training,08/07/2015,1043.10,Supplies and Services
 Schools,NOVATECH DIRECT PLC,23/07/2015,4926.36,Supplies and Services
 Schools,NOVATECH DIRECT PLC,29/07/2015,1025.00,Supplies and Services
 CXO,NOVUS PROPERTY SOLS LTD,21/07/2015,8000.00,Premises
 Schools,NOVUS PROPERTY SOLS LTD,28/07/2015,2530.47,Capital
 Schools,NOVUS PROPERTY SOLS LTD,13/07/2015,12000.00,Capital
 Schools,NOVUS PROPERTY SOLS LTD,14/07/2015,6085.00,Capital
Cultural Services,NOVUS PROPERTY SOLS LTD,13/07/2015,4576.00,Premises
Property,NOVUS PROPERTY SOLS LTD,27/07/2015,52956.05,Capital
Property,NOVUS PROPERTY SOLS LTD,03/07/2015,71191.54,Capital
 Schools,Now Recruitment Ltd,14/07/2015,780.00,Employees
 Schools,Now Recruitment Ltd,15/07/2015,1170.00,Employees
 Schools,NPOWER,07/07/2015,1404.81,Capital
 Schools,NPOWER,21/07/2015,944.87,Capital
 Schools,NPOWER,01/07/2015,7386.05,Premises
 Schools,NPOWER,02/07/2015,3000.33,Premises
 Schools,NPOWER,03/07/2015,5538.22,Premises
 Schools,NPOWER,06/07/2015,618.55,Premises
 Schools,NPOWER,07/07/2015,6720.51,Premises
 Schools,NPOWER,08/07/2015,2394.11,Premises
 Schools,NPOWER,10/07/2015,-10.42,Premises
 Schools,NPOWER,14/07/2015,1678.93,Premises
 Schools,NPOWER,17/07/2015,9671.84,Premises
 Schools,NPOWER,20/07/2015,1096.89,Premises
 Schools,NPOWER,21/07/2015,101352.41,Premises
 Schools,NPOWER,22/07/2015,6921.74,Premises
 Schools,NPOWER,23/07/2015,151127.00,Premises
 Schools,NPOWER,24/07/2015,6999.36,Premises
 Schools,NPOWER,28/07/2015,2264.75,Premises
 Schools,NPOWER,29/07/2015,1512.69,Premises
 Schools,NPOWER,30/07/2015,549.57,Premises
Adult Social Care,NPOWER,23/07/2015,582.22,Premises
Corporate & Democratic Core,NPOWER,17/07/2015,-5438.03,Premises
Corporate & Democratic Core,NPOWER,23/07/2015,1161.96,Premises
Planning & Economic Development,NPOWER,14/07/2015,560.32,Premises
Planning & Economic Development,NPOWER,21/07/2015,3315.26,Premises
Planning & Economic Development,NPOWER,23/07/2015,563.28,Premises
Planning & Economic Development,NPOWER,24/07/2015,4300.26,Premises
Planning & Economic Development,NPOWER,30/07/2015,876.73,Premises
 Schools,NRCDES,30/07/2015,1868.85,Supplies and Services
 Schools,NSCC OPERATIONS LTD,10/07/2015,479.55,Supplies and Services
 Schools,NSM Training And Consultancy,06/07/2015,970.00,Supplies and Services
 Schools,NURTURE GROUP NETWORK LTD,13/07/2015,550.00,Employees
Health Trust,Nustop,07/07/2015,789.50,Supplies and Services
Adult Social Care,Nuture Development Ltd,17/07/2015,2587.50,Supplies and Services
 Schools,NWT ENGINEERING LTD,15/07/2015,650.00,Premises
Highways and transport,O2 (UK) LTD.,08/07/2015,3480.85,Third Party
Highways and transport,O2 (UK) LTD.,31/07/2015,1118.82,Third Party
Adult Social Care,OAK TREE FARM RURAL PROJECT LT,24/07/2015,2142.00,Supplies and Services
Planning & Economic Development,OAK TREE FARM RURAL PROJECT LT,03/07/2015,600.00,Supplies and Services
 Schools,Oakhill Childcare Centre,17/07/2015,612.15,Supplies and Services
Cultural Services,Oakhill Publishing Ltd,23/07/2015,438.67,Supplies and Services
Cultural Services,Oakhill Publishing Ltd,30/07/2015,442.55,Supplies and Services
 Schools,Oakview Estates Ltd,08/07/2015,2625.00,Supplies and Services
 Schools,OCEAN INTEGRATED SERVICES LTD,03/07/2015,1903.17,Premises
 Schools,OCR,02/07/2015,2456.70,Supplies and Services
 Schools,OCR,06/07/2015,573.00,Supplies and Services
 Schools,OCR,14/07/2015,1116.90,Supplies and Services
 Schools,OFFICE FURNITURE ONLINE,13/07/2015,430.00,Supplies and Services
 Schools,OFFICE FURNITURE ONLINE,16/07/2015,434.00,Supplies and Services
 Schools,OFFICE FURNITURE ONLINE,20/07/2015,642.00,Supplies and Services
 Schools,OFFICE FURNITURE ONLINE,23/07/2015,510.00,Supplies and Services
 Schools,OFFICE LINES LTD,08/07/2015,430.00,Supplies and Services
 Schools,OFFICE LINES LTD,09/07/2015,470.00,Supplies and Services
 Schools,OFFICE LINES LTD,16/07/2015,-430.00,Supplies and Services
 Schools,OFFICE LINES LTD,23/07/2015,570.00,Supplies and Services
 Schools,OFFICE LINES LTD,24/07/2015,2996.98,Supplies and Services
Other Education and Children's services,OFSTED,02/07/2015,2289.00,Supplies and Services
 Schools,OIL FACILITIES LIMITED,01/07/2015,7859.00,Premises
 Schools,Old Rectory Manor House,24/07/2015,1402.38,Supplies and Services
Other Education and Children's services,OLDFIELDS CARS,23/07/2015,2542.00,Transport
Planning & Economic Development,Olive Catering Services Ltd,24/07/2015,465.00,Supplies and Services
 Schools,One Education Ltd,06/07/2015,2960.00,Supplies and Services
 Schools,ONE LIFE MUSIC,02/07/2015,640.00,Supplies and Services
Property,Online Ergonomics Ltd,14/07/2015,849.30,Capital
Property,Online Ergonomics Ltd,23/07/2015,539.85,Capital
Other Education and Children's services,Openspace Advertising Ltd,31/07/2015,1000.00,Supplies and Services
 Schools,OPTIMUM REPORTS LTD,08/07/2015,1062.50,Supplies and Services
 Schools,OPTIMUM REPORTS LTD,13/07/2015,1170.00,Supplies and Services
 Schools,Optimus Education,29/07/2015,1328.10,Employees
 Schools,OPTIMUS INSTALLATIONS LTD,29/07/2015,1550.00,Supplies and Services
Other Education and Children's services,Oracle Care Ltd,27/07/2015,19707.15,Third Party
Other Education and Children's services,Orange Grove Fostercare Ltd,27/07/2015,22277.04,Supplies and Services
 Schools,ORANGE OXIDE DESIGN,06/07/2015,657.80,Supplies and Services
Other Education and Children's services,Orchid Cellmark Ltd,23/07/2015,564.00,Supplies and Services
Adult Social Care,OTDirect Ltd,21/07/2015,4480.00,Employees
 Schools,OUNSDALE HIGH SCHOOL,09/07/2015,139199.69,Supplies and Services
 Schools,OVERLEY HALL SCHOOL LTD,10/07/2015,46641.66,Supplies and Services
 Schools,OVERLEY HALL SCHOOL LTD,31/07/2015,35559.00,Supplies and Services
 Schools,OWNESS SOLUTIONS LTD,20/07/2015,500.00,Supplies and Services
 Schools,OXFORD EDUCATIONAL SUPPLIES LT,06/07/2015,431.00,Supplies and Services
 Schools,OXFORD UNIVERSITY PRESS,29/07/2015,2085.20,Supplies and Services
 Schools,OXFORD UNIVERSITY PRESS,02/07/2015,1640.34,Supplies and Services
 Schools,OXFORD UNIVERSITY PRESS,03/07/2015,1924.60,Supplies and Services
 Schools,OXFORD UNIVERSITY PRESS,07/07/2015,644.55,Supplies and Services
 Schools,OXFORD UNIVERSITY PRESS,08/07/2015,2867.70,Supplies and Services
 Schools,OXFORD UNIVERSITY PRESS,09/07/2015,5833.52,Supplies and Services
 Schools,OXFORD UNIVERSITY PRESS,10/07/2015,3389.11,Supplies and Services
 Schools,OXFORD UNIVERSITY PRESS,13/07/2015,3958.29,Supplies and Services
 Schools,OXFORD UNIVERSITY PRESS,15/07/2015,837.15,Supplies and Services
 Schools,OXFORD UNIVERSITY PRESS,16/07/2015,13774.42,Supplies and Services
 Schools,OXFORD UNIVERSITY PRESS,20/07/2015,685.49,Supplies and Services
 Schools,OXFORD UNIVERSITY PRESS,21/07/2015,4452.62,Supplies and Services
 Schools,OXFORD UNIVERSITY PRESS,22/07/2015,8589.20,Supplies and Services
 Schools,OXFORD UNIVERSITY PRESS,23/07/2015,1959.25,Supplies and Services
 Schools,OXFORD UNIVERSITY PRESS,24/07/2015,1959.72,Supplies and Services
 Schools,OXFORD UNIVERSITY PRESS,27/07/2015,2063.33,Supplies and Services
 Schools,OXFORD UNIVERSITY PRESS,28/07/2015,1410.05,Supplies and Services
 Schools,OXFORD UNIVERSITY PRESS,29/07/2015,1759.28,Supplies and Services
Schools,OXFORD UNIVERSITY PRESS,29/07/2015,730.05,Supplies and Services
 CXO,OXFORDSHIRE COUNTY COUNCIL,17/07/2015,485.42,Supplies and Services
 Schools,P & D YORK TRAVEL,01/07/2015,1150.00,Supplies and Services
 Schools,P & D YORK TRAVEL,02/07/2015,1250.00,Supplies and Services
 Schools,P & D YORK TRAVEL,16/07/2015,2100.00,Supplies and Services
 Schools,P & D YORK TRAVEL,10/07/2015,760.00,Transport
Other Education and Children's services,P & D YORK TRAVEL,14/07/2015,24429.68,Transport
Planning & Economic Development,P & D YORK TRAVEL,14/07/2015,1732.00,Transport
 Schools,P Bailey,16/07/2015,960.00,Supplies and Services
 Schools,P COLLINS,14/07/2015,1281.25,Supplies and Services
 Schools,P COLLINS,17/07/2015,600.00,Supplies and Services
 Schools,P COLLINS,30/07/2015,687.50,Supplies and Services
Trading Service County Fleet Care,P E VAN TECH,20/07/2015,0.00,Transport
Vehicles,P E VAN TECH,15/07/2015,2978.00,Capital
Vehicles,P E VAN TECH,23/07/2015,8934.00,Capital
Vehicles,P E VAN TECH,28/07/2015,1489.00,Capital
Vehicles,P E VAN TECH,29/07/2015,2322.00,Capital
Vehicles,P E VAN TECH,30/07/2015,2322.00,Capital
 CXO,P England,02/07/2015,800.00,Supplies and Services
 CXO,P England,22/07/2015,2260.00,Supplies and Services
 Schools,P Hayfield,22/07/2015,825.00,Supplies and Services
 CXO,P Hayler,15/07/2015,1670.00,Supplies and Services
Other Education and Children's services,P Hayler,15/07/2015,560.00,Employees
 Schools,P Lead,13/07/2015,2100.00,Supplies and Services
 Schools,P Longden,14/07/2015,1000.00,Employees
Adult Social Care,P R ACLAND,23/07/2015,2014.60,Supplies and Services
Law & Governence,P WAINWRIGHT,17/07/2015,5040.00,Supplies and Services
 Schools,PACE EDUCATION,03/07/2015,6246.00,Supplies and Services
 Schools,PACE EDUCATION,14/07/2015,5690.80,Supplies and Services
ICT,PACE EDUCATION,23/07/2015,9577.20,Supplies and Services
Highways and transport,PAGEONE COMMUNICATIONS LTD,15/07/2015,572.07,Supplies and Services
ICT,Painsley Catholic Academy,16/07/2015,2971.00,Supplies and Services
 Schools,PALFREYMAN'S CARPET CENTRE LTD,30/07/2015,1704.75,Supplies and Services
 Schools,PALFREYMAN'S CARPET CENTRE LTD,08/07/2015,757.50,Supplies and Services
 Schools,PANEL SYSTEMS LTD,01/07/2015,2031.20,Supplies and Services
 Schools,PanelWarehouse.com,14/07/2015,510.00,Supplies and Services
 Schools,PARAGO SOFTWARE LTD,30/07/2015,2063.75,Supplies and Services
 Schools,ParentPay Ltd,02/07/2015,610.00,Supplies and Services
 Schools,ParentPay Ltd,07/07/2015,610.00,Supplies and Services
 Schools,ParentPay Ltd,10/07/2015,610.00,Supplies and Services
 Schools,ParentPay Ltd,14/07/2015,610.00,Supplies and Services
 Schools,ParentPay Ltd,20/07/2015,1020.00,Supplies and Services
 Schools,ParentPay Ltd,22/07/2015,610.00,Supplies and Services
Law & Governence,PARK FARM SOCIAL GROUP,08/07/2015,500.00,Third Party
Other Education and Children's services,PARK FOSTER CARE LTD,27/07/2015,57493.56,Supplies and Services
Other Education and Children's services,PARK FOSTER CARE LTD,27/07/2015,3348.00,Third Party
 Schools,Parkmere Products,07/07/2015,1064.00,Supplies and Services
Law & Governence,PARKWOOD COMMUNITY LEISURE LTD,24/07/2015,930.00,Third Party
 Schools,Pasta King (UK) Ltd,10/07/2015,502.40,Supplies and Services
 Schools,PAT Testing Experts Ltd,22/07/2015,995.00,Supplies and Services
Other Education and Children's services,Pathway Care (Midlands) Ltd,27/07/2015,11086.20,Supplies and Services
Other Education and Children's services,Pathway Care (Midlands) Ltd,27/07/2015,10127.44,Third Party
Adult Social Care,PATHWAY PROJECT,17/07/2015,19411.29,Supplies and Services
Other Education and Children's services,PATHWAY PROJECT,17/07/2015,1024.25,Supplies and Services
 Schools,PAUL HOLDCROFT GPS,24/07/2015,500.00,Premises
 Schools,PAUL HOLDCROFT GPS,27/07/2015,4260.00,Premises
 Schools,PAULS COACHES,02/07/2015,1850.00,Supplies and Services
 Schools,PAULS COACHES,30/07/2015,500.00,Supplies and Services
Other Education and Children's services,PAULS COACHES,14/07/2015,2992.00,Transport
Planning & Economic Development,PAULS COACHES,15/07/2015,2080.00,Transport
Adult Social Care,PayPoint PLC,21/07/2015,567.00,Supplies and Services
 Schools,PBM INSPECTION SERVICES LTD,14/07/2015,930.00,Employees
 Schools,PBM INSPECTION SERVICES LTD,20/07/2015,698.75,Supplies and Services
Highways and transport,PBM INSPECTION SERVICES LTD,09/07/2015,1175.10,Supplies and Services
 Schools,PC WORLD BUSINESS,01/07/2015,1284.39,Supplies and Services
Law & Governence,PCC of Wetton St Margrets Chur,02/07/2015,1000.00,Third Party
Other Education and Children's services,Peak Associates Ltd,07/07/2015,531.75,Supplies and Services
 Schools,PEAK PURSUITS LTD,15/07/2015,525.00,Supplies and Services
 Schools,PEAK PURSUITS LTD,16/07/2015,1575.00,Supplies and Services
 Schools,PEAK PURSUITS LTD,29/07/2015,1280.00,Supplies and Services
 Schools,PEAK PURSUITS LTD,30/07/2015,25655.00,Supplies and Services
ICT,PEAK PURSUITS LTD,03/07/2015,1170.00,Supplies and Services
 Schools,PEARSON EDUCATION LTD,13/07/2015,950.00,Employees
 Schools,PEARSON EDUCATION LTD,16/07/2015,450.00,Employees
 Schools,PEARSON EDUCATION LTD,23/07/2015,950.00,Employees
 Schools,PEARSON EDUCATION LTD,27/07/2015,450.00,Employees
 Schools,PEARSON EDUCATION LTD,01/07/2015,2161.40,Supplies and Services
 Schools,PEARSON EDUCATION LTD,02/07/2015,3505.25,Supplies and Services
 Schools,PEARSON EDUCATION LTD,03/07/2015,576.90,Supplies and Services
 Schools,PEARSON EDUCATION LTD,10/07/2015,2150.00,Supplies and Services
 Schools,PEARSON EDUCATION LTD,13/07/2015,576.21,Supplies and Services
 Schools,PEARSON EDUCATION LTD,14/07/2015,1215.00,Supplies and Services
 Schools,PEARSON EDUCATION LTD,16/07/2015,3418.30,Supplies and Services
 Schools,PEARSON EDUCATION LTD,22/07/2015,1050.10,Supplies and Services
 Schools,PEARSON EDUCATION LTD,23/07/2015,850.39,Supplies and Services
 Schools,PEARSON EDUCATION LTD,27/07/2015,2554.66,Supplies and Services
 Schools,PEARSON EDUCATION LTD,30/07/2015,2535.00,Supplies and Services
 Schools,PEARSON PUBLISHING LIMITED,14/07/2015,1561.98,Supplies and Services
 Schools,Pearson Shared Services,01/07/2015,1458.20,Supplies and Services
 Schools,Pearson Shared Services,10/07/2015,521.70,Supplies and Services
 Schools,PEER SUPPORT WORKS,24/07/2015,602.40,Supplies and Services
 CXO,Pegasus of Penkridge,13/07/2015,500.00,Transport
Highways and transport,PELL FRISCHMANN CONSULTANTS LT,02/07/2015,766.25,Capital
 Schools,PENGUIN BOOKS LTD,20/07/2015,2944.95,Supplies and Services
Law & Governence,PENKSIDE COMM CHAMPIONS,14/07/2015,1711.00,Third Party
 CXO,Penna Plc,10/07/2015,559.27,Supplies and Services
 Schools,Penna Plc,14/07/2015,1583.60,Employees
Highways and transport,Penna Plc,02/07/2015,8416.31,Supplies and Services
Highways and transport,Penna Plc,07/07/2015,1833.25,Supplies and Services
Highways and transport,Penna Plc,14/07/2015,882.64,Supplies and Services
Highways and transport,Penna Plc,16/07/2015,555.50,Supplies and Services
Highways and transport,Penna Plc,17/07/2015,703.86,Supplies and Services
Highways and transport,Penna Plc,21/07/2015,551.36,Supplies and Services
Highways and transport,Penna Plc,28/07/2015,1002.98,Supplies and Services
Other Education and Children's services,Penna Plc,14/07/2015,817.55,Employees
Other Education and Children's services,Penna Plc,14/07/2015,18425.50,Supplies and Services
Planning & Economic Development,Penna Plc,21/07/2015,428.19,Supplies and Services
Planning & Economic Development,Penna Plc,28/07/2015,843.65,Supplies and Services
Adult Social Care,PENSION SERVICE,03/07/2015,3527.34,Income
 Schools,PENSTRIPE,03/07/2015,1389.00,Supplies and Services
 Schools,PENSTRIPE,14/07/2015,1842.45,Supplies and Services
 Schools,PENSTRIPE,23/07/2015,1565.70,Supplies and Services
 Schools,PENTAGON SPORT LTD,15/07/2015,9965.00,Premises
 Schools,PENTAGON SPORT LTD,16/07/2015,8450.00,Supplies and Services
 Schools,Peoples Liverpool Ltd Bootle,10/07/2015,22790.00,Third Party
 Schools,PERTEMPS PEOPLE DEVELOPMENT GR,14/07/2015,960.00,Supplies and Services
Cultural Services,PERTEMPS PEOPLE DEVELOPMENT GR,08/07/2015,900.00,Supplies and Services
 Schools,Perton Village Nursery,17/07/2015,2691.75,Supplies and Services
 Schools,Peter Clarke (Cultivations) Lt,10/07/2015,601.29,Premises
 Schools,Peter Clarke (Cultivations) Lt,14/07/2015,601.29,Premises
Other Education and Children's services,Peterborough City Council,22/07/2015,44950.00,Supplies and Services
Other Education and Children's services,Peterborough City Council,27/07/2015,27869.00,Supplies and Services
 Schools,PETERS LTD,10/07/2015,4380.00,Supplies and Services
Cultural Services,PETERS LTD,10/07/2015,521.61,Supplies and Services
Cultural Services,PETERS LTD,16/07/2015,600.53,Supplies and Services
 Schools,PGL TRAVEL LTD,13/07/2015,1000.00,Supplies and Services
 Schools,PGL TRAVEL LTD,22/07/2015,3200.00,Supplies and Services
 Schools,PGL TRAVEL LTD,29/07/2015,3915.00,Supplies and Services
 Schools,Phenix Digital,20/07/2015,1042.50,Supplies and Services
 Schools,Phenix Digital,28/07/2015,675.00,Supplies and Services
 Schools,Phil Gould Gardening Services,16/07/2015,1075.00,Premises
Other Education and Children's services,Phil Smith Travel,14/07/2015,15935.92,Transport
Other Education and Children's services,Phil Smith Travel,31/07/2015,9416.68,Transport
 Schools,PHOENIX SOFTWARE LTD,16/07/2015,525.72,Supplies and Services
Other Education and Children's services,PHONAK UK LTD,31/07/2015,2880.00,Supplies and Services
 Schools,PHS Direct,14/07/2015,474.00,Supplies and Services
 CXO,PHS GROUP PLC,10/07/2015,1316.20,Supplies and Services
 CXO,PHS GROUP PLC,14/07/2015,1552.69,Supplies and Services
 CXO,PHS GROUP PLC,15/07/2015,772.23,Supplies and Services
 CXO,PHS GROUP PLC,20/07/2015,604.36,Supplies and Services
 CXO,PHS GROUP PLC,21/07/2015,-54.58,Supplies and Services
 Schools,PHS GROUP PLC,10/07/2015,20554.71,Premises
 Schools,PHS GROUP PLC,13/07/2015,947.14,Premises
 Schools,PHS GROUP PLC,14/07/2015,1346.36,Premises
 Schools,PHS GROUP PLC,17/07/2015,-2147.53,Premises
 Schools,PHS GROUP PLC,20/07/2015,673.93,Premises
 Schools,PHS GROUP PLC,22/07/2015,3791.69,Premises
 Schools,PHS GROUP PLC,29/07/2015,824.48,Premises
 Schools,PHS GROUP PLC,03/07/2015,738.97,Supplies and Services
 Schools,PHS GROUP PLC,09/07/2015,1732.04,Supplies and Services
 Schools,PHS GROUP PLC,10/07/2015,26609.30,Supplies and Services
 Schools,PHS GROUP PLC,13/07/2015,538.28,Supplies and Services
 Schools,PHS GROUP PLC,17/07/2015,3068.46,Supplies and Services
 Schools,PHS GROUP PLC,20/07/2015,3720.94,Supplies and Services
 Schools,PHS GROUP PLC,21/07/2015,1277.57,Supplies and Services
 Schools,PHS GROUP PLC,22/07/2015,1899.42,Supplies and Services
Adult Social Care,PHS GROUP PLC,01/07/2015,0.00,Supplies and Services
Adult Social Care,PHS GROUP PLC,10/07/2015,449.20,Supplies and Services
Adult Social Care,PHS GROUP PLC,16/07/2015,583.65,Supplies and Services
Adult Social Care,PHS GROUP PLC,20/07/2015,928.19,Supplies and Services
Adult Social Care,PHS GROUP PLC,27/07/2015,435.80,Supplies and Services
Corporate & Democratic Core,PHS GROUP PLC,07/07/2015,424.94,Supplies and Services
Corporate & Democratic Core,PHS GROUP PLC,10/07/2015,7376.19,Supplies and Services
Corporate & Democratic Core,PHS GROUP PLC,15/07/2015,660.52,Supplies and Services
Planning & Economic Development,PHS GROUP PLC,10/07/2015,546.46,Supplies and Services
 CXO,PHS LTD,30/07/2015,712.20,Supplies and Services
 CXO,PHS LTD,10/07/2015,1719.75,Supplies and Services
 CXO,PHS LTD,15/07/2015,942.94,Supplies and Services
 CXO,PHS LTD,23/07/2015,1485.26,Supplies and Services
 Schools,PHS LTD,10/07/2015,2345.95,Premises
 Schools,PHS LTD,17/07/2015,1454.82,Premises
 Schools,PHS LTD,21/07/2015,775.95,Premises
 Schools,PHS LTD,29/07/2015,1671.02,Premises
 Schools,PHS LTD,10/07/2015,6349.40,Supplies and Services
 Schools,PHS LTD,13/07/2015,1677.61,Supplies and Services
 Schools,PHS LTD,16/07/2015,805.80,Supplies and Services
 Schools,PHS LTD,17/07/2015,1159.66,Supplies and Services
 Schools,PHS LTD,20/07/2015,771.80,Supplies and Services
Adult Social Care,PHS LTD,20/07/2015,2312.03,Supplies and Services
